Body Name,Vendor Number,Vendor Name,Cost Centre,Service Label,BV Code,Amount,Period
Slough Borough Council,804709,247 Careservices Ltd,M44D,Adult Social Care Operations,Supplies and Services,"11,520.00",May-22
Slough Borough Council,804709,247 Careservices Ltd,M44D,Adult Social Care Operations,Supplies and Services,"11,160.00",May-22
Slough Borough Council,806901,4way Consulting Ltd,P240,Capital,Capital Charges,"1,373.20",May-22
Slough Borough Council,3963,50:50 Sync Cic,F449,Education & Inclusion,Supplies and Services,"3,315.00",May-22
Slough Borough Council,3963,50:50 Sync Cic,F449,Education & Inclusion,Supplies and Services,"3,315.00",May-22
Slough Borough Council,3963,50:50 Sync Cic,F449,Education & Inclusion,Supplies and Services,"2,145.00",May-22
Slough Borough Council,3963,50:50 Sync Cic,F449,Education & Inclusion,Supplies and Services,"2,040.00",May-22
Slough Borough Council,3963,50:50 Sync Cic,F449,Education & Inclusion,Supplies and Services,"3,300.00",May-22
Slough Borough Council,3963,50:50 Sync Cic,F449,Education & Inclusion,Supplies and Services,"3,060.00",May-22
Slough Borough Council,3963,50:50 Sync Cic,F449,Education & Inclusion,Supplies and Services,"2,475.00",May-22
Slough Borough Council,3963,50:50 Sync Cic,F449,Education & Inclusion,Supplies and Services,"3,795.00",May-22
Slough Borough Council,1055,A J Chapman,F123,Schools,Supplies and Services,"34,480.27",May-22
Slough Borough Council,1055,A J Chapman,F123,Schools,Supplies and Services,"2,200.00",May-22
Slough Borough Council,1055,A J Chapman,F123,Schools,Supplies and Services,990.00,May-22
Slough Borough Council,536,Ability Housing Association,M42E,Adult Social Care Operations,Supplies and Services,"2,448.90",May-22
Slough Borough Council,536,Ability Housing Association,M42E,Adult Social Care Operations,Supplies and Services,"1,399.37",May-22
Slough Borough Council,536,Ability Housing Association,M42E,Adult Social Care Operations,Supplies and Services,"1,833.76",May-22
Slough Borough Council,536,Ability Housing Association,M42E,Adult Social Care Operations,Supplies and Services,"2,358.52",May-22
Slough Borough Council,536,Ability Housing Association,M42E,Adult Social Care Operations,Supplies and Services,"2,669.50",May-22
Slough Borough Council,536,Ability Housing Association,M42E,Adult Social Care Operations,Supplies and Services,"2,436.27",May-22
Slough Borough Council,536,Ability Housing Association,M42E,Adult Social Care Operations,Supplies and Services,"1,231.25",May-22
Slough Borough Council,536,Ability Housing Association,M42E,Adult Social Care Operations,Supplies and Services,"2,941.59",May-22
Slough Borough Council,536,Ability Housing Association,M42E,Adult Social Care Operations,Supplies and Services,"2,611.19",May-22
Slough Borough Council,536,Ability Housing Association,M42E,Adult Social Care Operations,Supplies and Services,"2,588.84",May-22
Slough Borough Council,536,Ability Housing Association,M42E,Adult Social Care Operations,Supplies and Services,"1,795.86",May-22
Slough Borough Council,536,Ability Housing Association,M42E,Adult Social Care Operations,Supplies and Services,"2,977.56",May-22
Slough Borough Council,536,Ability Housing Association,M42E,Adult Social Care Operations,Supplies and Services,"1,383.82",May-22
Slough Borough Council,536,Ability Housing Association,M42E,Adult Social Care Operations,Supplies and Services,"2,759.87",May-22
Slough Borough Council,536,Ability Housing Association,M42E,Adult Social Care Operations,Supplies and Services,"3,465.04",May-22
Slough Borough Council,536,Ability Housing Association,M42E,Adult Social Care Operations,Supplies and Services,"2,546.08",May-22
Slough Borough Council,536,Ability Housing Association,M42E,Adult Social Care Operations,Supplies and Services,"2,643.26",May-22
Slough Borough Council,536,Ability Housing Association,M42E,Adult Social Care Operations,Supplies and Services,"2,517.27",May-22
Slough Borough Council,536,Ability Housing Association,M44E,Adult Social Care Operations,Supplies and Services,"1,756.99",May-22
Slough Borough Council,536,Ability Housing Association,M44E,Adult Social Care Operations,Supplies and Services,"1,823.07",May-22
Slough Borough Council,536,Ability Housing Association,M44E,Adult Social Care Operations,Supplies and Services,"2,149.59",May-22
Slough Borough Council,536,Ability Housing Association,M44E,Adult Social Care Operations,Supplies and Services,"2,227.34",May-22
Slough Borough Council,807554,Acorn Care & Education Ltd,M26E,Adult Social Care Operations,Supplies and Services,"5,735.71",May-22
Slough Borough Council,807554,Acorn Care & Education Ltd,M26E,Adult Social Care Operations,Supplies and Services,"5,735.71",May-22
Slough Borough Council,807554,Acorn Care & Education Ltd,M26E,Adult Social Care Operations,Supplies and Services,"5,735.71",May-22
Slough Borough Council,807554,Acorn Care & Education Ltd,F462,Children & Families,Supplies and Services,"2,756.00",May-22
Slough Borough Council,807554,Acorn Care & Education Ltd,F462,Children & Families,Supplies and Services,"4,028.00",May-22
Slough Borough Council,807554,Acorn Care & Education Ltd,F462,Children & Families,Supplies and Services,"4,028.00",May-22
Slough Borough Council,807554,Acorn Care & Education Ltd,F462,Children & Families,Supplies and Services,"2,756.00",May-22
Slough Borough Council,807554,Acorn Care & Education Ltd,F462,Children & Families,Supplies and Services,"4,876.00",May-22
Slough Borough Council,807554,Acorn Care & Education Ltd,F462,Children & Families,Supplies and Services,"2,756.00",May-22
Slough Borough Council,807554,Acorn Care & Education Ltd,F462,Children & Families,Supplies and Services,"4,664.00",May-22
Slough Borough Council,807554,Acorn Care & Education Ltd,F462,Children & Families,Supplies and Services,"4,028.00",May-22
Slough Borough Council,807554,Acorn Care & Education Ltd,F462,Children & Families,Supplies and Services,"4,876.00",May-22
Slough Borough Council,807554,Acorn Care & Education Ltd,F462,Children & Families,Supplies and Services,"4,876.00",May-22
Slough Borough Council,807554,Acorn Care & Education Ltd,F462,Children & Families,Supplies and Services,"4,664.00",May-22
Slough Borough Council,807554,Acorn Care & Education Ltd,F462,Children & Families,Supplies and Services,"4,664.00",May-22
Slough Borough Council,1506,Acorns Project Limited,P053,Capital,Capital Charges,"1,000.00",May-22
Slough Borough Council,2855,Advance Housing & Support Ltd,M27F,Adult Social Care Operations,Supplies and Services,-573.40,May-22
Slough Borough Council,2855,Advance Housing & Support Ltd,M42F,Adult Social Care Operations,Supplies and Services,731.60,May-22
Slough Borough Council,2855,Advance Housing & Support Ltd,M42F,Adult Social Care Operations,Supplies and Services,"1,147.52",May-22
Slough Borough Council,2855,Advance Housing & Support Ltd,M42F,Adult Social Care Operations,Supplies and Services,"1,170.56",May-22
Slough Borough Council,2855,Advance Housing & Support Ltd,M42F,Adult Social Care Operations,Supplies and Services,"1,170.56",May-22
Slough Borough Council,2855,Advance Housing & Support Ltd,M42F,Adult Social Care Operations,Supplies and Services,"1,097.40",May-22
Slough Borough Council,2855,Advance Housing & Support Ltd,M42F,Adult Social Care Operations,Supplies and Services,"1,609.52",May-22
Slough Borough Council,2855,Advance Housing & Support Ltd,M42F,Adult Social Care Operations,Supplies and Services,"1,097.40",May-22
Slough Borough Council,2855,Advance Housing & Support Ltd,M42F,Adult Social Care Operations,Supplies and Services,"1,609.52",May-22
Slough Borough Council,2855,Advance Housing & Support Ltd,M42F,Adult Social Care Operations,Supplies and Services,"1,565.68",May-22
Slough Borough Council,2855,Advance Housing & Support Ltd,M42F,Adult Social Care Operations,Supplies and Services,"1,022.01",May-22
Slough Borough Council,2135,Adventure Learning Childcare Limited,F909,Children & Families,Supplies and Services,"11,268.87",May-22
Slough Borough Council,805178,AFM Transport Limited,D760,Place Operations,Supplies and Services,"1,601.06",May-22
Slough Borough Council,805178,AFM Transport Limited,D760,Place Operations,Supplies and Services,"1,074.80",May-22
Slough Borough Council,805178,AFM Transport Limited,D760,Place Operations,Supplies and Services,"2,296.44",May-22
Slough Borough Council,805178,AFM Transport Limited,D760,Place Operations,Supplies and Services,"2,618.15",May-22
Slough Borough Council,805178,AFM Transport Limited,D880,Place Operations,Supplies and Services,787.24,May-22
Slough Borough Council,805178,AFM Transport Limited,D880,Place Operations,Supplies and Services,"1,368.00",May-22
Slough Borough Council,805178,AFM Transport Limited,D880,Place Operations,Supplies and Services,"1,272.00",May-22
Slough Borough Council,805178,AFM Transport Limited,D880,Place Operations,Supplies and Services,"10,125.96",May-22
Slough Borough Council,805178,AFM Transport Limited,D880,Place Operations,Supplies and Services,"6,027.16",May-22
Slough Borough Council,805178,AFM Transport Limited,D880,Place Operations,Supplies and Services,"5,444.48",May-22
Slough Borough Council,805178,AFM Transport Limited,D880,Place Operations,Supplies and Services,"14,174.16",May-22
Slough Borough Council,805178,AFM Transport Limited,D880,Place Operations,Supplies and Services,"3,570.24",May-22
Slough Borough Council,805178,AFM Transport Limited,D880,Place Operations,Supplies and Services,501.00,May-22
Slough Borough Council,2486,Agriculture And Estate Services Limited,B421,Place Strategy & Infrastructure,Supplies and Services,"1,865.00",May-22
Slough Borough Council,2486,Agriculture And Estate Services Limited,P220,Capital,Capital Charges,"21,185.00",May-22
Slough Borough Council,2486,Agriculture And Estate Services Limited,P235,Capital,Capital Charges,"5,170.00",May-22
Slough Borough Council,2197,Altwood Housing Ltd,H205,Housing (People) Services,Supplies and Services,930.00,May-22
Slough Borough Council,2197,Altwood Housing Ltd,H205,Housing (People) Services,Supplies and Services,"1,705.00",May-22
Slough Borough Council,2197,Altwood Housing Ltd,H205,Housing (People) Services,Supplies and Services,"1,240.00",May-22
Slough Borough Council,2197,Altwood Housing Ltd,H205,Housing (People) Services,Supplies and Services,"1,320.00",May-22
Slough Borough Council,2197,Altwood Housing Ltd,H205,Housing (People) Services,Supplies and Services,930.00,May-22
Slough Borough Council,2197,Altwood Housing Ltd,H205,Housing (People) Services,Supplies and Services,"2,325.00",May-22
Slough Borough Council,2197,Altwood Housing Ltd,H205,Housing (People) Services,Supplies and Services,"1,705.00",May-22
Slough Borough Council,2197,Altwood Housing Ltd,H205,Housing (People) Services,Supplies and Services,720.00,May-22
Slough Borough Council,2197,Altwood Housing Ltd,H205,Housing (People) Services,Supplies and Services,"1,705.00",May-22
Slough Borough Council,2197,Altwood Housing Ltd,H205,Housing (People) Services,Supplies and Services,930.00,May-22
Slough Borough Council,2197,Altwood Housing Ltd,H205,Housing (People) Services,Supplies and Services,930.00,May-22
Slough Borough Council,2197,Altwood Housing Ltd,H205,Housing (People) Services,Supplies and Services,744.00,May-22
Slough Borough Council,2197,Altwood Housing Ltd,H205,Housing (People) Services,Supplies and Services,"1,705.00",May-22
Slough Borough Council,2197,Altwood Housing Ltd,H205,Housing (People) Services,Supplies and Services,720.00,May-22
Slough Borough Council,2197,Altwood Housing Ltd,H205,Housing (People) Services,Supplies and Services,930.00,May-22
Slough Borough Council,2197,Altwood Housing Ltd,H205,Housing (People) Services,Supplies and Services,840.00,May-22
Slough Borough Council,2197,Altwood Housing Ltd,H205,Housing (People) Services,Supplies and Services,930.00,May-22
Slough Borough Council,2197,Altwood Housing Ltd,H205,Housing (People) Services,Supplies and Services,930.00,May-22
Slough Borough Council,2197,Altwood Housing Ltd,H205,Housing (People) Services,Supplies and Services,930.00,May-22
Slough Borough Council,807515,Always Growing Together Community Interest Company Limited,F909,Children & Families,Supplies and Services,"9,888.06",May-22
Slough Borough Council,808191,Ambrose Adrian Healthcare Ltd,M44E,Adult Social Care Operations,Supplies and Services,950.00,May-22
Slough Borough Council,808191,Ambrose Adrian Healthcare Ltd,M44E,Adult Social Care Operations,Supplies and Services,"3,800.00",May-22
Slough Borough Council,808191,Ambrose Adrian Healthcare Ltd,M44E,Adult Social Care Operations,Supplies and Services,"3,257.14",May-22
Slough Borough Council,808191,Ambrose Adrian Healthcare Ltd,M44E,Adult Social Care Operations,Supplies and Services,732.86,May-22
Slough Borough Council,805264,Ameresco Limited,P239,Capital,Supplies and Services,"88,985.29",May-22
Slough Borough Council,808368,Anthony Toby Homes Trust,M26E,Adult Social Care Operations,Supplies and Services,"3,842.05",May-22
Slough Borough Council,808368,Anthony Toby Homes Trust,M51C,Adult Social Care Operations,Supplies and Services,557.10,May-22
Slough Borough Council,808368,Anthony Toby Homes Trust,M51C,Adult Social Care Operations,Supplies and Services,"1,056.00",May-22
Slough Borough Council,3137,Applegarth Care Home Ltd,M25C,Adult Social Care Operations,Supplies and Services,"3,200.00",May-22
Slough Borough Council,3137,Applegarth Care Home Ltd,M25C,Adult Social Care Operations,Supplies and Services,"3,400.00",May-22
Slough Borough Council,3137,Applegarth Care Home Ltd,M27C,Adult Social Care Operations,Supplies and Services,"3,500.00",May-22
Slough Borough Council,808206,Applenet Care & Support,M81D,Adult Social Care Operations,Supplies and Services,"9,858.00",May-22
Slough Borough Council,170,Apse,B203,Finance & Commercial,Supplies and Services,"3,216.73",May-22
Slough Borough Council,3350,Arbour Vale School,E610,Children & Families,Supplies and Services,"434,910.00",May-22
Slough Borough Council,831,Argos Business Solutions Ltd,H055,Finance & Commercial,Supplies and Services,"6,383.05",May-22
Slough Borough Council,831,Argos Business Solutions Ltd,H055,Finance & Commercial,Supplies and Services,973.70,May-22
Slough Borough Council,831,Argos Business Solutions Ltd,H055,Finance & Commercial,Supplies and Services,727.50,May-22
Slough Borough Council,831,Argos Business Solutions Ltd,H055,Finance & Commercial,Supplies and Services,"8,786.50",May-22
Slough Borough Council,420,Ashburn Estate Agents,H205,Housing (People) Services,Premises,"116,070.00",May-22
Slough Borough Council,3666,Assisted Living South West,M26E,Adult Social Care Operations,Supplies and Services,"4,816.04",May-22
Slough Borough Council,1292,Association Of Electoral Administrators,B240,Governance,Supplies and Services,"8,609.92",May-22
Slough Borough Council,1292,Association Of Electoral Administrators,B240,Governance,Indirect Employee Expenses,"2,464.10",May-22
Slough Borough Council,804324,Astoria Healthcare,M27F,Adult Social Care Operations,Supplies and Services,"4,207.14",May-22
Slough Borough Council,3370,Baylis Court School,E610,Children & Families,Supplies and Services,"1,253.31",May-22
Slough Borough Council,1444,Baylis Media Ltd,F210,Community,Supplies and Services,722.57,May-22
Slough Borough Council,805659,BBLUR LLP,P432,Capital,Capital Charges,"25,000.00",May-22
Slough Borough Council,1681,Bcq,B240,Governance,Supplies and Services,"17,200.00",May-22
Slough Borough Council,3208,Be Happy Pre School,F909,Children & Families,Supplies and Services,"8,019.49",May-22
Slough Borough Council,3208,Be Happy Pre School,F909,Children & Families,Supplies and Services,"4,118.26",May-22
Slough Borough Council,805539,Beech Haven Ltd,M27C,Adult Social Care Operations,Supplies and Services,"3,277.14",May-22
Slough Borough Council,609,Beechwood Secondary School,E610,Children & Families,Supplies and Services,"10,800.01",May-22
Slough Borough Council,804588,BEN Motor & Allied Trades Bev.Fnd,M15D,Adult Social Care Operations,Supplies and Services,"6,400.00",May-22
Slough Borough Council,804588,BEN Motor & Allied Trades Bev.Fnd,M15D,Adult Social Care Operations,Supplies and Services,"6,400.00",May-22
Slough Borough Council,804588,BEN Motor & Allied Trades Bev.Fnd,M15D,Adult Social Care Operations,Supplies and Services,"6,400.00",May-22
Slough Borough Council,804588,BEN Motor & Allied Trades Bev.Fnd,M27C,Adult Social Care Operations,Supplies and Services,"5,600.00",May-22
Slough Borough Council,804588,BEN Motor & Allied Trades Bev.Fnd,M27C,Adult Social Care Operations,Supplies and Services,"5,600.00",May-22
Slough Borough Council,612,Berkshire Healthcare Nhs Foundation Trust,F520,Education & Inclusion,Supplies and Services,"3,333.33",May-22
Slough Borough Council,612,Berkshire Healthcare Nhs Foundation Trust,A01P,Public Health,Supplies and Services,"2,904.00",May-22
Slough Borough Council,806987,Better Life Care Ltd,B298,Finance,Supplies and Services,"1,786.03",May-22
Slough Borough Council,1736,Bevan Brittan Llp,B086,Place Strategy & Infrastructure,Capital Charges,721.50,May-22
Slough Borough Council,803828,Blue Willow Day Nursery Ltd,F909,Children & Families,Supplies and Services,"21,852.39",May-22
Slough Borough Council,807297,BNP Paribas Real Estate Advisory & Property Management UK Limited,P211,Capital,Capital Charges,817.50,May-22
Slough Borough Council,805060,BPS Dorking Ltd t/a BPS Chartered Surveyors,D224,Planning and Transport,Supplies and Services,"5,180.00",May-22
Slough Borough Council,2856,Brain Injury Rehabilitation Trust,M26E,Adult Social Care Operations,Supplies and Services,"5,613.57",May-22
Slough Borough Council,2856,Brain Injury Rehabilitation Trust,M27C,Adult Social Care Operations,Supplies and Services,"7,481.67",May-22
Slough Borough Council,805179,Braywood Tree Surgery Ltd,D620,Place Operations,Supplies and Services,"1,510.32",May-22
Slough Borough Council,1745,Bre Global,D224,Planning and Transport,Supplies and Services,"3,000.00",May-22
Slough Borough Council,1745,Bre Global,D224,Planning and Transport,Supplies and Services,"3,300.00",May-22
Slough Borough Council,805817,Bright World Nurseries,F909,Children & Families,Supplies and Services,"10,380.54",May-22
Slough Borough Council,504,Britwell Baptist Pre School,F909,Children & Families,Supplies and Services,"6,127.32",May-22
Slough Borough Council,2852,Britwell Youth & Community Project,F382,Children & Families,Supplies and Services,"1,749.12",May-22
Slough Borough Council,803873,Buckinghamshire County Council,F551,Children & Families,Supplies and Services,"-44,292.35",May-22
Slough Borough Council,803873,Buckinghamshire County Council,F551,Children & Families,Supplies and Services,"140,896.98",May-22
Slough Borough Council,803873,Buckinghamshire County Council,F551,Children & Families,Supplies and Services,"93,028.00",May-22
Slough Borough Council,741,Bunnies Pre-School,F909,Children & Families,Supplies and Services,"6,920.89",May-22
Slough Borough Council,803553,BUPA CARE HOME (CFH CARE),M25D,Adult Social Care Operations,Supplies and Services,"3,172.00",May-22
Slough Borough Council,804448,Bupa Care Homes (ANS) Ltd,M15D,Adult Social Care Operations,Supplies and Services,"5,633.00",May-22
Slough Borough Council,807597,Bytesize Training ltd,B282,Digital and Strategic IT,Supplies and Services,"1,750.00",May-22
Slough Borough Council,629,C.H.O.I.C.E Limited,M26E,Adult Social Care Operations,Supplies and Services,"8,738.50",May-22
Slough Borough Council,629,C.H.O.I.C.E Limited,M26E,Adult Social Care Operations,Supplies and Services,"10,756.82",May-22
Slough Borough Council,629,C.H.O.I.C.E Limited,M26E,Adult Social Care Operations,Supplies and Services,"4,803.30",May-22
Slough Borough Council,629,C.H.O.I.C.E Limited,M26E,Adult Social Care Operations,Supplies and Services,"10,474.68",May-22
Slough Borough Council,629,C.H.O.I.C.E Limited,M42E,Adult Social Care Operations,Supplies and Services,"6,108.82",May-22
Slough Borough Council,629,C.H.O.I.C.E Limited,M42E,Adult Social Care Operations,Supplies and Services,"6,033.90",May-22
Slough Borough Council,629,C.H.O.I.C.E Limited,M42E,Adult Social Care Operations,Supplies and Services,"5,493.90",May-22
Slough Borough Council,629,C.H.O.I.C.E Limited,M42E,Adult Social Care Operations,Supplies and Services,"5,947.11",May-22
Slough Borough Council,629,C.H.O.I.C.E Limited,M42E,Adult Social Care Operations,Supplies and Services,"5,911.76",May-22
Slough Borough Council,629,C.H.O.I.C.E Limited,M44D,Adult Social Care Operations,Supplies and Services,"4,288.54",May-22
Slough Borough Council,629,C.H.O.I.C.E Limited,M44F,Adult Social Care Operations,Supplies and Services,"2,498.61",May-22
Slough Borough Council,629,C.H.O.I.C.E Limited,M44F,Adult Social Care Operations,Supplies and Services,"2,523.94",May-22
Slough Borough Council,629,C.H.O.I.C.E Limited,M26E,Adult Social Care Operations,External Receipts,-515.75,May-22
Slough Borough Council,805414,Calibration Engineering Service Ltd,D750,Place Operations,Supplies and Services,"1,761.93",May-22
Slough Borough Council,737,Capita Business Services Ltd,B282,Digital and Strategic IT,Supplies and Services,"21,495.00",May-22
Slough Borough Council,737,Capita Business Services Ltd,B377,Finance & Commercial,Supplies and Services,"10,631.00",May-22
Slough Borough Council,737,Capita Business Services Ltd,H057,Finance & Commercial,Supplies and Services,"9,000.00",May-22
Slough Borough Council,804861,Care Management Group Ltd,M26E,Adult Social Care Operations,Supplies and Services,"14,268.39",May-22
Slough Borough Council,804861,Care Management Group Ltd,M26E,Adult Social Care Operations,Supplies and Services,"13,634.06",May-22
Slough Borough Council,805621,Care Staff Services,A07R,Adult Social Care Operations,Supplies and Services,"1,715.00",May-22
Slough Borough Council,805621,Care Staff Services,A07R,Adult Social Care Operations,Supplies and Services,"1,268.75",May-22
Slough Borough Council,805621,Care Staff Services,A07R,Adult Social Care Operations,Supplies and Services,"1,142.38",May-22
Slough Borough Council,805621,Care Staff Services,A07R,Adult Social Care Operations,Supplies and Services,"2,205.00",May-22
Slough Borough Council,805621,Care Staff Services,A07R,Adult Social Care Operations,Supplies and Services,980.00,May-22
Slough Borough Council,805621,Care Staff Services,A07R,Adult Social Care Operations,Supplies and Services,945.00,May-22
Slough Borough Council,805621,Care Staff Services,A07R,Adult Social Care Operations,Supplies and Services,560.00,May-22
Slough Borough Council,805621,Care Staff Services,A07R,Adult Social Care Operations,Supplies and Services,953.75,May-22
Slough Borough Council,805621,Care Staff Services,A07R,Adult Social Care Operations,Supplies and Services,529.38,May-22
Slough Borough Council,805621,Care Staff Services,A07R,Adult Social Care Operations,Supplies and Services,"1,531.25",May-22
Slough Borough Council,805621,Care Staff Services,A07R,Adult Social Care Operations,Supplies and Services,527.25,May-22
Slough Borough Council,805621,Care Staff Services,M44C,Adult Social Care Operations,Supplies and Services,"1,813.00",May-22
Slough Borough Council,805621,Care Staff Services,M44C,Adult Social Care Operations,Supplies and Services,647.50,May-22
Slough Borough Council,805621,Care Staff Services,M44C,Adult Social Care Operations,Supplies and Services,"2,072.00",May-22
Slough Borough Council,805621,Care Staff Services,M44C,Adult Social Care Operations,Supplies and Services,"1,963.00",May-22
Slough Borough Council,805621,Care Staff Services,M44C,Adult Social Care Operations,Supplies and Services,"2,072.00",May-22
Slough Borough Council,805621,Care Staff Services,M44C,Adult Social Care Operations,Supplies and Services,"1,955.00",May-22
Slough Borough Council,805621,Care Staff Services,M44C,Adult Social Care Operations,Supplies and Services,"2,205.00",May-22
Slough Borough Council,805621,Care Staff Services,M44C,Adult Social Care Operations,Supplies and Services,647.50,May-22
Slough Borough Council,805621,Care Staff Services,M44C,Adult Social Care Operations,Supplies and Services,"2,331.00",May-22
Slough Borough Council,805621,Care Staff Services,M44C,Adult Social Care Operations,Supplies and Services,906.50,May-22
Slough Borough Council,805621,Care Staff Services,M44C,Adult Social Care Operations,Supplies and Services,666.00,May-22
Slough Borough Council,805621,Care Staff Services,M44C,Adult Social Care Operations,Supplies and Services,"1,470.00",May-22
Slough Borough Council,805621,Care Staff Services,M44C,Adult Social Care Operations,Supplies and Services,"1,165.50",May-22
Slough Borough Council,805621,Care Staff Services,M44C,Adult Social Care Operations,Supplies and Services,"1,295.00",May-22
Slough Borough Council,805621,Care Staff Services,M44C,Adult Social Care Operations,Supplies and Services,630.00,May-22
Slough Borough Council,805621,Care Staff Services,M44C,Adult Social Care Operations,Supplies and Services,"2,146.00",May-22
Slough Borough Council,805621,Care Staff Services,M44C,Adult Social Care Operations,Supplies and Services,"2,081.00",May-22
Slough Borough Council,805621,Care Staff Services,M44C,Adult Social Care Operations,Supplies and Services,"1,102.50",May-22
Slough Borough Council,805621,Care Staff Services,M44C,Adult Social Care Operations,Supplies and Services,"1,715.00",May-22
Slough Borough Council,805621,Care Staff Services,M44C,Adult Social Care Operations,Supplies and Services,717.50,May-22
Slough Borough Council,805621,Care Staff Services,M44C,Adult Social Care Operations,Supplies and Services,906.50,May-22
Slough Borough Council,805621,Care Staff Services,M44C,Adult Social Care Operations,Supplies and Services,"1,032.50",May-22
Slough Borough Council,805621,Care Staff Services,M44C,Adult Social Care Operations,Supplies and Services,"1,032.50",May-22
Slough Borough Council,805621,Care Staff Services,M44C,Adult Social Care Operations,Supplies and Services,612.50,May-22
Slough Borough Council,805621,Care Staff Services,M44C,Adult Social Care Operations,Supplies and Services,"1,190.00",May-22
Slough Borough Council,805621,Care Staff Services,M44C,Adult Social Care Operations,Supplies and Services,"1,406.00",May-22
Slough Borough Council,805621,Care Staff Services,M44C,Adult Social Care Operations,Supplies and Services,"1,554.00",May-22
Slough Borough Council,805621,Care Staff Services,M44C,Adult Social Care Operations,Supplies and Services,906.50,May-22
Slough Borough Council,805621,Care Staff Services,M44C,Adult Social Care Operations,Supplies and Services,"1,202.50",May-22
Slough Borough Council,805621,Care Staff Services,M44C,Adult Social Care Operations,Supplies and Services,"1,165.50",May-22
Slough Borough Council,805621,Care Staff Services,M44C,Adult Social Care Operations,Supplies and Services,518.00,May-22
Slough Borough Council,805621,Care Staff Services,M44C,Adult Social Care Operations,Supplies and Services,730.01,May-22
Slough Borough Council,805621,Care Staff Services,M44C,Adult Social Care Operations,Supplies and Services,805.00,May-22
Slough Borough Council,805621,Care Staff Services,M44C,Adult Social Care Operations,Supplies and Services,765.63,May-22
Slough Borough Council,805621,Care Staff Services,M44C,Adult Social Care Operations,Supplies and Services,"2,664.00",May-22
Slough Borough Council,805621,Care Staff Services,M44C,Adult Social Care Operations,Supplies and Services,"1,955.00",May-22
Slough Borough Council,805621,Care Staff Services,M44C,Adult Social Care Operations,Supplies and Services,"1,896.00",May-22
Slough Borough Council,805621,Care Staff Services,M44C,Adult Social Care Operations,Supplies and Services,518.00,May-22
Slough Borough Council,805621,Care Staff Services,M44C,Adult Social Care Operations,Supplies and Services,"1,165.50",May-22
Slough Borough Council,805621,Care Staff Services,M44C,Adult Social Care Operations,Supplies and Services,721.50,May-22
Slough Borough Council,805621,Care Staff Services,M44C,Adult Social Care Operations,Supplies and Services,925.00,May-22
Slough Borough Council,805621,Care Staff Services,M44C,Adult Social Care Operations,Supplies and Services,"1,651.13",May-22
Slough Borough Council,805621,Care Staff Services,M44C,Adult Social Care Operations,Supplies and Services,"1,417.50",May-22
Slough Borough Council,805621,Care Staff Services,M44C,Adult Social Care Operations,Supplies and Services,"2,331.00",May-22
Slough Borough Council,805621,Care Staff Services,M44C,Adult Social Care Operations,Supplies and Services,"1,592.50",May-22
Slough Borough Council,805621,Care Staff Services,M44C,Adult Social Care Operations,Supplies and Services,"2,257.00",May-22
Slough Borough Council,805621,Care Staff Services,M44C,Adult Social Care Operations,Supplies and Services,"1,262.63",May-22
Slough Borough Council,805621,Care Staff Services,M44C,Adult Social Care Operations,Supplies and Services,529.37,May-22
Slough Borough Council,805621,Care Staff Services,M44C,Adult Social Care Operations,Supplies and Services,"2,331.00",May-22
Slough Borough Council,805621,Care Staff Services,M44C,Adult Social Care Operations,Supplies and Services,"1,563.25",May-22
Slough Borough Council,805621,Care Staff Services,M44C,Adult Social Care Operations,Supplies and Services,504.13,May-22
Slough Borough Council,805621,Care Staff Services,M44D,Adult Social Care Operations,Supplies and Services,"1,785.00",May-22
Slough Borough Council,805621,Care Staff Services,M44D,Adult Social Care Operations,Supplies and Services,"1,295.00",May-22
Slough Borough Council,805621,Care Staff Services,M44D,Adult Social Care Operations,Supplies and Services,"1,592.50",May-22
Slough Borough Council,805621,Care Staff Services,M44D,Adult Social Care Operations,Supplies and Services,"1,165.50",May-22
Slough Borough Council,805621,Care Staff Services,M44D,Adult Social Care Operations,Supplies and Services,629.00,May-22
Slough Borough Council,805621,Care Staff Services,M44D,Adult Social Care Operations,Supplies and Services,518.00,May-22
Slough Borough Council,805621,Care Staff Services,M44D,Adult Social Care Operations,Supplies and Services,765.63,May-22
Slough Borough Council,805621,Care Staff Services,M44D,Adult Social Care Operations,Supplies and Services,647.50,May-22
Slough Borough Council,805621,Care Staff Services,M44D,Adult Social Care Operations,Supplies and Services,"1,239.50",May-22
Slough Borough Council,805621,Care Staff Services,M44D,Adult Social Care Operations,Supplies and Services,832.50,May-22
Slough Borough Council,805621,Care Staff Services,M44D,Adult Social Care Operations,Supplies and Services,"1,102.50",May-22
Slough Borough Council,805621,Care Staff Services,M44D,Adult Social Care Operations,Supplies and Services,"2,331.00",May-22
Slough Borough Council,805621,Care Staff Services,M44E,Adult Social Care Operations,Supplies and Services,518.00,May-22
Slough Borough Council,805621,Care Staff Services,M44F,Adult Social Care Operations,Supplies and Services,888.00,May-22
Slough Borough Council,805621,Care Staff Services,M44F,Adult Social Care Operations,Supplies and Services,999.00,May-22
Slough Borough Council,805621,Care Staff Services,M44F,Adult Social Care Operations,Supplies and Services,"2,590.00",May-22
Slough Borough Council,805621,Care Staff Services,M44F,Adult Social Care Operations,Supplies and Services,666.00,May-22
Slough Borough Council,805621,Care Staff Services,M44F,Adult Social Care Operations,Supplies and Services,"1,461.50",May-22
Slough Borough Council,805621,Care Staff Services,M44F,Adult Social Care Operations,Supplies and Services,518.00,May-22
Slough Borough Council,805621,Care Staff Services,M44F,Adult Social Care Operations,Supplies and Services,"1,036.00",May-22
Slough Borough Council,805621,Care Staff Services,M45C,Adult Social Care Operations,Supplies and Services,577.50,May-22
Slough Borough Council,805621,Care Staff Services,M45C,Adult Social Care Operations,Supplies and Services,765.63,May-22
Slough Borough Council,805621,Care Staff Services,M45C,Adult Social Care Operations,Supplies and Services,693.75,May-22
Slough Borough Council,805621,Care Staff Services,M48C,Adult Social Care Operations,Supplies and Services,"2,450.00",May-22
Slough Borough Council,805621,Care Staff Services,M48C,Adult Social Care Operations,Supplies and Services,"2,925.28",May-22
Slough Borough Council,805621,Care Staff Services,M48C,Adult Social Care Operations,Supplies and Services,"2,331.00",May-22
Slough Borough Council,805621,Care Staff Services,M48C,Adult Social Care Operations,Supplies and Services,"3,108.00",May-22
Slough Borough Council,805621,Care Staff Services,M48C,Adult Social Care Operations,Supplies and Services,"3,108.00",May-22
Slough Borough Council,805621,Care Staff Services,M48C,Adult Social Care Operations,Supplies and Services,"3,108.00",May-22
Slough Borough Council,805621,Care Staff Services,M48C,Adult Social Care Operations,Supplies and Services,"3,098.75",May-22
Slough Borough Council,805621,Care Staff Services,M85F,Adult Social Care Operations,Supplies and Services,592.00,May-22
Slough Borough Council,808149,Care Staff Services Support,M44F,Adult Social Care Operations,Supplies and Services,"1,808.48",May-22
Slough Borough Council,808149,Care Staff Services Support,M44F,Adult Social Care Operations,Supplies and Services,"3,318.97",May-22
Slough Borough Council,1162,Care Uk Community Partnership Ltd,A03E,Adult Social Care Operations,Supplies and Services,"1,097.87",May-22
Slough Borough Council,1162,Care Uk Community Partnership Ltd,A03E,Adult Social Care Operations,Supplies and Services,"3,842.56",May-22
Slough Borough Council,1162,Care Uk Community Partnership Ltd,M15D,Adult Social Care Operations,Supplies and Services,"2,827.20",May-22
Slough Borough Council,1162,Care Uk Community Partnership Ltd,M15D,Adult Social Care Operations,Supplies and Services,"3,754.99",May-22
Slough Borough Council,1162,Care Uk Community Partnership Ltd,M15D,Adult Social Care Operations,Supplies and Services,"3,754.99",May-22
Slough Borough Council,1162,Care Uk Community Partnership Ltd,M15D,Adult Social Care Operations,Supplies and Services,"3,754.99",May-22
Slough Borough Council,1162,Care Uk Community Partnership Ltd,M15D,Adult Social Care Operations,Supplies and Services,"3,919.61",May-22
Slough Borough Council,1162,Care Uk Community Partnership Ltd,M15D,Adult Social Care Operations,Supplies and Services,"3,754.99",May-22
Slough Borough Council,1162,Care Uk Community Partnership Ltd,M15D,Adult Social Care Operations,Supplies and Services,"3,803.00",May-22
Slough Borough Council,1162,Care Uk Community Partnership Ltd,M15D,Adult Social Care Operations,Supplies and Services,"3,803.00",May-22
Slough Borough Council,1162,Care Uk Community Partnership Ltd,M15D,Adult Social Care Operations,Supplies and Services,"3,803.00",May-22
Slough Borough Council,1162,Care Uk Community Partnership Ltd,M15D,Adult Social Care Operations,Supplies and Services,"3,803.00",May-22
Slough Borough Council,1162,Care Uk Community Partnership Ltd,M15D,Adult Social Care Operations,Supplies and Services,"3,969.72",May-22
Slough Borough Council,1162,Care Uk Community Partnership Ltd,M15F,Adult Social Care Operations,Supplies and Services,"2,931.71",May-22
Slough Borough Council,1162,Care Uk Community Partnership Ltd,M15F,Adult Social Care Operations,Supplies and Services,"2,931.71",May-22
Slough Borough Council,1162,Care Uk Community Partnership Ltd,M15F,Adult Social Care Operations,Supplies and Services,"2,648.00",May-22
Slough Borough Council,1162,Care Uk Community Partnership Ltd,M15F,Adult Social Care Operations,Supplies and Services,"2,931.71",May-22
Slough Borough Council,1162,Care Uk Community Partnership Ltd,M15F,Adult Social Care Operations,Supplies and Services,"2,837.14",May-22
Slough Borough Council,1162,Care Uk Community Partnership Ltd,M15F,Adult Social Care Operations,Supplies and Services,"2,913.71",May-22
Slough Borough Council,1162,Care Uk Community Partnership Ltd,M17C,Adult Social Care Operations,Supplies and Services,"22,540.89",May-22
Slough Borough Council,1162,Care Uk Community Partnership Ltd,M17C,Adult Social Care Operations,Supplies and Services,"3,919.61",May-22
Slough Borough Council,1162,Care Uk Community Partnership Ltd,M17C,Adult Social Care Operations,Supplies and Services,"3,919.61",May-22
Slough Borough Council,1162,Care Uk Community Partnership Ltd,M17C,Adult Social Care Operations,Supplies and Services,"3,919.61",May-22
Slough Borough Council,1162,Care Uk Community Partnership Ltd,M17C,Adult Social Care Operations,Supplies and Services,"2,785.40",May-22
Slough Borough Council,1162,Care Uk Community Partnership Ltd,M17C,Adult Social Care Operations,Supplies and Services,"3,969.72",May-22
Slough Borough Council,1162,Care Uk Community Partnership Ltd,M17C,Adult Social Care Operations,Supplies and Services,"22,082.57",May-22
Slough Borough Council,1162,Care Uk Community Partnership Ltd,M17C,Adult Social Care Operations,Supplies and Services,"3,969.72",May-22
Slough Borough Council,1162,Care Uk Community Partnership Ltd,M17C,Adult Social Care Operations,Supplies and Services,"3,969.72",May-22
Slough Borough Council,1162,Care Uk Community Partnership Ltd,M18C,Adult Social Care Operations,Supplies and Services,"3,754.99",May-22
Slough Borough Council,1162,Care Uk Community Partnership Ltd,M18C,Adult Social Care Operations,Supplies and Services,"3,754.99",May-22
Slough Borough Council,1162,Care Uk Community Partnership Ltd,M18C,Adult Social Care Operations,Supplies and Services,"3,754.99",May-22
Slough Borough Council,1162,Care Uk Community Partnership Ltd,M18C,Adult Social Care Operations,Supplies and Services,"3,754.99",May-22
Slough Borough Council,1162,Care Uk Community Partnership Ltd,M18C,Adult Social Care Operations,Supplies and Services,"3,919.61",May-22
Slough Borough Council,1162,Care Uk Community Partnership Ltd,M18C,Adult Social Care Operations,Supplies and Services,"3,919.61",May-22
Slough Borough Council,1162,Care Uk Community Partnership Ltd,M18C,Adult Social Care Operations,Supplies and Services,"3,754.99",May-22
Slough Borough Council,1162,Care Uk Community Partnership Ltd,M18C,Adult Social Care Operations,Supplies and Services,"3,754.99",May-22
Slough Borough Council,1162,Care Uk Community Partnership Ltd,M18C,Adult Social Care Operations,Supplies and Services,"3,754.99",May-22
Slough Borough Council,1162,Care Uk Community Partnership Ltd,M18C,Adult Social Care Operations,Supplies and Services,"3,754.99",May-22
Slough Borough Council,1162,Care Uk Community Partnership Ltd,M18C,Adult Social Care Operations,Supplies and Services,"3,754.99",May-22
Slough Borough Council,1162,Care Uk Community Partnership Ltd,M18C,Adult Social Care Operations,Supplies and Services,"27,339.57",May-22
Slough Borough Council,1162,Care Uk Community Partnership Ltd,M18C,Adult Social Care Operations,Supplies and Services,"3,754.99",May-22
Slough Borough Council,1162,Care Uk Community Partnership Ltd,M18C,Adult Social Care Operations,Supplies and Services,"3,754.99",May-22
Slough Borough Council,1162,Care Uk Community Partnership Ltd,M18C,Adult Social Care Operations,Supplies and Services,"3,754.99",May-22
Slough Borough Council,1162,Care Uk Community Partnership Ltd,M18C,Adult Social Care Operations,Supplies and Services,"3,919.61",May-22
Slough Borough Council,1162,Care Uk Community Partnership Ltd,M18C,Adult Social Care Operations,Supplies and Services,"3,754.99",May-22
Slough Borough Council,1162,Care Uk Community Partnership Ltd,M18C,Adult Social Care Operations,Supplies and Services,"3,754.99",May-22
Slough Borough Council,1162,Care Uk Community Partnership Ltd,M18C,Adult Social Care Operations,Supplies and Services,"3,919.61",May-22
Slough Borough Council,1162,Care Uk Community Partnership Ltd,M18C,Adult Social Care Operations,Supplies and Services,"2,959.07",May-22
Slough Borough Council,1162,Care Uk Community Partnership Ltd,M18C,Adult Social Care Operations,Supplies and Services,"1,446.03",May-22
Slough Borough Council,1162,Care Uk Community Partnership Ltd,M18C,Adult Social Care Operations,Supplies and Services,"3,754.99",May-22
Slough Borough Council,1162,Care Uk Community Partnership Ltd,M18C,Adult Social Care Operations,Supplies and Services,"-19,719.81",May-22
Slough Borough Council,1162,Care Uk Community Partnership Ltd,M18C,Adult Social Care Operations,Supplies and Services,"3,919.61",May-22
Slough Borough Council,1162,Care Uk Community Partnership Ltd,M18C,Adult Social Care Operations,Supplies and Services,"3,919.61",May-22
Slough Borough Council,1162,Care Uk Community Partnership Ltd,M18C,Adult Social Care Operations,Supplies and Services,"2,440.42",May-22
Slough Borough Council,1162,Care Uk Community Partnership Ltd,M18C,Adult Social Care Operations,Supplies and Services,"3,754.99",May-22
Slough Borough Council,1162,Care Uk Community Partnership Ltd,M18C,Adult Social Care Operations,Supplies and Services,"3,803.00",May-22
Slough Borough Council,1162,Care Uk Community Partnership Ltd,M18C,Adult Social Care Operations,Supplies and Services,"3,803.00",May-22
Slough Borough Council,1162,Care Uk Community Partnership Ltd,M18C,Adult Social Care Operations,Supplies and Services,"3,803.00",May-22
Slough Borough Council,1162,Care Uk Community Partnership Ltd,M18C,Adult Social Care Operations,Supplies and Services,"3,969.72",May-22
Slough Borough Council,1162,Care Uk Community Partnership Ltd,M18C,Adult Social Care Operations,Supplies and Services,"3,803.00",May-22
Slough Borough Council,1162,Care Uk Community Partnership Ltd,M18C,Adult Social Care Operations,Supplies and Services,"3,803.00",May-22
Slough Borough Council,1162,Care Uk Community Partnership Ltd,M18C,Adult Social Care Operations,Supplies and Services,"3,803.00",May-22
Slough Borough Council,1162,Care Uk Community Partnership Ltd,M18C,Adult Social Care Operations,Supplies and Services,"3,803.00",May-22
Slough Borough Council,1162,Care Uk Community Partnership Ltd,M18C,Adult Social Care Operations,Supplies and Services,"-34,226.68",May-22
Slough Borough Council,1162,Care Uk Community Partnership Ltd,M18C,Adult Social Care Operations,Supplies and Services,"3,803.00",May-22
Slough Borough Council,1162,Care Uk Community Partnership Ltd,M18C,Adult Social Care Operations,Supplies and Services,"3,803.00",May-22
Slough Borough Council,1162,Care Uk Community Partnership Ltd,M18C,Adult Social Care Operations,Supplies and Services,"3,969.72",May-22
Slough Borough Council,1162,Care Uk Community Partnership Ltd,M18C,Adult Social Care Operations,Supplies and Services,"3,803.00",May-22
Slough Borough Council,1162,Care Uk Community Partnership Ltd,M18C,Adult Social Care Operations,Supplies and Services,"3,803.00",May-22
Slough Borough Council,1162,Care Uk Community Partnership Ltd,M18C,Adult Social Care Operations,Supplies and Services,"3,803.00",May-22
Slough Borough Council,1162,Care Uk Community Partnership Ltd,M18C,Adult Social Care Operations,Supplies and Services,"3,803.00",May-22
Slough Borough Council,1162,Care Uk Community Partnership Ltd,M18C,Adult Social Care Operations,Supplies and Services,"3,969.72",May-22
Slough Borough Council,1162,Care Uk Community Partnership Ltd,M18C,Adult Social Care Operations,Supplies and Services,"3,803.00",May-22
Slough Borough Council,1162,Care Uk Community Partnership Ltd,M18C,Adult Social Care Operations,Supplies and Services,"3,969.72",May-22
Slough Borough Council,1162,Care Uk Community Partnership Ltd,M18C,Adult Social Care Operations,Supplies and Services,"64,651.00",May-22
Slough Borough Council,1162,Care Uk Community Partnership Ltd,M18C,Adult Social Care Operations,Supplies and Services,"3,969.72",May-22
Slough Borough Council,1162,Care Uk Community Partnership Ltd,M18C,Adult Social Care Operations,Supplies and Services,"-13,594.60",May-22
Slough Borough Council,1162,Care Uk Community Partnership Ltd,M18C,Adult Social Care Operations,Supplies and Services,"3,803.00",May-22
Slough Borough Council,1162,Care Uk Community Partnership Ltd,M18C,Adult Social Care Operations,Supplies and Services,"3,803.00",May-22
Slough Borough Council,1162,Care Uk Community Partnership Ltd,M18C,Adult Social Care Operations,Supplies and Services,"3,969.72",May-22
Slough Borough Council,1162,Care Uk Community Partnership Ltd,M18C,Adult Social Care Operations,Supplies and Services,"3,969.72",May-22
Slough Borough Council,1162,Care Uk Community Partnership Ltd,M18C,Adult Social Care Operations,Supplies and Services,"3,544.39",May-22
Slough Borough Council,1162,Care Uk Community Partnership Ltd,M25C,Adult Social Care Operations,Supplies and Services,"-30,014.40",May-22
Slough Borough Council,1162,Care Uk Community Partnership Ltd,M25C,Adult Social Care Operations,Supplies and Services,"3,440.53",May-22
Slough Borough Council,1162,Care Uk Community Partnership Ltd,M25C,Adult Social Care Operations,Supplies and Services,"3,440.53",May-22
Slough Borough Council,1162,Care Uk Community Partnership Ltd,M25C,Adult Social Care Operations,Supplies and Services,"61,929.65",May-22
Slough Borough Council,1162,Care Uk Community Partnership Ltd,M25C,Adult Social Care Operations,Supplies and Services,"3,440.53",May-22
Slough Borough Council,1162,Care Uk Community Partnership Ltd,M25C,Adult Social Care Operations,Supplies and Services,"3,440.53",May-22
Slough Borough Council,1162,Care Uk Community Partnership Ltd,M25C,Adult Social Care Operations,Supplies and Services,"3,440.53",May-22
Slough Borough Council,1162,Care Uk Community Partnership Ltd,M25C,Adult Social Care Operations,Supplies and Services,"3,440.53",May-22
Slough Borough Council,1162,Care Uk Community Partnership Ltd,M25C,Adult Social Care Operations,Supplies and Services,"3,484.52",May-22
Slough Borough Council,1162,Care Uk Community Partnership Ltd,M25C,Adult Social Care Operations,Supplies and Services,"-20,906.56",May-22
Slough Borough Council,1162,Care Uk Community Partnership Ltd,M25C,Adult Social Care Operations,Supplies and Services,"3,484.52",May-22
Slough Borough Council,1162,Care Uk Community Partnership Ltd,M25C,Adult Social Care Operations,Supplies and Services,"3,484.52",May-22
Slough Borough Council,1162,Care Uk Community Partnership Ltd,M25C,Adult Social Care Operations,Supplies and Services,"3,484.52",May-22
Slough Borough Council,1162,Care Uk Community Partnership Ltd,M25C,Adult Social Care Operations,Supplies and Services,"3,484.52",May-22
Slough Borough Council,1162,Care Uk Community Partnership Ltd,M25C,Adult Social Care Operations,Supplies and Services,"3,484.52",May-22
Slough Borough Council,1162,Care Uk Community Partnership Ltd,M25C,Adult Social Care Operations,Supplies and Services,"65,832.54",May-22
Slough Borough Council,1162,Care Uk Community Partnership Ltd,M26E,Adult Social Care Operations,Supplies and Services,"3,754.99",May-22
Slough Borough Council,1162,Care Uk Community Partnership Ltd,M26E,Adult Social Care Operations,Supplies and Services,"3,754.99",May-22
Slough Borough Council,1162,Care Uk Community Partnership Ltd,M26E,Adult Social Care Operations,Supplies and Services,"3,803.00",May-22
Slough Borough Council,1162,Care Uk Community Partnership Ltd,M26E,Adult Social Care Operations,Supplies and Services,"3,803.00",May-22
Slough Borough Council,1162,Care Uk Community Partnership Ltd,M27C,Adult Social Care Operations,Supplies and Services,"-5,385.71",May-22
Slough Borough Council,1162,Care Uk Community Partnership Ltd,M27C,Adult Social Care Operations,Supplies and Services,"5,757.14",May-22
Slough Borough Council,1162,Care Uk Community Partnership Ltd,M27C,Adult Social Care Operations,Supplies and Services,"5,285.17",May-22
Slough Borough Council,1162,Care Uk Community Partnership Ltd,M27C,Adult Social Care Operations,Supplies and Services,"4,800.00",May-22
Slough Borough Council,1162,Care Uk Community Partnership Ltd,M27C,Adult Social Care Operations,Supplies and Services,"5,314.29",May-22
Slough Borough Council,1162,Care Uk Community Partnership Ltd,M27C,Adult Social Care Operations,Supplies and Services,"5,142.86",May-22
Slough Borough Council,1162,Care Uk Community Partnership Ltd,M27C,Adult Social Care Operations,Supplies and Services,"5,314.29",May-22
Slough Borough Council,1162,Care Uk Community Partnership Ltd,M27C,Adult Social Care Operations,Supplies and Services,"3,141.23",May-22
Slough Borough Council,1162,Care Uk Community Partnership Ltd,M27C,Adult Social Care Operations,Supplies and Services,"3,440.53",May-22
Slough Borough Council,1162,Care Uk Community Partnership Ltd,M27C,Adult Social Care Operations,Supplies and Services,"3,141.23",May-22
Slough Borough Council,1162,Care Uk Community Partnership Ltd,M27C,Adult Social Care Operations,Supplies and Services,"3,440.53",May-22
Slough Borough Council,1162,Care Uk Community Partnership Ltd,M27C,Adult Social Care Operations,Supplies and Services,"3,440.53",May-22
Slough Borough Council,1162,Care Uk Community Partnership Ltd,M27C,Adult Social Care Operations,Supplies and Services,"3,440.53",May-22
Slough Borough Council,1162,Care Uk Community Partnership Ltd,M27C,Adult Social Care Operations,Supplies and Services,"3,440.53",May-22
Slough Borough Council,1162,Care Uk Community Partnership Ltd,M27C,Adult Social Care Operations,Supplies and Services,"3,440.53",May-22
Slough Borough Council,1162,Care Uk Community Partnership Ltd,M27C,Adult Social Care Operations,Supplies and Services,602.24,May-22
Slough Borough Council,1162,Care Uk Community Partnership Ltd,M27C,Adult Social Care Operations,Supplies and Services,"3,440.53",May-22
Slough Borough Council,1162,Care Uk Community Partnership Ltd,M27C,Adult Social Care Operations,Supplies and Services,"3,440.53",May-22
Slough Borough Council,1162,Care Uk Community Partnership Ltd,M27C,Adult Social Care Operations,Supplies and Services,"3,141.23",May-22
Slough Borough Council,1162,Care Uk Community Partnership Ltd,M27C,Adult Social Care Operations,Supplies and Services,"3,440.53",May-22
Slough Borough Council,1162,Care Uk Community Partnership Ltd,M27C,Adult Social Care Operations,Supplies and Services,"1,822.72",May-22
Slough Borough Council,1162,Care Uk Community Partnership Ltd,M27C,Adult Social Care Operations,Supplies and Services,"30,422.61",May-22
Slough Borough Council,1162,Care Uk Community Partnership Ltd,M27C,Adult Social Care Operations,Supplies and Services,989.73,May-22
Slough Borough Council,1162,Care Uk Community Partnership Ltd,M27C,Adult Social Care Operations,Supplies and Services,"3,440.53",May-22
Slough Borough Council,1162,Care Uk Community Partnership Ltd,M27C,Adult Social Care Operations,Supplies and Services,"3,440.53",May-22
Slough Borough Council,1162,Care Uk Community Partnership Ltd,M27C,Adult Social Care Operations,Supplies and Services,"3,141.23",May-22
Slough Borough Council,1162,Care Uk Community Partnership Ltd,M27C,Adult Social Care Operations,Supplies and Services,"3,440.53",May-22
Slough Borough Council,1162,Care Uk Community Partnership Ltd,M27C,Adult Social Care Operations,Supplies and Services,"3,141.23",May-22
Slough Borough Council,1162,Care Uk Community Partnership Ltd,M27C,Adult Social Care Operations,Supplies and Services,"3,484.52",May-22
Slough Borough Council,1162,Care Uk Community Partnership Ltd,M27C,Adult Social Care Operations,Supplies and Services,"3,181.40",May-22
Slough Borough Council,1162,Care Uk Community Partnership Ltd,M27C,Adult Social Care Operations,Supplies and Services,"3,484.52",May-22
Slough Borough Council,1162,Care Uk Community Partnership Ltd,M27C,Adult Social Care Operations,Supplies and Services,"3,181.40",May-22
Slough Borough Council,1162,Care Uk Community Partnership Ltd,M27C,Adult Social Care Operations,Supplies and Services,"3,484.52",May-22
Slough Borough Council,1162,Care Uk Community Partnership Ltd,M27C,Adult Social Care Operations,Supplies and Services,"3,484.52",May-22
Slough Borough Council,1162,Care Uk Community Partnership Ltd,M27C,Adult Social Care Operations,Supplies and Services,"3,484.52",May-22
Slough Borough Council,1162,Care Uk Community Partnership Ltd,M27C,Adult Social Care Operations,Supplies and Services,"3,484.52",May-22
Slough Borough Council,1162,Care Uk Community Partnership Ltd,M27C,Adult Social Care Operations,Supplies and Services,"3,484.52",May-22
Slough Borough Council,1162,Care Uk Community Partnership Ltd,M27C,Adult Social Care Operations,Supplies and Services,"3,181.40",May-22
Slough Borough Council,1162,Care Uk Community Partnership Ltd,M27C,Adult Social Care Operations,Supplies and Services,"3,181.40",May-22
Slough Borough Council,1162,Care Uk Community Partnership Ltd,M27C,Adult Social Care Operations,Supplies and Services,"-3,181.40",May-22
Slough Borough Council,1162,Care Uk Community Partnership Ltd,M27C,Adult Social Care Operations,Supplies and Services,"34,654.54",May-22
Slough Borough Council,1162,Care Uk Community Partnership Ltd,M27C,Adult Social Care Operations,Supplies and Services,"3,484.52",May-22
Slough Borough Council,1162,Care Uk Community Partnership Ltd,M27C,Adult Social Care Operations,Supplies and Services,"3,484.52",May-22
Slough Borough Council,1162,Care Uk Community Partnership Ltd,M27C,Adult Social Care Operations,Supplies and Services,"3,484.52",May-22
Slough Borough Council,1162,Care Uk Community Partnership Ltd,M27C,Adult Social Care Operations,Supplies and Services,"3,484.52",May-22
Slough Borough Council,1162,Care Uk Community Partnership Ltd,M27F,Adult Social Care Operations,Supplies and Services,"3,141.23",May-22
Slough Borough Council,1162,Care Uk Community Partnership Ltd,M27F,Adult Social Care Operations,Supplies and Services,"3,181.40",May-22
Slough Borough Council,1162,Care Uk Community Partnership Ltd,M28C,Adult Social Care Operations,Supplies and Services,"3,141.23",May-22
Slough Borough Council,1162,Care Uk Community Partnership Ltd,M28C,Adult Social Care Operations,Supplies and Services,"1,249.84",May-22
Slough Borough Council,1162,Care Uk Community Partnership Ltd,M28C,Adult Social Care Operations,Supplies and Services,"2,957.52",May-22
Slough Borough Council,1162,Care Uk Community Partnership Ltd,M28C,Adult Social Care Operations,Supplies and Services,"2,744.68",May-22
Slough Borough Council,1162,Care Uk Community Partnership Ltd,M29C,Adult Social Care Operations,Supplies and Services,"2,456.96",May-22
Slough Borough Council,418,Castleview School,E620,Children & Families,Supplies and Services,"34,623.65",May-22
Slough Borough Council,3609,Centurion Healthcare Ltd,M26E,Adult Social Care Operations,Supplies and Services,"6,031.67",May-22
Slough Borough Council,805174,Certas Energy,D900,Place Operations,Supplies and Services,705.00,May-22
Slough Borough Council,805174,Certas Energy,D910,Place Operations,Supplies and Services,"2,788.80",May-22
Slough Borough Council,2892,Chalfont Lodge,M15D,Adult Social Care Operations,Supplies and Services,"5,978.57",May-22
Slough Borough Council,2892,Chalfont Lodge,M15D,Adult Social Care Operations,Supplies and Services,"3,321.43",May-22
Slough Borough Council,2892,Chalfont Lodge,M15F,Adult Social Care Operations,Supplies and Services,"8,857.14",May-22
Slough Borough Council,2892,Chalfont Lodge,M26E,Adult Social Care Operations,Supplies and Services,"5,978.57",May-22
Slough Borough Council,2608,Chandos Lodge Nursing Home,M18C,Adult Social Care Operations,Supplies and Services,"3,600.00",May-22
Slough Borough Council,1877,Chelsie Innes,C322,Communities and Leisure,Supplies and Services,"2,961.00",May-22
Slough Borough Council,3114,Cherry Trees Day Nursery,F909,Children & Families,Supplies and Services,525.00,May-22
Slough Borough Council,3114,Cherry Trees Day Nursery,F909,Children & Families,Supplies and Services,"26,273.52",May-22
Slough Borough Council,2871,Cherry Trees Residential Care,M42F,Adult Social Care Operations,Supplies and Services,"1,660.71",May-22
Slough Borough Council,2871,Cherry Trees Residential Care,M42F,Adult Social Care Operations,Supplies and Services,"3,321.43",May-22
Slough Borough Council,2871,Cherry Trees Residential Care,M42F,Adult Social Care Operations,Supplies and Services,"3,321.43",May-22
Slough Borough Council,803495,Christchurch Court Ltd,M15D,Adult Social Care Operations,Supplies and Services,"8,859.80",May-22
Slough Borough Council,503,Cipfa,L504,Treasury Management,Supplies and Services,"2,925.00",May-22
Slough Borough Council,503,Cipfa,L504,Treasury Management,Supplies and Services,"9,750.00",May-22
Slough Borough Council,503,Cipfa,L504,Treasury Management,Supplies and Services,"6,825.00",May-22
Slough Borough Council,807491,Cippenham School,E620,Children & Families,Supplies and Services,"21,375.02",May-22
Slough Borough Council,806550,City Homecare Ltd,A07R,Adult Social Care Operations,Supplies and Services,"1,058.40",May-22
Slough Borough Council,806550,City Homecare Ltd,A07R,Adult Social Care Operations,Supplies and Services,"1,058.40",May-22
Slough Borough Council,806550,City Homecare Ltd,A07R,Adult Social Care Operations,Supplies and Services,"1,134.00",May-22
Slough Borough Council,806550,City Homecare Ltd,A07R,Adult Social Care Operations,Supplies and Services,"1,058.40",May-22
Slough Borough Council,806550,City Homecare Ltd,A07R,Adult Social Care Operations,Supplies and Services,"3,175.20",May-22
Slough Borough Council,806550,City Homecare Ltd,A07R,Adult Social Care Operations,Supplies and Services,840.00,May-22
Slough Borough Council,806550,City Homecare Ltd,M41D,Adult Social Care Operations,Supplies and Services,823.20,May-22
Slough Borough Council,806550,City Homecare Ltd,M44C,Adult Social Care Operations,Supplies and Services,823.20,May-22
Slough Borough Council,806550,City Homecare Ltd,M44C,Adult Social Care Operations,Supplies and Services,"2,116.80",May-22
Slough Borough Council,806550,City Homecare Ltd,M44C,Adult Social Care Operations,Supplies and Services,"2,553.60",May-22
Slough Borough Council,806550,City Homecare Ltd,M44C,Adult Social Care Operations,Supplies and Services,772.80,May-22
Slough Borough Council,806550,City Homecare Ltd,M44C,Adult Social Care Operations,Supplies and Services,877.80,May-22
Slough Borough Council,806550,City Homecare Ltd,M44C,Adult Social Care Operations,Supplies and Services,823.20,May-22
Slough Borough Council,806550,City Homecare Ltd,M44C,Adult Social Care Operations,Supplies and Services,"1,764.00",May-22
Slough Borough Council,806550,City Homecare Ltd,M44C,Adult Social Care Operations,Supplies and Services,667.80,May-22
Slough Borough Council,806550,City Homecare Ltd,M44C,Adult Social Care Operations,Supplies and Services,638.40,May-22
Slough Borough Council,806550,City Homecare Ltd,M44C,Adult Social Care Operations,Supplies and Services,"1,512.00",May-22
Slough Borough Council,806550,City Homecare Ltd,M44C,Adult Social Care Operations,Supplies and Services,"2,822.40",May-22
Slough Borough Council,806550,City Homecare Ltd,M44C,Adult Social Care Operations,Supplies and Services,"2,116.80",May-22
Slough Borough Council,806550,City Homecare Ltd,M44C,Adult Social Care Operations,Supplies and Services,"2,083.20",May-22
Slough Borough Council,806550,City Homecare Ltd,M44C,Adult Social Care Operations,Supplies and Services,"2,116.80",May-22
Slough Borough Council,806550,City Homecare Ltd,M44C,Adult Social Care Operations,Supplies and Services,"1,957.20",May-22
Slough Borough Council,806550,City Homecare Ltd,M44C,Adult Social Care Operations,Supplies and Services,682.08,May-22
Slough Borough Council,806550,City Homecare Ltd,M44C,Adult Social Care Operations,Supplies and Services,"1,885.00",May-22
Slough Borough Council,806550,City Homecare Ltd,M44D,Adult Social Care Operations,Supplies and Services,924.00,May-22
Slough Borough Council,806550,City Homecare Ltd,M44D,Adult Social Care Operations,Supplies and Services,781.20,May-22
Slough Borough Council,806550,City Homecare Ltd,M44D,Adult Social Care Operations,Supplies and Services,"1,293.60",May-22
Slough Borough Council,806550,City Homecare Ltd,M44E,Adult Social Care Operations,Supplies and Services,705.60,May-22
Slough Borough Council,806550,City Homecare Ltd,M44E,Adult Social Care Operations,Supplies and Services,705.60,May-22
Slough Borough Council,806550,City Homecare Ltd,M44E,Adult Social Care Operations,Supplies and Services,705.60,May-22
Slough Borough Council,806550,City Homecare Ltd,M44E,Adult Social Care Operations,Supplies and Services,705.60,May-22
Slough Borough Council,806550,City Homecare Ltd,M48C,Adult Social Care Operations,Supplies and Services,554.40,May-22
Slough Borough Council,806550,City Homecare Ltd,M48C,Adult Social Care Operations,Supplies and Services,588.00,May-22
Slough Borough Council,1151,Claycots Primary School,E200,Children & Families,Supplies and Services,"746,334.29",May-22
Slough Borough Council,3685,Coghlan Lodges Limited,M44D,Adult Social Care Operations,Supplies and Services,"2,116.04",May-22
Slough Borough Council,3685,Coghlan Lodges Limited,M44F,Adult Social Care Operations,Supplies and Services,"1,870.00",May-22
Slough Borough Council,808369,Cohen Care,B324,Finance,Government Grants,"3,586.46",May-22
Slough Borough Council,805823,Collaborative Care Solutions,M42E,Adult Social Care Operations,Supplies and Services,"9,211.42",May-22
Slough Borough Council,805823,Collaborative Care Solutions,M42E,Adult Social Care Operations,Supplies and Services,"8,857.14",May-22
Slough Borough Council,805823,Collaborative Care Solutions,M42E,Adult Social Care Operations,Supplies and Services,"9,477.14",May-22
Slough Borough Council,805823,Collaborative Care Solutions,M42E,Adult Social Care Operations,Supplies and Services,"8,571.42",May-22
Slough Borough Council,805823,Collaborative Care Solutions,M42E,Adult Social Care Operations,Supplies and Services,"9,171.42",May-22
Slough Borough Council,805823,Collaborative Care Solutions,M42E,Adult Social Care Operations,Supplies and Services,"8,914.28",May-22
Slough Borough Council,805823,Collaborative Care Solutions,M42F,Adult Social Care Operations,Supplies and Services,"2,971.57",May-22
Slough Borough Council,805823,Collaborative Care Solutions,M42F,Adult Social Care Operations,Supplies and Services,"2,657.14",May-22
Slough Borough Council,805823,Collaborative Care Solutions,M42F,Adult Social Care Operations,Supplies and Services,"2,571.42",May-22
Slough Borough Council,805823,Collaborative Care Solutions,M44D,Adult Social Care Operations,Supplies and Services,"9,211.42",May-22
Slough Borough Council,805823,Collaborative Care Solutions,M44D,Adult Social Care Operations,Supplies and Services,"8,914.28",May-22
Slough Borough Council,805823,Collaborative Care Solutions,M44F,Adult Social Care Operations,Supplies and Services,"4,317.85",May-22
Slough Borough Council,805823,Collaborative Care Solutions,M44F,Adult Social Care Operations,Supplies and Services,"4,982.14",May-22
Slough Borough Council,805823,Collaborative Care Solutions,M44F,Adult Social Care Operations,Supplies and Services,"4,317.85",May-22
Slough Borough Council,805823,Collaborative Care Solutions,M44F,Adult Social Care Operations,Supplies and Services,"4,178.75",May-22
Slough Borough Council,805823,Collaborative Care Solutions,M44F,Adult Social Care Operations,Supplies and Services,"3,365.71",May-22
Slough Borough Council,805823,Collaborative Care Solutions,M44F,Adult Social Care Operations,Supplies and Services,"3,257.14",May-22
Slough Borough Council,805823,Collaborative Care Solutions,M44F,Adult Social Care Operations,Supplies and Services,"4,178.57",May-22
Slough Borough Council,805823,Collaborative Care Solutions,M44F,Adult Social Care Operations,Supplies and Services,"4,178.57",May-22
Slough Borough Council,286,Colnbrook C Of E Primary School,E620,Children & Families,Supplies and Services,"14,394.59",May-22
Slough Borough Council,2535,Comfort Care Services,M42E,Adult Social Care Operations,Supplies and Services,750.00,May-22
Slough Borough Council,2535,Comfort Care Services,M42E,Adult Social Care Operations,Supplies and Services,"1,128.21",May-22
Slough Borough Council,2535,Comfort Care Services,M42E,Adult Social Care Operations,Supplies and Services,546.00,May-22
Slough Borough Council,2535,Comfort Care Services,M42E,Adult Social Care Operations,Supplies and Services,"2,503.63",May-22
Slough Borough Council,2535,Comfort Care Services,M42E,Adult Social Care Operations,Supplies and Services,"2,250.00",May-22
Slough Borough Council,2535,Comfort Care Services,M42E,Adult Social Care Operations,Supplies and Services,"3,089.06",May-22
Slough Borough Council,2535,Comfort Care Services,M42E,Adult Social Care Operations,Supplies and Services,"2,550.00",May-22
Slough Borough Council,2535,Comfort Care Services,M42E,Adult Social Care Operations,Supplies and Services,"1,489.24",May-22
Slough Borough Council,2535,Comfort Care Services,M42E,Adult Social Care Operations,Supplies and Services,"3,192.03",May-22
Slough Borough Council,2535,Comfort Care Services,M42E,Adult Social Care Operations,Supplies and Services,775.00,May-22
Slough Borough Council,2535,Comfort Care Services,M42E,Adult Social Care Operations,Supplies and Services,564.20,May-22
Slough Borough Council,2535,Comfort Care Services,M42E,Adult Social Care Operations,Supplies and Services,"1,165.82",May-22
Slough Borough Council,2535,Comfort Care Services,M42E,Adult Social Care Operations,Supplies and Services,"2,587.09",May-22
Slough Borough Council,2535,Comfort Care Services,M42E,Adult Social Care Operations,Supplies and Services,775.00,May-22
Slough Borough Council,2535,Comfort Care Services,M42F,Adult Social Care Operations,Supplies and Services,"2,550.00",May-22
Slough Borough Council,2535,Comfort Care Services,M42F,Adult Social Care Operations,Supplies and Services,812.14,May-22
Slough Borough Council,2535,Comfort Care Services,M42F,Adult Social Care Operations,Supplies and Services,"1,430.31",May-22
Slough Borough Council,2535,Comfort Care Services,M42F,Adult Social Care Operations,Supplies and Services,"2,550.00",May-22
Slough Borough Council,2535,Comfort Care Services,M42F,Adult Social Care Operations,Supplies and Services,"2,550.00",May-22
Slough Borough Council,2535,Comfort Care Services,M42F,Adult Social Care Operations,Supplies and Services,"2,550.00",May-22
Slough Borough Council,2535,Comfort Care Services,M42F,Adult Social Care Operations,Supplies and Services,"3,768.21",May-22
Slough Borough Council,2535,Comfort Care Services,M42F,Adult Social Care Operations,Supplies and Services,"2,550.00",May-22
Slough Borough Council,2535,Comfort Care Services,M42F,Adult Social Care Operations,Supplies and Services,"3,362.14",May-22
Slough Borough Council,2535,Comfort Care Services,M42F,Adult Social Care Operations,Supplies and Services,"1,258.84",May-22
Slough Borough Council,2535,Comfort Care Services,M42F,Adult Social Care Operations,Supplies and Services,974.57,May-22
Slough Borough Council,2535,Comfort Care Services,M42F,Adult Social Care Operations,Supplies and Services,"1,579.50",May-22
Slough Borough Council,2535,Comfort Care Services,M42F,Adult Social Care Operations,Supplies and Services,"1,258.84",May-22
Slough Borough Council,2535,Comfort Care Services,M42F,Adult Social Care Operations,Supplies and Services,812.14,May-22
Slough Borough Council,2535,Comfort Care Services,M42F,Adult Social Care Operations,Supplies and Services,"2,550.00",May-22
Slough Borough Council,2535,Comfort Care Services,M42F,Adult Social Care Operations,Supplies and Services,812.14,May-22
Slough Borough Council,2535,Comfort Care Services,M42F,Adult Social Care Operations,Supplies and Services,"2,292.86",May-22
Slough Borough Council,2535,Comfort Care Services,M42F,Adult Social Care Operations,Supplies and Services,"3,893.82",May-22
Slough Borough Council,2535,Comfort Care Services,M42F,Adult Social Care Operations,Supplies and Services,839.21,May-22
Slough Borough Council,2535,Comfort Care Services,M42F,Adult Social Care Operations,Supplies and Services,"2,635.00",May-22
Slough Borough Council,2535,Comfort Care Services,M42F,Adult Social Care Operations,Supplies and Services,"2,635.00",May-22
Slough Borough Council,2535,Comfort Care Services,M42F,Adult Social Care Operations,Supplies and Services,"1,477.99",May-22
Slough Borough Council,2535,Comfort Care Services,M42F,Adult Social Care Operations,Supplies and Services,839.21,May-22
Slough Borough Council,2535,Comfort Care Services,M42F,Adult Social Care Operations,Supplies and Services,"1,007.06",May-22
Slough Borough Council,2535,Comfort Care Services,M42F,Adult Social Care Operations,Supplies and Services,"2,635.00",May-22
Slough Borough Council,2535,Comfort Care Services,M42F,Adult Social Care Operations,Supplies and Services,839.21,May-22
Slough Borough Council,2535,Comfort Care Services,M44C,Adult Social Care Operations,Supplies and Services,"2,274.00",May-22
Slough Borough Council,2535,Comfort Care Services,M44E,Adult Social Care Operations,Supplies and Services,"2,072.57",May-22
Slough Borough Council,2535,Comfort Care Services,M44E,Adult Social Care Operations,Supplies and Services,"4,317.64",May-22
Slough Borough Council,2535,Comfort Care Services,M44E,Adult Social Care Operations,Supplies and Services,"2,141.66",May-22
Slough Borough Council,2535,Comfort Care Services,M44E,Adult Social Care Operations,Supplies and Services,"4,461.56",May-22
Slough Borough Council,2535,Comfort Care Services,M44F,Adult Social Care Operations,Supplies and Services,"1,275.00",May-22
Slough Borough Council,2535,Comfort Care Services,M44F,Adult Social Care Operations,Supplies and Services,"1,275.00",May-22
Slough Borough Council,2535,Comfort Care Services,M44F,Adult Social Care Operations,Supplies and Services,"3,362.14",May-22
Slough Borough Council,2535,Comfort Care Services,M44F,Adult Social Care Operations,Supplies and Services,"2,550.00",May-22
Slough Borough Council,2535,Comfort Care Services,M44F,Adult Social Care Operations,Supplies and Services,"1,275.00",May-22
Slough Borough Council,2535,Comfort Care Services,M44F,Adult Social Care Operations,Supplies and Services,"2,843.10",May-22
Slough Borough Council,2535,Comfort Care Services,M44F,Adult Social Care Operations,Supplies and Services,"3,249.17",May-22
Slough Borough Council,2535,Comfort Care Services,M44F,Adult Social Care Operations,Supplies and Services,"2,292.86",May-22
Slough Borough Council,2535,Comfort Care Services,M44F,Adult Social Care Operations,Supplies and Services,"1,275.00",May-22
Slough Borough Council,2535,Comfort Care Services,M44F,Adult Social Care Operations,Supplies and Services,"2,937.87",May-22
Slough Borough Council,2535,Comfort Care Services,M44F,Adult Social Care Operations,Supplies and Services,"1,317.50",May-22
Slough Borough Council,2535,Comfort Care Services,M44F,Adult Social Care Operations,Supplies and Services,503.53,May-22
Slough Borough Council,2535,Comfort Care Services,M44F,Adult Social Care Operations,Supplies and Services,"3,474.21",May-22
Slough Borough Council,2535,Comfort Care Services,M81D,Adult Social Care Operations,Supplies and Services,"2,550.00",May-22
Slough Borough Council,807005,Complete Background Screening Ltd,B348,People,Supplies and Services,756.00,May-22
Slough Borough Council,1772,Computershare Voucher Services,B348,People,Supplies and Services,"2,857.00",May-22
Slough Borough Council,807468,"Connect Managed Services (UK) Ltd, trading as Conn3ct",A106,Customer,Supplies and Services,"2,556.93",May-22
Slough Borough Council,3290,Corporate Collections London Borough Of Hillingdon,M26E,Adult Social Care Operations,Supplies and Services,"1,632.40",May-22
Slough Borough Council,3290,Corporate Collections London Borough Of Hillingdon,M26E,Adult Social Care Operations,Supplies and Services,"1,632.40",May-22
Slough Borough Council,3290,Corporate Collections London Borough Of Hillingdon,M26E,Adult Social Care Operations,Supplies and Services,"1,632.40",May-22
Slough Borough Council,3290,Corporate Collections London Borough Of Hillingdon,M26E,Adult Social Care Operations,Supplies and Services,"1,881.76",May-22
Slough Borough Council,3290,Corporate Collections London Borough Of Hillingdon,M26E,Adult Social Care Operations,Supplies and Services,"1,632.40",May-22
Slough Borough Council,3290,Corporate Collections London Borough Of Hillingdon,M26E,Adult Social Care Operations,Supplies and Services,"1,632.40",May-22
Slough Borough Council,3290,Corporate Collections London Borough Of Hillingdon,M26E,Adult Social Care Operations,Supplies and Services,"1,632.40",May-22
Slough Borough Council,3290,Corporate Collections London Borough Of Hillingdon,M26E,Adult Social Care Operations,Supplies and Services,"1,632.40",May-22
Slough Borough Council,3290,Corporate Collections London Borough Of Hillingdon,M26E,Adult Social Care Operations,Supplies and Services,"1,632.40",May-22
Slough Borough Council,3290,Corporate Collections London Borough Of Hillingdon,M26E,Adult Social Care Operations,Supplies and Services,"1,632.40",May-22
Slough Borough Council,3290,Corporate Collections London Borough Of Hillingdon,M26E,Adult Social Care Operations,Supplies and Services,"1,632.40",May-22
Slough Borough Council,3290,Corporate Collections London Borough Of Hillingdon,M26E,Adult Social Care Operations,Supplies and Services,"1,632.40",May-22
Slough Borough Council,3290,Corporate Collections London Borough Of Hillingdon,M26E,Adult Social Care Operations,Supplies and Services,"1,632.40",May-22
Slough Borough Council,3290,Corporate Collections London Borough Of Hillingdon,M26E,Adult Social Care Operations,Supplies and Services,"1,632.40",May-22
Slough Borough Council,3290,Corporate Collections London Borough Of Hillingdon,M26E,Adult Social Care Operations,Supplies and Services,"1,632.40",May-22
Slough Borough Council,3290,Corporate Collections London Borough Of Hillingdon,M26E,Adult Social Care Operations,Supplies and Services,"1,632.40",May-22
Slough Borough Council,3290,Corporate Collections London Borough Of Hillingdon,M26E,Adult Social Care Operations,Supplies and Services,"1,632.40",May-22
Slough Borough Council,3290,Corporate Collections London Borough Of Hillingdon,M26E,Adult Social Care Operations,Supplies and Services,"1,632.40",May-22
Slough Borough Council,3290,Corporate Collections London Borough Of Hillingdon,M26E,Adult Social Care Operations,Supplies and Services,"1,632.40",May-22
Slough Borough Council,3290,Corporate Collections London Borough Of Hillingdon,M26E,Adult Social Care Operations,Supplies and Services,"1,632.40",May-22
Slough Borough Council,3290,Corporate Collections London Borough Of Hillingdon,M26E,Adult Social Care Operations,Supplies and Services,"1,632.40",May-22
Slough Borough Council,3290,Corporate Collections London Borough Of Hillingdon,M26E,Adult Social Care Operations,Supplies and Services,"1,632.40",May-22
Slough Borough Council,3290,Corporate Collections London Borough Of Hillingdon,M26E,Adult Social Care Operations,Supplies and Services,"1,632.40",May-22
Slough Borough Council,3290,Corporate Collections London Borough Of Hillingdon,M26E,Adult Social Care Operations,Supplies and Services,"1,632.40",May-22
Slough Borough Council,3290,Corporate Collections London Borough Of Hillingdon,M26E,Adult Social Care Operations,Supplies and Services,"1,632.40",May-22
Slough Borough Council,3290,Corporate Collections London Borough Of Hillingdon,M26E,Adult Social Care Operations,Supplies and Services,"1,632.40",May-22
Slough Borough Council,3290,Corporate Collections London Borough Of Hillingdon,M26E,Adult Social Care Operations,Supplies and Services,"1,632.40",May-22
Slough Borough Council,3290,Corporate Collections London Borough Of Hillingdon,M26E,Adult Social Care Operations,Supplies and Services,"1,632.40",May-22
Slough Borough Council,3290,Corporate Collections London Borough Of Hillingdon,M26E,Adult Social Care Operations,Supplies and Services,"1,632.40",May-22
Slough Borough Council,3290,Corporate Collections London Borough Of Hillingdon,M26E,Adult Social Care Operations,Supplies and Services,"1,632.40",May-22
Slough Borough Council,805278,Countrystyle Recycling Ltd,D342,Place Operations,Supplies and Services,"2,330.00",May-22
Slough Borough Council,805278,Countrystyle Recycling Ltd,D342,Place Operations,Supplies and Services,"6,923.00",May-22
Slough Borough Council,3670,Craegmoor Birches Grove Priory,M27F,Adult Social Care Operations,Supplies and Services,"1,984.04",May-22
Slough Borough Council,3670,Craegmoor Birches Grove Priory,M27F,Adult Social Care Operations,Supplies and Services,"1,984.04",May-22
Slough Borough Council,3670,Craegmoor Birches Grove Priory,M27F,Adult Social Care Operations,Supplies and Services,"3,823.00",May-22
Slough Borough Council,1638,Creative Support Ltd,A02L,Adult Social Care Operations,Supplies and Services,"1,065.60",May-22
Slough Borough Council,1638,Creative Support Ltd,A02L,Adult Social Care Operations,Supplies and Services,"1,365.30",May-22
Slough Borough Council,1638,Creative Support Ltd,A02L,Adult Social Care Operations,Supplies and Services,599.40,May-22
Slough Borough Council,1638,Creative Support Ltd,M42E,Adult Social Care Operations,Supplies and Services,"1,182.15",May-22
Slough Borough Council,1638,Creative Support Ltd,M42E,Adult Social Care Operations,Supplies and Services,"2,214.45",May-22
Slough Borough Council,1638,Creative Support Ltd,M42E,Adult Social Care Operations,Supplies and Services,"3,013.65",May-22
Slough Borough Council,1638,Creative Support Ltd,M42E,Adult Social Care Operations,Supplies and Services,"6,993.00",May-22
Slough Borough Council,1638,Creative Support Ltd,M42E,Adult Social Care Operations,Supplies and Services,"2,021.04",May-22
Slough Borough Council,1638,Creative Support Ltd,M44E,Adult Social Care Operations,Supplies and Services,999.00,May-22
Slough Borough Council,1638,Creative Support Ltd,M44E,Adult Social Care Operations,Supplies and Services,"1,215.45",May-22
Slough Borough Council,1638,Creative Support Ltd,M44E,Adult Social Care Operations,Supplies and Services,699.30,May-22
Slough Borough Council,1638,Creative Support Ltd,M44E,Adult Social Care Operations,Supplies and Services,957.38,May-22
Slough Borough Council,1638,Creative Support Ltd,M44E,Adult Social Care Operations,Supplies and Services,932.40,May-22
Slough Borough Council,808207,Creese Consulting Limited,B276,Business Services,Premises,"2,876.25",May-22
Slough Borough Council,806983,Critiqom,B377,Finance & Commercial,Supplies and Services,700.00,May-22
Slough Borough Council,806983,Critiqom,H015,Finance & Commercial,Supplies and Services,651.48,May-22
Slough Borough Council,806983,Critiqom,H015,Finance & Commercial,Supplies and Services,"5,025.13",May-22
Slough Borough Council,806983,Critiqom,B377,Finance & Commercial,Supplies and Services,"5,124.98",May-22
Slough Borough Council,806983,Critiqom,B377,Finance & Commercial,Supplies and Services,620.88,May-22
Slough Borough Council,806983,Critiqom,H015,Finance & Commercial,Supplies and Services,"1,399.47",May-22
Slough Borough Council,806983,Critiqom,H015,Finance & Commercial,Supplies and Services,"1,684.35",May-22
Slough Borough Council,806983,Critiqom,H015,Finance & Commercial,Supplies and Services,"1,291.14",May-22
Slough Borough Council,806983,Critiqom,H015,Finance & Commercial,Supplies and Services,844.68,May-22
Slough Borough Council,806983,Critiqom,H015,Finance & Commercial,Supplies and Services,"1,762.01",May-22
Slough Borough Council,806983,Critiqom,H015,Finance & Commercial,Supplies and Services,993.96,May-22
Slough Borough Council,806983,Critiqom,H015,Finance & Commercial,Supplies and Services,"23,289.26",May-22
Slough Borough Council,806983,Critiqom,H015,Finance & Commercial,Supplies and Services,865.74,May-22
Slough Borough Council,806983,Critiqom,H015,Finance & Commercial,Supplies and Services,698.26,May-22
Slough Borough Council,806983,Critiqom,H015,Finance & Commercial,Supplies and Services,"1,115.32",May-22
Slough Borough Council,807288,David Allwood,C322,Communities and Leisure,Supplies and Services,"1,773.00",May-22
Slough Borough Council,804903,Dennis Eagle Limited,D610,Place Operations,Supplies and Services,"18,810.54",May-22
Slough Borough Council,804903,Dennis Eagle Limited,D630,Place Operations,Supplies and Services,"1,773.30",May-22
Slough Borough Council,3554,Dimensions (Uk) Ltd,M42E,Adult Social Care Operations,Supplies and Services,"5,724.26",May-22
Slough Borough Council,3554,Dimensions (Uk) Ltd,M42E,Adult Social Care Operations,Supplies and Services,"6,032.40",May-22
Slough Borough Council,3554,Dimensions (Uk) Ltd,M42E,Adult Social Care Operations,Supplies and Services,"5,690.70",May-22
Slough Borough Council,3554,Dimensions (Uk) Ltd,M42E,Adult Social Care Operations,Supplies and Services,"7,243.12",May-22
Slough Borough Council,3554,Dimensions (Uk) Ltd,M42E,Adult Social Care Operations,Supplies and Services,"6,959.58",May-22
Slough Borough Council,3554,Dimensions (Uk) Ltd,M42E,Adult Social Care Operations,Supplies and Services,"7,295.57",May-22
Slough Borough Council,3554,Dimensions (Uk) Ltd,M42E,Adult Social Care Operations,Supplies and Services,"6,969.51",May-22
Slough Borough Council,3554,Dimensions (Uk) Ltd,M42E,Adult Social Care Operations,Supplies and Services,"6,785.23",May-22
Slough Borough Council,3554,Dimensions (Uk) Ltd,M42E,Adult Social Care Operations,Supplies and Services,"5,442.60",May-22
Slough Borough Council,805483,Direct Tyre Managenent Ltd,D610,Place Operations,Transport,"2,723.55",May-22
Slough Borough Council,805483,Direct Tyre Managenent Ltd,D620,Place Operations,Transport,952.52,May-22
Slough Borough Council,803306,Ditton Park Academy,E620,Children & Families,Supplies and Services,"2,372.36",May-22
Slough Borough Council,807793,Dorney School,F551,Children & Families,Supplies and Services,"2,833.00",May-22
Slough Borough Council,1457,Dr Norman Gordon,D320,Regulatory Services,Premises,"1,994.50",May-22
Slough Borough Council,803177,Early Steps Preschool,F909,Children & Families,Supplies and Services,"6,270.20",May-22
Slough Borough Council,780,East Sussex County Council,F123,Schools,Supplies and Services,"8,983.20",May-22
Slough Borough Council,804924,Econ Engineering Limited,D880,Place Operations,Transport,"1,110.00",May-22
Slough Borough Council,803301,Eden Girls School,E610,Children & Families,Supplies and Services,"2,534.36",May-22
Slough Borough Council,1299,Edf Energy,D413,Place Strategy & Infrastructure,Supplies and Services,"39,391.66",May-22
Slough Borough Council,806044,Egress Software Technologies Ltd,B282,Digital and Strategic IT,Supplies and Services,"25,993.00",May-22
Slough Borough Council,807001,Elegant Care Services Ltd,M42E,Adult Social Care Operations,Supplies and Services,"5,757.14",May-22
Slough Borough Council,807001,Elegant Care Services Ltd,M42E,Adult Social Care Operations,Supplies and Services,"10,185.71",May-22
Slough Borough Council,807001,Elegant Care Services Ltd,M42E,Adult Social Care Operations,Supplies and Services,"5,978.57",May-22
Slough Borough Council,807001,Elegant Care Services Ltd,M44C,Adult Social Care Operations,Supplies and Services,"6,753.57",May-22
Slough Borough Council,806355,Elysium Healthcare,M26E,Adult Social Care Operations,Supplies and Services,"10,688.40",May-22
Slough Borough Council,806355,Elysium Healthcare,M26E,Adult Social Care Operations,Supplies and Services,"9,267.60",May-22
Slough Borough Council,3752,Endurance Health,A07R,Adult Social Care Operations,Supplies and Services,"1,526.18",May-22
Slough Borough Council,3752,Endurance Health,A07R,Adult Social Care Operations,Supplies and Services,"1,799.30",May-22
Slough Borough Council,3752,Endurance Health,A07R,Adult Social Care Operations,Supplies and Services,702.11,May-22
Slough Borough Council,3752,Endurance Health,M44C,Adult Social Care Operations,Supplies and Services,617.63,May-22
Slough Borough Council,3752,Endurance Health,M44C,Adult Social Care Operations,Supplies and Services,"1,999.20",May-22
Slough Borough Council,3752,Endurance Health,M44C,Adult Social Care Operations,Supplies and Services,"1,570.80",May-22
Slough Borough Council,3752,Endurance Health,M44C,Adult Social Care Operations,Supplies and Services,"2,260.62",May-22
Slough Borough Council,3752,Endurance Health,M44C,Adult Social Care Operations,Supplies and Services,"2,249.10",May-22
Slough Borough Council,3752,Endurance Health,M44C,Adult Social Care Operations,Supplies and Services,"1,124.55",May-22
Slough Borough Council,3752,Endurance Health,M44C,Adult Social Care Operations,Supplies and Services,664.59,May-22
Slough Borough Council,3752,Endurance Health,M44C,Adult Social Care Operations,Supplies and Services,999.60,May-22
Slough Borough Council,3752,Endurance Health,M44C,Adult Social Care Operations,Supplies and Services,696.15,May-22
Slough Borough Council,3752,Endurance Health,M44C,Adult Social Care Operations,Supplies and Services,"1,374.45",May-22
Slough Borough Council,3752,Endurance Health,M44C,Adult Social Care Operations,Supplies and Services,"2,249.10",May-22
Slough Borough Council,3752,Endurance Health,M44C,Adult Social Care Operations,Supplies and Services,571.20,May-22
Slough Borough Council,3752,Endurance Health,M44C,Adult Social Care Operations,Supplies and Services,"1,124.55",May-22
Slough Borough Council,3752,Endurance Health,M44C,Adult Social Care Operations,Supplies and Services,606.90,May-22
Slough Borough Council,3752,Endurance Health,M44C,Adult Social Care Operations,Supplies and Services,946.05,May-22
Slough Borough Council,3752,Endurance Health,M44C,Adult Social Care Operations,Supplies and Services,593.22,May-22
Slough Borough Council,3752,Endurance Health,M44C,Adult Social Care Operations,Supplies and Services,"1,123.38",May-22
Slough Borough Council,3752,Endurance Health,M44C,Adult Social Care Operations,Supplies and Services,"1,124.55",May-22
Slough Borough Council,3752,Endurance Health,M44C,Adult Social Care Operations,Supplies and Services,"1,124.55",May-22
Slough Borough Council,3752,Endurance Health,M44C,Adult Social Care Operations,Supplies and Services,"1,385.87",May-22
Slough Borough Council,3752,Endurance Health,M44C,Adult Social Care Operations,Supplies and Services,"1,249.50",May-22
Slough Borough Council,3752,Endurance Health,M44C,Adult Social Care Operations,Supplies and Services,"1,124.55",May-22
Slough Borough Council,3752,Endurance Health,M44C,Adult Social Care Operations,Supplies and Services,"1,365.84",May-22
Slough Borough Council,3752,Endurance Health,M44C,Adult Social Care Operations,Supplies and Services,749.70,May-22
Slough Borough Council,3752,Endurance Health,M44C,Adult Social Care Operations,Supplies and Services,696.15,May-22
Slough Borough Council,3752,Endurance Health,M44D,Adult Social Care Operations,Supplies and Services,"2,499.00",May-22
Slough Borough Council,3752,Endurance Health,M44D,Adult Social Care Operations,Supplies and Services,765.44,May-22
Slough Borough Council,3752,Endurance Health,M44D,Adult Social Care Operations,Supplies and Services,990.69,May-22
Slough Borough Council,3752,Endurance Health,M44D,Adult Social Care Operations,Supplies and Services,"1,178.10",May-22
Slough Borough Council,3752,Endurance Health,M44D,Adult Social Care Operations,Supplies and Services,556.93,May-22
Slough Borough Council,3752,Endurance Health,M44D,Adult Social Care Operations,Supplies and Services,624.75,May-22
Slough Borough Council,3752,Endurance Health,M44F,Adult Social Care Operations,Supplies and Services,606.90,May-22
Slough Borough Council,3752,Endurance Health,M48C,Adult Social Care Operations,Supplies and Services,874.65,May-22
Slough Borough Council,3752,Endurance Health,M48C,Adult Social Care Operations,Supplies and Services,"2,998.80",May-22
Slough Borough Council,805423,Enriched Care,M44D,Adult Social Care Operations,Supplies and Services,"3,741.70",May-22
Slough Borough Council,805423,Enriched Care,M44F,Adult Social Care Operations,Supplies and Services,"2,613.30",May-22
Slough Borough Council,805423,Enriched Care,M44F,Adult Social Care Operations,Supplies and Services,"2,879.90",May-22
Slough Borough Council,805423,Enriched Care,M44F,Adult Social Care Operations,Supplies and Services,"4,417.50",May-22
Slough Borough Council,805423,Enriched Care,M44F,Adult Social Care Operations,Supplies and Services,"2,768.30",May-22
Slough Borough Council,805423,Enriched Care,M80F,Adult Social Care Operations,Supplies and Services,"1,758.01",May-22
Slough Borough Council,639,Environment Agency,D900,Place Operations,Supplies and Services,"5,504.30",May-22
Slough Borough Council,2677,Eton House Residential Home,M25C,Adult Social Care Operations,Supplies and Services,"3,524.00",May-22
Slough Borough Council,2677,Eton House Residential Home,M25C,Adult Social Care Operations,Supplies and Services,"3,534.00",May-22
Slough Borough Council,2677,Eton House Residential Home,M25D,Adult Social Care Operations,Supplies and Services,"3,199.64",May-22
Slough Borough Council,2677,Eton House Residential Home,M27C,Adult Social Care Operations,Supplies and Services,"2,657.14",May-22
Slough Borough Council,2677,Eton House Residential Home,M27C,Adult Social Care Operations,Supplies and Services,"2,657.14",May-22
Slough Borough Council,806501,Excellent Healthcare Services Ltd,A07R,Adult Social Care Operations,Supplies and Services,706.33,May-22
Slough Borough Council,806501,Excellent Healthcare Services Ltd,A07R,Adult Social Care Operations,Supplies and Services,"1,914.75",May-22
Slough Borough Council,806501,Excellent Healthcare Services Ltd,A07R,Adult Social Care Operations,Supplies and Services,"1,072.26",May-22
Slough Borough Council,806501,Excellent Healthcare Services Ltd,A07R,Adult Social Care Operations,Supplies and Services,578.68,May-22
Slough Borough Council,806501,Excellent Healthcare Services Ltd,A07R,Adult Social Care Operations,Supplies and Services,"1,914.75",May-22
Slough Borough Council,806501,Excellent Healthcare Services Ltd,M44C,Adult Social Care Operations,Supplies and Services,"1,080.77",May-22
Slough Borough Council,806501,Excellent Healthcare Services Ltd,M44C,Adult Social Care Operations,Supplies and Services,659.53,May-22
Slough Borough Council,806501,Excellent Healthcare Services Ltd,M44C,Adult Social Care Operations,Supplies and Services,"2,144.52",May-22
Slough Borough Council,806501,Excellent Healthcare Services Ltd,M44C,Adult Social Care Operations,Supplies and Services,510.60,May-22
Slough Borough Council,806501,Excellent Healthcare Services Ltd,M44C,Adult Social Care Operations,Supplies and Services,595.70,May-22
Slough Borough Council,806501,Excellent Healthcare Services Ltd,M44F,Adult Social Care Operations,Supplies and Services,714.84,May-22
Slough Borough Council,806501,Excellent Healthcare Services Ltd,M44F,Adult Social Care Operations,Supplies and Services,953.12,May-22
Slough Borough Council,806501,Excellent Healthcare Services Ltd,M44F,Adult Social Care Operations,Supplies and Services,"2,382.80",May-22
Slough Borough Council,806501,Excellent Healthcare Services Ltd,M44F,Adult Social Care Operations,Supplies and Services,"3,097.64",May-22
Slough Borough Council,806501,Excellent Healthcare Services Ltd,M44F,Adult Social Care Operations,Supplies and Services,"2,842.34",May-22
Slough Borough Council,805225,Falcon Surfacing Ltd,D880,Place Operations,Supplies and Services,"3,345.00",May-22
Slough Borough Council,805225,Falcon Surfacing Ltd,D880,Place Operations,Supplies and Services,"4,575.00",May-22
Slough Borough Council,805225,Falcon Surfacing Ltd,D880,Place Operations,Supplies and Services,"4,535.00",May-22
Slough Borough Council,805225,Falcon Surfacing Ltd,D880,Place Operations,Supplies and Services,"75,444.12",May-22
Slough Borough Council,805225,Falcon Surfacing Ltd,D880,Place Operations,Supplies and Services,"8,260.00",May-22
Slough Borough Council,805225,Falcon Surfacing Ltd,D880,Place Operations,Supplies and Services,"26,453.50",May-22
Slough Borough Council,805225,Falcon Surfacing Ltd,D880,Place Operations,Supplies and Services,"17,257.05",May-22
Slough Borough Council,805225,Falcon Surfacing Ltd,D880,Place Operations,Supplies and Services,"22,450.00",May-22
Slough Borough Council,805225,Falcon Surfacing Ltd,D880,Place Operations,Supplies and Services,"2,881.90",May-22
Slough Borough Council,641,Falon Nameplates Limited,D320,Regulatory Services,Supplies and Services,"1,057.67",May-22
Slough Borough Council,4031,Family Support Practise Limited,A03D,Adult Social Care Operations,Supplies and Services,"2,189.25",May-22
Slough Borough Council,4031,Family Support Practise Limited,B277,Digital and Strategic IT,Supplies and Services,"1,800.00",May-22
Slough Borough Council,4031,Family Support Practise Limited,B277,Digital and Strategic IT,Supplies and Services,"1,459.50",May-22
Slough Borough Council,4031,Family Support Practise Limited,B277,Digital and Strategic IT,Supplies and Services,"1,800.00",May-22
Slough Borough Council,4031,Family Support Practise Limited,B277,Digital and Strategic IT,Supplies and Services,"1,800.00",May-22
Slough Borough Council,475,Farnham Road Surgery,A04C,Adult Social Care Commissioning,Supplies and Services,"12,483.66",May-22
Slough Borough Council,955,First Beeline Buses Ltd,D512,Major Infrastructure Projects,Supplies and Services,"98,699.05",May-22
Slough Borough Council,1413,First Greater Western Ltd,P213,Capital,Capital Charges,"5,116.00",May-22
Slough Borough Council,754,First Steps Day Nursery,F909,Children & Families,Supplies and Services,"10,168.53",May-22
Slough Borough Council,1626,Five Star Radio Cars Limited,F123,Schools,Supplies and Services,"1,097.25",May-22
Slough Borough Council,1626,Five Star Radio Cars Limited,F123,Schools,Supplies and Services,680.00,May-22
Slough Borough Council,1626,Five Star Radio Cars Limited,F123,Schools,Supplies and Services,"1,045.00",May-22
Slough Borough Council,1626,Five Star Radio Cars Limited,F123,Schools,Supplies and Services,"1,800.00",May-22
Slough Borough Council,1626,Five Star Radio Cars Limited,F123,Schools,Supplies and Services,783.75,May-22
Slough Borough Council,2519,Fleet Tutors,F449,Education & Inclusion,Supplies and Services,"3,264.00",May-22
Slough Borough Council,808218,Focal Point Advertising Ltd,B283,Finance,Supplies and Services,"23,865.00",May-22
Slough Borough Council,1204,Forget Me Not,M25C,Adult Social Care Operations,Supplies and Services,"3,800.00",May-22
Slough Borough Council,1204,Forget Me Not,M25C,Adult Social Care Operations,Supplies and Services,"3,180.00",May-22
Slough Borough Council,1204,Forget Me Not,M27C,Adult Social Care Operations,Supplies and Services,"3,400.00",May-22
Slough Borough Council,1204,Forget Me Not,M27C,Adult Social Care Operations,Supplies and Services,"3,047.40",May-22
Slough Borough Council,1204,Forget Me Not,M27C,Adult Social Care Operations,Supplies and Services,"3,400.00",May-22
Slough Borough Council,647,Foxborough Primary School,E620,Children & Families,Supplies and Services,"17,874.43",May-22
Slough Borough Council,806480,Frontier NX Limited,A04C,Adult Social Care Commissioning,Supplies and Services,"1,777.50",May-22
Slough Borough Council,806480,Frontier NX Limited,A04C,Adult Social Care Commissioning,Supplies and Services,673.15,May-22
Slough Borough Council,807125,Futures For Shared Lives,M36E,Adult Social Care Operations,Supplies and Services,"3,436.35",May-22
Slough Borough Council,1555,Gallagher Bassett,B018,Finance,Supplies and Services,"23,679.87",May-22
Slough Borough Council,807952,Gazprom Energy,K526,Building Management,Premises,"29,902.48",May-22
Slough Borough Council,807952,Gazprom Energy,K526,Building Management,Premises,"9,096.13",May-22
Slough Borough Council,650,George Lines (Merchants) Ltd,D880,Place Operations,Supplies and Services,"3,241.40",May-22
Slough Borough Council,808013,Get Active Sports,F382,Children & Families,Supplies and Services,"1,407.00",May-22
Slough Borough Council,2830,GR Response Healthcare Ltd,M44C,Adult Social Care Operations,Supplies and Services,798.00,May-22
Slough Borough Council,2830,GR Response Healthcare Ltd,M44C,Adult Social Care Operations,Supplies and Services,"2,499.84",May-22
Slough Borough Council,2830,GR Response Healthcare Ltd,M44D,Adult Social Care Operations,Supplies and Services,665.00,May-22
Slough Borough Council,2830,GR Response Healthcare Ltd,M45C,Adult Social Care Operations,Supplies and Services,"2,052.00",May-22
Slough Borough Council,803296,Grant Thornton UK LLP,B007,Finance & Commercial,Supplies and Services,"110,000.00",May-22
Slough Borough Council,804577,Green Monarch ZC2016 c/o Savills(UK) Limited,H205,Housing (People) Services,Premises,"3,583.33",May-22
Slough Borough Council,804577,Green Monarch ZC2016 c/o Savills(UK) Limited,H205,Housing (People) Services,Premises,"3,583.33",May-22
Slough Borough Council,805069,Grove Academy,E610,Children & Families,Supplies and Services,"16,104.81",May-22
Slough Borough Council,804447,Grundon Waste Management Limited,D342,Place Operations,Supplies and Services,"1,286.95",May-22
Slough Borough Council,804447,Grundon Waste Management Limited,D342,Place Operations,Supplies and Services,"459,611.21",May-22
Slough Borough Council,3228,H Plus Care Ltd,M25C,Adult Social Care Operations,Supplies and Services,"5,535.71",May-22
Slough Borough Council,3228,H Plus Care Ltd,M26E,Adult Social Care Operations,Supplies and Services,"5,314.29",May-22
Slough Borough Council,744,Hampshire County Council,D015,Major Infrastructure Projects,Supplies and Services,"7,995.40",May-22
Slough Borough Council,744,Hampshire County Council,D512,Major Infrastructure Projects,Supplies and Services,"2,556.40",May-22
Slough Borough Council,804986,Havencare Ltd,M26E,Adult Social Care Operations,Supplies and Services,"1,279.50",May-22
Slough Borough Council,804986,Havencare Ltd,M26E,Adult Social Care Operations,Supplies and Services,"1,279.50",May-22
Slough Borough Council,804986,Havencare Ltd,M26E,Adult Social Care Operations,Supplies and Services,"1,279.50",May-22
Slough Borough Council,804986,Havencare Ltd,M26E,Adult Social Care Operations,Supplies and Services,"1,279.50",May-22
Slough Borough Council,1381,Haybrook College,E610,Children & Families,Supplies and Services,"201,082.93",May-22
Slough Borough Council,3784,Haybrook College Pru,E610,Children & Families,Supplies and Services,"54,200.00",May-22
Slough Borough Council,803248,Haybrook College Trust,F166,Education & Inclusion,Supplies and Services,"18,000.00",May-22
Slough Borough Council,803248,Haybrook College Trust,F123,Schools,Supplies and Services,"49,320.00",May-22
Slough Borough Council,803447,Herewards House Residential Home,M27C,Adult Social Care Operations,Supplies and Services,"2,878.57",May-22
Slough Borough Council,803447,Herewards House Residential Home,M27C,Adult Social Care Operations,Supplies and Services,"2,878.57",May-22
Slough Borough Council,3387,Herschel Grammar School,E610,Children & Families,Supplies and Services,"1,300.00",May-22
Slough Borough Council,806731,High Hurlands Homes,M26E,Adult Social Care Operations,Supplies and Services,"6,127.82",May-22
Slough Borough Council,3250,Hodge Hill Grange H C One Ltd,M15D,Adult Social Care Operations,Supplies and Services,"2,380.00",May-22
Slough Borough Council,850,Holy Family Catholic Primary School,E250,Children & Families,Supplies and Services,"201,908.61",May-22
Slough Borough Council,351,Imperial Polythene Products Ltd,D620,Place Operations,Supplies and Services,"1,050.00",May-22
Slough Borough Council,807666,Independence Home and Domicilary Care,M44F,Adult Social Care Operations,Supplies and Services,"3,272.10",May-22
Slough Borough Council,807666,Independence Home and Domicilary Care,M44F,Adult Social Care Operations,Supplies and Services,"1,494.75",May-22
Slough Borough Council,807666,Independence Home and Domicilary Care,M44F,Adult Social Care Operations,Supplies and Services,"2,845.80",May-22
Slough Borough Council,807666,Independence Home and Domicilary Care,M44F,Adult Social Care Operations,Supplies and Services,"3,240.00",May-22
Slough Borough Council,3570,Independent Supported Living And Disabilities Ltd,M42E,Adult Social Care Operations,Supplies and Services,"3,000.00",May-22
Slough Borough Council,3570,Independent Supported Living And Disabilities Ltd,M42E,Adult Social Care Operations,Supplies and Services,"3,000.00",May-22
Slough Borough Council,3570,Independent Supported Living And Disabilities Ltd,M44D,Adult Social Care Operations,Supplies and Services,"3,044.16",May-22
Slough Borough Council,3570,Independent Supported Living And Disabilities Ltd,M44D,Adult Social Care Operations,Supplies and Services,"3,044.16",May-22
Slough Borough Council,3570,Independent Supported Living And Disabilities Ltd,M44E,Adult Social Care Operations,Supplies and Services,"1,440.00",May-22
Slough Borough Council,3570,Independent Supported Living And Disabilities Ltd,M44E,Adult Social Care Operations,Supplies and Services,"4,212.00",May-22
Slough Borough Council,3570,Independent Supported Living And Disabilities Ltd,M44E,Adult Social Care Operations,Supplies and Services,"1,440.00",May-22
Slough Borough Council,3570,Independent Supported Living And Disabilities Ltd,M44E,Adult Social Care Operations,Supplies and Services,"4,212.00",May-22
Slough Borough Council,3570,Independent Supported Living And Disabilities Ltd,M44E,Adult Social Care Operations,Supplies and Services,"1,050.00",May-22
Slough Borough Council,3570,Independent Supported Living And Disabilities Ltd,M44E,Adult Social Care Operations,Supplies and Services,"3,570.00",May-22
Slough Borough Council,3570,Independent Supported Living And Disabilities Ltd,M44E,Adult Social Care Operations,Supplies and Services,"1,050.00",May-22
Slough Borough Council,3570,Independent Supported Living And Disabilities Ltd,M44E,Adult Social Care Operations,Supplies and Services,"3,570.00",May-22
Slough Borough Council,3172,Intelligent Transport Services,D509,Place Strategy & Infrastructure,Supplies and Services,"3,968.00",May-22
Slough Borough Council,3172,Intelligent Transport Services,D509,Place Strategy & Infrastructure,Supplies and Services,"2,480.00",May-22
Slough Borough Council,3172,Intelligent Transport Services,P209,Capital,Capital Charges,"1,500.00",May-22
Slough Borough Council,3172,Intelligent Transport Services,P209,Capital,Capital Charges,600.00,May-22
Slough Borough Council,3172,Intelligent Transport Services,P209,Capital,Capital Charges,600.00,May-22
Slough Borough Council,3172,Intelligent Transport Services,P212,Capital,Capital Charges,"2,700.00",May-22
Slough Borough Council,3172,Intelligent Transport Services,P212,Capital,Capital Charges,900.00,May-22
Slough Borough Council,3172,Intelligent Transport Services,P235,Capital,Capital Charges,"1,200.00",May-22
Slough Borough Council,3172,Intelligent Transport Services,P235,Capital,Capital Charges,"1,500.00",May-22
Slough Borough Council,3172,Intelligent Transport Services,P192,Capital,Capital Charges,"2,700.00",May-22
Slough Borough Council,3500,Iqra Slough Islamic Primary School,E480,Children & Families,Supplies and Services,"99,140.45",May-22
Slough Borough Council,998,Iron Mountain Uk Ltd,B282,Digital and Strategic IT,Supplies and Services,984.14,May-22
Slough Borough Council,2919,Islamic Shakhsiyah Foundation,F909,Children & Families,Supplies and Services,"9,007.09",May-22
Slough Borough Council,807855,Isteni Property Holdings Ltd,H205,Housing (People) Services,Supplies and Services,"10,010.00",May-22
Slough Borough Council,807346,Jacaranda,M44F,Adult Social Care Operations,Supplies and Services,"4,222.00",May-22
Slough Borough Council,753,Jack In The Box Day Nursery,F909,Children & Families,Supplies and Services,"11,997.83",May-22
Slough Borough Council,733,James Elliman  School,E620,Children & Families,Supplies and Services,"23,450.01",May-22
Slough Borough Council,1970,James Elliman Academy,B187,Business Services,Premises,"3,222.42",May-22
Slough Borough Council,805666,James Rosental,C322,Communities and Leisure,Supplies and Services,"1,498.00",May-22
Slough Borough Council,805226,JD Surfacing & Civil Engineering Limited,D880,Place Operations,Supplies and Services,"10,780.04",May-22
Slough Borough Council,805226,JD Surfacing & Civil Engineering Limited,D880,Place Operations,Supplies and Services,"10,800.00",May-22
Slough Borough Council,805226,JD Surfacing & Civil Engineering Limited,D880,Place Operations,Supplies and Services,"8,640.00",May-22
Slough Borough Council,805226,JD Surfacing & Civil Engineering Limited,D880,Place Operations,Supplies and Services,"1,484.00",May-22
Slough Borough Council,805226,JD Surfacing & Civil Engineering Limited,D880,Place Operations,Supplies and Services,"9,939.04",May-22
Slough Borough Council,2200,Joshua Pilmore,C322,Communities and Leisure,Supplies and Services,949.71,May-22
Slough Borough Council,807674,Kainos Software Ltd,D501,Place Strategy & Infrastructure,Supplies and Services,"2,500.00",May-22
Slough Borough Council,201,Kamal Enterprises Ltd,A04C,Adult Social Care Commissioning,Supplies and Services,608.00,May-22
Slough Borough Council,803815,Kathys Childcare,F909,Children & Families,Supplies and Services,"1,315.32",May-22
Slough Borough Council,2620,Kcare Nursing Agency Ltd,M44C,Adult Social Care Operations,Supplies and Services,"2,397.61",May-22
Slough Borough Council,2620,Kcare Nursing Agency Ltd,M44C,Adult Social Care Operations,Supplies and Services,"1,235.25",May-22
Slough Borough Council,2620,Kcare Nursing Agency Ltd,M44C,Adult Social Care Operations,Supplies and Services,896.70,May-22
Slough Borough Council,2620,Kcare Nursing Agency Ltd,M44C,Adult Social Care Operations,Supplies and Services,"3,294.31",May-22
Slough Borough Council,2620,Kcare Nursing Agency Ltd,M44D,Adult Social Care Operations,Supplies and Services,"1,031.21",May-22
Slough Borough Council,2620,Kcare Nursing Agency Ltd,M44D,Adult Social Care Operations,Supplies and Services,"1,543.61",May-22
Slough Borough Council,2620,Kcare Nursing Agency Ltd,M44D,Adult Social Care Operations,Supplies and Services,"1,686.65",May-22
Slough Borough Council,2620,Kcare Nursing Agency Ltd,M44D,Adult Social Care Operations,Supplies and Services,"1,067.50",May-22
Slough Borough Council,2620,Kcare Nursing Agency Ltd,M48C,Adult Social Care Operations,Supplies and Services,"4,000.00",May-22
Slough Borough Council,2620,Kcare Nursing Agency Ltd,M48C,Adult Social Care Operations,Supplies and Services,854.11,May-22
Slough Borough Council,804887,KCare Nursing Agency Ltd Supported House Living,M42F,Adult Social Care Operations,Supplies and Services,"2,926.00",May-22
Slough Borough Council,804887,KCare Nursing Agency Ltd Supported House Living,M44F,Adult Social Care Operations,Supplies and Services,"2,493.50",May-22
Slough Borough Council,808146,Kents Hill Care Home,M18C,Adult Social Care Operations,Supplies and Services,"3,642.86",May-22
Slough Borough Council,807742,Khalsa Primary School,E620,Children & Families,Supplies and Services,"12,896.95",May-22
Slough Borough Council,803916,Kharis Solutions,A07R,Adult Social Care Operations,Supplies and Services,765.00,May-22
Slough Borough Council,803916,Kharis Solutions,M44E,Adult Social Care Operations,Supplies and Services,600.00,May-22
Slough Borough Council,803916,Kharis Solutions,M44E,Adult Social Care Operations,Supplies and Services,"6,400.00",May-22
Slough Borough Council,803916,Kharis Solutions,M44E,Adult Social Care Operations,Supplies and Services,900.00,May-22
Slough Borough Council,803916,Kharis Solutions,M44E,Adult Social Care Operations,Supplies and Services,900.00,May-22
Slough Borough Council,803916,Kharis Solutions,M44E,Adult Social Care Operations,Supplies and Services,"1,200.00",May-22
Slough Borough Council,804546,Korn Ferry,B276,Business Services,Salaries and Wages,"1,848.00",May-22
Slough Borough Council,803558,Lambert Smith Hampton,B079,Place Strategy,Supplies and Services,"3,216.70",May-22
Slough Borough Council,664,Langley Grammar School,E610,Children & Families,Supplies and Services,899.99,May-22
Slough Borough Council,1699,Langley Hall Primary Academy,E620,Children & Families,Supplies and Services,"1,991.67",May-22
Slough Borough Council,3001,Langley Haven Care Homes Ltd,M25C,Adult Social Care Operations,Supplies and Services,"3,604.68",May-22
Slough Borough Council,3001,Langley Haven Care Homes Ltd,M25C,Adult Social Care Operations,Supplies and Services,"3,604.68",May-22
Slough Borough Council,3001,Langley Haven Care Homes Ltd,M26E,Adult Social Care Operations,Supplies and Services,"3,720.00",May-22
Slough Borough Council,3001,Langley Haven Care Homes Ltd,M26E,Adult Social Care Operations,Supplies and Services,"3,720.00",May-22
Slough Borough Council,3001,Langley Haven Care Homes Ltd,M27C,Adult Social Care Operations,Supplies and Services,"3,604.68",May-22
Slough Borough Council,3001,Langley Haven Care Homes Ltd,M27C,Adult Social Care Operations,Supplies and Services,"3,488.40",May-22
Slough Borough Council,3001,Langley Haven Care Homes Ltd,M27C,Adult Social Care Operations,Supplies and Services,"3,604.68",May-22
Slough Borough Council,3001,Langley Haven Care Homes Ltd,M27C,Adult Social Care Operations,Supplies and Services,"3,604.68",May-22
Slough Borough Council,3001,Langley Haven Care Homes Ltd,M27C,Adult Social Care Operations,Supplies and Services,"3,604.68",May-22
Slough Borough Council,3001,Langley Haven Care Homes Ltd,M27F,Adult Social Care Operations,Supplies and Services,"3,604.68",May-22
Slough Borough Council,3001,Langley Haven Care Homes Ltd,M27F,Adult Social Care Operations,Supplies and Services,"3,604.68",May-22
Slough Borough Council,3001,Langley Haven Care Homes Ltd,M27F,Adult Social Care Operations,Supplies and Services,"1,882.14",May-22
Slough Borough Council,3001,Langley Haven Care Homes Ltd,M27F,Adult Social Care Operations,Supplies and Services,"3,604.68",May-22
Slough Borough Council,3001,Langley Haven Care Homes Ltd,M27F,Adult Social Care Operations,Supplies and Services,"3,985.71",May-22
Slough Borough Council,3001,Langley Haven Care Homes Ltd,M29C,Adult Social Care Operations,Supplies and Services,"3,604.68",May-22
Slough Borough Council,803686,Lascelles Park Nursery,F909,Children & Families,Supplies and Services,"17,552.68",May-22
Slough Borough Council,3482,Leonard Cheshire Disability,M26E,Adult Social Care Operations,Supplies and Services,"6,007.24",May-22
Slough Borough Council,1513,Lex Autolease Limited,M50A,Major Infrastructure Projects,Supplies and Services,"2,054.26",May-22
Slough Borough Council,301,Liberata Uk Limited,B048,Finance & Commercial,Supplies and Services,"11,908.61",May-22
Slough Borough Council,397,Liquidlogic,A03D,Adult Social Care Operations,Supplies and Services,"10,800.00",May-22
Slough Borough Council,804692,Little Diamonds Pre School,F909,Children & Families,Supplies and Services,"15,000.00",May-22
Slough Borough Council,3791,Littledown Pru,E610,Children & Families,Supplies and Services,"17,100.00",May-22
Slough Borough Council,667,Littledown School,E610,Children & Families,Supplies and Services,"61,926.92",May-22
Slough Borough Council,1328,London & Quadrant Housing Trust,H205,Housing (People) Services,Premises,"57,554.16",May-22
Slough Borough Council,804544,London Borough of Harrow,B096,Democratic Services,Indirect Employee Expenses,"100,817.56",May-22
Slough Borough Council,1282,Long Close School,F909,Children & Families,Supplies and Services,"6,859.24",May-22
Slough Borough Council,804585,Longlea Ltd,M18C,Adult Social Care Operations,Supplies and Services,"3,985.71",May-22
Slough Borough Council,808284,Louis Taylor Entertainments,D509,Place Strategy & Infrastructure,Supplies and Services,"1,100.00",May-22
Slough Borough Council,1195,Lynch Hill (Foundation Primary) School,E620,Children & Families,Supplies and Services,"34,014.07",May-22
Slough Borough Council,1771,Lynch Hill Academy,E620,Children & Families,Supplies and Services,"8,500.01",May-22
Slough Borough Council,807217,Macadamia Support Limited,M42E,Adult Social Care Operations,Supplies and Services,"6,931.20",May-22
Slough Borough Council,807217,Macadamia Support Limited,M42E,Adult Social Care Operations,Supplies and Services,"3,973.20",May-22
Slough Borough Council,807217,Macadamia Support Limited,M42E,Adult Social Care Operations,Supplies and Services,"7,308.00",May-22
Slough Borough Council,807217,Macadamia Support Limited,M42E,Adult Social Care Operations,Supplies and Services,"3,589.12",May-22
Slough Borough Council,807217,Macadamia Support Limited,M42E,Adult Social Care Operations,Supplies and Services,"6,713.00",May-22
Slough Borough Council,807217,Macadamia Support Limited,M44C,Adult Social Care Operations,Supplies and Services,"3,591.56",May-22
Slough Borough Council,807217,Macadamia Support Limited,M44D,Adult Social Care Operations,Supplies and Services,"5,523.00",May-22
Slough Borough Council,1874,Maccabee Pets Hotel,H253,Place Regulation,Supplies and Services,527.00,May-22
Slough Borough Council,1874,Maccabee Pets Hotel,H253,Place Regulation,Supplies and Services,600.00,May-22
Slough Borough Council,1874,Maccabee Pets Hotel,H253,Place Regulation,Supplies and Services,"2,126.00",May-22
Slough Borough Council,1874,Maccabee Pets Hotel,H253,Place Regulation,Supplies and Services,952.00,May-22
Slough Borough Council,1874,Maccabee Pets Hotel,H253,Place Regulation,Supplies and Services,765.00,May-22
Slough Borough Council,1874,Maccabee Pets Hotel,H253,Place Regulation,Supplies and Services,"2,040.00",May-22
Slough Borough Council,1874,Maccabee Pets Hotel,H253,Place Regulation,Supplies and Services,860.00,May-22
Slough Borough Council,1874,Maccabee Pets Hotel,H253,Place Regulation,Supplies and Services,"2,060.00",May-22
Slough Borough Council,1874,Maccabee Pets Hotel,H253,Place Regulation,Supplies and Services,"1,680.00",May-22
Slough Borough Council,1874,Maccabee Pets Hotel,H253,Place Regulation,Supplies and Services,"1,860.00",May-22
Slough Borough Council,1941,Manor Green School,F551,Children & Families,Supplies and Services,"15,980.00",May-22
Slough Borough Council,1941,Manor Green School,F551,Children & Families,Supplies and Services,"39,150.00",May-22
Slough Borough Council,1941,Manor Green School,F551,Children & Families,Supplies and Services,"38,700.00",May-22
Slough Borough Council,1941,Manor Green School,F551,Children & Families,Supplies and Services,"316,201.00",May-22
Slough Borough Council,1941,Manor Green School,F551,Children & Families,Supplies and Services,"282,796.00",May-22
Slough Borough Council,1941,Manor Green School,F551,Children & Families,Supplies and Services,"38,250.00",May-22
Slough Borough Council,3768,Marish Academy Trust,B191,Business Services,Premises,"3,814.16",May-22
Slough Borough Council,3768,Marish Academy Trust,B191,Business Services,Premises,589.60,May-22
Slough Borough Council,529,Marish Primary School,E620,Children & Families,Supplies and Services,"64,401.95",May-22
Slough Borough Council,1886,Matrix Scm,B023,Finance & Commercial,Agency Staff,"308,388.94",May-22
Slough Borough Council,1886,Matrix Scm,B023,Finance & Commercial,Agency Staff,"333,181.35",May-22
Slough Borough Council,1886,Matrix Scm,B023,Finance & Commercial,Agency Staff,"373,247.06",May-22
Slough Borough Council,807684,Maverick Care  Ltd T/A Christies Care Windsor & Maidenhead,B324,Finance,Supplies and Services,601.60,May-22
Slough Borough Council,807684,Maverick Care  Ltd T/A Christies Care Windsor & Maidenhead,B324,Finance,Government Grants,832.99,May-22
Slough Borough Council,807009,Medigold Health Consultancy Ltd,B349,People,Salaries and Wages-Employees Expenses,565.00,May-22
Slough Borough Council,807009,Medigold Health Consultancy Ltd,B349,People,Salaries and Wages-Employees Expenses,585.00,May-22
Slough Borough Council,807009,Medigold Health Consultancy Ltd,B349,People,Salaries and Wages-Employees Expenses,840.00,May-22
Slough Borough Council,807009,Medigold Health Consultancy Ltd,B349,People,Salaries and Wages-Employees Expenses,"1,000.00",May-22
Slough Borough Council,807009,Medigold Health Consultancy Ltd,B349,People,Salaries and Wages-Employees Expenses,"1,255.00",May-22
Slough Borough Council,807009,Medigold Health Consultancy Ltd,B349,People,Supplies and Services,"6,998.25",May-22
Slough Borough Council,807009,Medigold Health Consultancy Ltd,B349,People,Supplies and Services,"6,998.25",May-22
Slough Borough Council,1496,Mighty Acorns Day Nursery Ltd,F909,Children & Families,Supplies and Services,"16,235.90",May-22
Slough Borough Council,806737,Mishcon de Reya LLP,P405,Capital,Capital Charges,"4,512.00",May-22
Slough Borough Council,805121,MMCG (2) Limited,M15D,Adult Social Care Operations,Supplies and Services,"3,442.50",May-22
Slough Borough Council,805121,MMCG (2) Limited,M15F,Adult Social Care Operations,Supplies and Services,"3,442.50",May-22
Slough Borough Council,805121,MMCG (2) Limited,M17C,Adult Social Care Operations,Supplies and Services,"3,825.00",May-22
Slough Borough Council,805121,MMCG (2) Limited,M17C,Adult Social Care Operations,Supplies and Services,"3,901.50",May-22
Slough Borough Council,805121,MMCG (2) Limited,M17C,Adult Social Care Operations,Supplies and Services,"4,245.77",May-22
Slough Borough Council,805121,MMCG (2) Limited,M17C,Adult Social Care Operations,Supplies and Services,"1,170.45",May-22
Slough Borough Council,805121,MMCG (2) Limited,M17C,Adult Social Care Operations,Supplies and Services,"3,442.50",May-22
Slough Borough Council,805121,MMCG (2) Limited,M17C,Adult Social Care Operations,Supplies and Services,"3,442.50",May-22
Slough Borough Council,805121,MMCG (2) Limited,M18C,Adult Social Care Operations,Supplies and Services,"3,901.50",May-22
Slough Borough Council,805121,MMCG (2) Limited,M18C,Adult Social Care Operations,Supplies and Services,"3,442.50",May-22
Slough Borough Council,805121,MMCG (2) Limited,M18C,Adult Social Care Operations,Supplies and Services,"3,442.50",May-22
Slough Borough Council,805121,MMCG (2) Limited,M18C,Adult Social Care Operations,Supplies and Services,"3,442.50",May-22
Slough Borough Council,805121,MMCG (2) Limited,M18C,Adult Social Care Operations,Supplies and Services,"3,442.50",May-22
Slough Borough Council,805121,MMCG (2) Limited,M18C,Adult Social Care Operations,Supplies and Services,"1,491.75",May-22
Slough Borough Council,805121,MMCG (2) Limited,M25C,Adult Social Care Operations,Supplies and Services,"3,442.50",May-22
Slough Borough Council,805121,MMCG (2) Limited,M25C,Adult Social Care Operations,Supplies and Services,573.75,May-22
Slough Borough Council,805121,MMCG (2) Limited,M25C,Adult Social Care Operations,Supplies and Services,"3,442.50",May-22
Slough Borough Council,805121,MMCG (2) Limited,M25C,Adult Social Care Operations,Supplies and Services,"3,442.50",May-22
Slough Borough Council,805121,MMCG (2) Limited,M26D,Adult Social Care Operations,Supplies and Services,803.25,May-22
Slough Borough Council,805121,MMCG (2) Limited,M27C,Adult Social Care Operations,Supplies and Services,"3,442.50",May-22
Slough Borough Council,805121,MMCG (2) Limited,M27C,Adult Social Care Operations,Supplies and Services,"3,442.50",May-22
Slough Borough Council,805121,MMCG (2) Limited,M27C,Adult Social Care Operations,Supplies and Services,"3,442.50",May-22
Slough Borough Council,805121,MMCG (2) Limited,M27C,Adult Social Care Operations,Supplies and Services,"3,442.50",May-22
Slough Borough Council,805121,MMCG (2) Limited,M27C,Adult Social Care Operations,Supplies and Services,"3,442.50",May-22
Slough Borough Council,805121,MMCG (2) Limited,M27C,Adult Social Care Operations,Supplies and Services,"1,950.75",May-22
Slough Borough Council,805121,MMCG (2) Limited,M28C,Adult Social Care Operations,Supplies and Services,"3,442.50",May-22
Slough Borough Council,805121,MMCG (2) Limited,M28C,Adult Social Care Operations,Supplies and Services,"3,098.25",May-22
Slough Borough Council,805121,MMCG (2) Limited,M29C,Adult Social Care Operations,Supplies and Services,650.25,May-22
Slough Borough Council,2645,Modus Care Ltd,M26E,Adult Social Care Operations,Supplies and Services,"10,455.86",May-22
Slough Borough Council,804815,Molly Southall,C322,Communities and Leisure,Supplies and Services,661.00,May-22
Slough Borough Council,2115,Montagu Evans Llp,B086,Place Strategy & Infrastructure,Capital Charges,"23,755.00",May-22
Slough Borough Council,2115,Montagu Evans Llp,B086,Place Strategy & Infrastructure,Capital Charges,"-23,755.00",May-22
Slough Borough Council,2115,Montagu Evans Llp,B086,Place Strategy & Infrastructure,Capital Charges,"16,398.00",May-22
Slough Borough Council,3302,Montem Primary School,E620,Children & Families,Supplies and Services,"24,840.17",May-22
Slough Borough Council,3372,More House School,F462,Children & Families,Supplies and Services,"6,662.00",May-22
Slough Borough Council,3372,More House School,F462,Children & Families,Supplies and Services,"5,873.00",May-22
Slough Borough Council,807432,MPD FM Limited,H216,Community,Supplies and Services,"5,104.38",May-22
Slough Borough Council,807432,MPD FM Limited,H216,Community,Supplies and Services,"5,565.05",May-22
Slough Borough Council,807501,Mrs Parvinder Kaur Bhandal,H205,Housing (People) Services,Supplies and Services,"5,162.00",May-22
Slough Borough Council,804936,Ms. Marinela Caldarus,F382,Children & Families,Supplies and Services,"1,404.00",May-22
Slough Borough Council,806858,MUDDY BOOTS DAY NURSERY LTD,F909,Children & Families,Supplies and Services,"6,081.95",May-22
Slough Borough Council,804426,Music Mark,F253,Children & Families,Supplies and Services,800.00,May-22
Slough Borough Council,805369,NAS Services Limited,M42E,Adult Social Care Operations,Supplies and Services,"8,442.50",May-22
Slough Borough Council,808068,NEC Software Solutions UK Limited,P216,Capital,Capital Charges,"53,000.00",May-22
Slough Borough Council,1945,Neem Tree Care Ltd,M17C,Adult Social Care Operations,Supplies and Services,"3,488.40",May-22
Slough Borough Council,803938,Nicholas Murphy,F253,Children & Families,Agency Staff,"2,200.00",May-22
Slough Borough Council,1864,Noahs Ark Environmental Services Ltd,H253,Place Regulation,Supplies and Services,"2,763.16",May-22
Slough Borough Council,1864,Noahs Ark Environmental Services Ltd,H253,Place Regulation,Supplies and Services,"2,668.89",May-22
Slough Borough Council,1864,Noahs Ark Environmental Services Ltd,H253,Place Regulation,Supplies and Services,"-1,164.10",May-22
Slough Borough Council,1864,Noahs Ark Environmental Services Ltd,H253,Place Regulation,Supplies and Services,"2,629.66",May-22
Slough Borough Council,807860,Nominet UK,B282,Digital and Strategic IT,Supplies and Services,766.94,May-22
Slough Borough Council,803985,Normans Musical Instruments,F253,Children & Families,Supplies and Services,"2,250.00",May-22
Slough Borough Council,803238,Oasis Care and Training Agency,A07R,Adult Social Care Operations,Supplies and Services,"1,856.52",May-22
Slough Borough Council,803238,Oasis Care and Training Agency,M42C,Adult Social Care Operations,Supplies and Services,876.69,May-22
Slough Borough Council,803238,Oasis Care and Training Agency,M44C,Adult Social Care Operations,Supplies and Services,"2,045.60",May-22
Slough Borough Council,803238,Oasis Care and Training Agency,M44C,Adult Social Care Operations,Supplies and Services,962.64,May-22
Slough Borough Council,803238,Oasis Care and Training Agency,M44C,Adult Social Care Operations,Supplies and Services,524.30,May-22
Slough Borough Council,803238,Oasis Care and Training Agency,M44C,Adult Social Care Operations,Supplies and Services,"1,375.20",May-22
Slough Borough Council,803238,Oasis Care and Training Agency,M44C,Adult Social Care Operations,Supplies and Services,"2,681.64",May-22
Slough Borough Council,803238,Oasis Care and Training Agency,M44C,Adult Social Care Operations,Supplies and Services,"3,893.48",May-22
Slough Borough Council,803238,Oasis Care and Training Agency,M44C,Adult Social Care Operations,Supplies and Services,"2,784.80",May-22
Slough Borough Council,803238,Oasis Care and Training Agency,M44C,Adult Social Care Operations,Supplies and Services,"1,443.96",May-22
Slough Borough Council,803238,Oasis Care and Training Agency,M44C,Adult Social Care Operations,Supplies and Services,"1,443.96",May-22
Slough Borough Council,803238,Oasis Care and Training Agency,M44C,Adult Social Care Operations,Supplies and Services,787.07,May-22
Slough Borough Council,803238,Oasis Care and Training Agency,M44C,Adult Social Care Operations,Supplies and Services,"1,203.32",May-22
Slough Borough Council,803238,Oasis Care and Training Agency,M44C,Adult Social Care Operations,Supplies and Services,842.32,May-22
Slough Borough Council,803238,Oasis Care and Training Agency,M44C,Adult Social Care Operations,Supplies and Services,"1,203.32",May-22
Slough Borough Council,803238,Oasis Care and Training Agency,M44C,Adult Social Care Operations,Supplies and Services,709.08,May-22
Slough Borough Council,803238,Oasis Care and Training Agency,M44C,Adult Social Care Operations,Supplies and Services,"2,165.96",May-22
Slough Borough Council,803238,Oasis Care and Training Agency,M44C,Adult Social Care Operations,Supplies and Services,653.22,May-22
Slough Borough Council,803238,Oasis Care and Training Agency,M44C,Adult Social Care Operations,Supplies and Services,601.64,May-22
Slough Borough Council,803238,Oasis Care and Training Agency,M44D,Adult Social Care Operations,Supplies and Services,979.84,May-22
Slough Borough Council,803238,Oasis Care and Training Agency,M44D,Adult Social Care Operations,Supplies and Services,"2,165.96",May-22
Slough Borough Council,803238,Oasis Care and Training Agency,M44D,Adult Social Care Operations,Supplies and Services,"1,323.64",May-22
Slough Borough Council,803238,Oasis Care and Training Agency,M44D,Adult Social Care Operations,Supplies and Services,842.32,May-22
Slough Borough Council,803238,Oasis Care and Training Agency,M44D,Adult Social Care Operations,Supplies and Services,"1,340.84",May-22
Slough Borough Council,803238,Oasis Care and Training Agency,M44D,Adult Social Care Operations,Supplies and Services,979.84,May-22
Slough Borough Council,803238,Oasis Care and Training Agency,M44D,Adult Social Care Operations,Supplies and Services,"2,165.96",May-22
Slough Borough Council,803238,Oasis Care and Training Agency,M44D,Adult Social Care Operations,Supplies and Services,670.40,May-22
Slough Borough Council,803238,Oasis Care and Training Agency,M44D,Adult Social Care Operations,Supplies and Services,842.32,May-22
Slough Borough Council,803238,Oasis Care and Training Agency,M44F,Adult Social Care Operations,Supplies and Services,"4,331.88",May-22
Slough Borough Council,803238,Oasis Care and Training Agency,M44F,Adult Social Care Operations,Supplies and Services,"1,375.20",May-22
Slough Borough Council,803238,Oasis Care and Training Agency,M45C,Adult Social Care Operations,Supplies and Services,773.56,May-22
Slough Borough Council,803238,Oasis Care and Training Agency,M45C,Adult Social Care Operations,Supplies and Services,"1,443.96",May-22
Slough Borough Council,803238,Oasis Care and Training Agency,M48C,Adult Social Care Operations,Supplies and Services,"9,576.00",May-22
Slough Borough Council,1767,Olive Tree Montessori Ltd,F909,Children & Families,Supplies and Services,"20,748.05",May-22
Slough Borough Council,3603,Olympia Transport Limited,F123,Schools,Supplies and Services,"2,659.33",May-22
Slough Borough Council,332,Olympic Workwear,C406,Communities and Leisure,Supplies and Services,"2,493.90",May-22
Slough Borough Council,804687,Optalis Limited,M42E,Adult Social Care Operations,Supplies and Services,"5,642.13",May-22
Slough Borough Council,804687,Optalis Limited,M42E,Adult Social Care Operations,Supplies and Services,"4,807.26",May-22
Slough Borough Council,804687,Optalis Limited,M42E,Adult Social Care Operations,Supplies and Services,"4,807.26",May-22
Slough Borough Council,804687,Optalis Limited,M42E,Adult Social Care Operations,Supplies and Services,"5,642.13",May-22
Slough Borough Council,803490,Optimum Specialised Home Limited,M26E,Adult Social Care Operations,Supplies and Services,"2,100.00",May-22
Slough Borough Council,803490,Optimum Specialised Home Limited,M26E,Adult Social Care Operations,Supplies and Services,"2,100.00",May-22
Slough Borough Council,803490,Optimum Specialised Home Limited,M26E,Adult Social Care Operations,Supplies and Services,"2,100.00",May-22
Slough Borough Council,803490,Optimum Specialised Home Limited,M26E,Adult Social Care Operations,Supplies and Services,"2,100.00",May-22
Slough Borough Council,803490,Optimum Specialised Home Limited,M26E,Adult Social Care Operations,Supplies and Services,"1,795.00",May-22
Slough Borough Council,803490,Optimum Specialised Home Limited,M26E,Adult Social Care Operations,Supplies and Services,"1,795.00",May-22
Slough Borough Council,803490,Optimum Specialised Home Limited,M26E,Adult Social Care Operations,Supplies and Services,"1,795.00",May-22
Slough Borough Council,803490,Optimum Specialised Home Limited,M26E,Adult Social Care Operations,Supplies and Services,"1,795.00",May-22
Slough Borough Council,807272,Origin Transport Consultants Ltd,D224,Planning and Transport,Supplies and Services,"5,398.69",May-22
Slough Borough Council,805011,Osborne Property Services Limited,P431,Capital,Supplies and Services,"178,659.56",May-22
Slough Borough Council,805011,Osborne Property Services Limited,J607,Place Management,Premises,"115,000.00",May-22
Slough Borough Council,805011,Osborne Property Services Limited,J607,Place Management,Supplies and Services,"100,578.70",May-22
Slough Borough Council,805011,Osborne Property Services Limited,J607,Place Management,Supplies and Services,"163,044.16",May-22
Slough Borough Council,805011,Osborne Property Services Limited,P409,Capital,Capital Charges,"29,304.10",May-22
Slough Borough Council,805011,Osborne Property Services Limited,P413,Capital,Capital Charges,"29,240.37",May-22
Slough Borough Council,805011,Osborne Property Services Limited,P415,Capital,Capital Charges,"3,328.72",May-22
Slough Borough Council,805011,Osborne Property Services Limited,P419,Capital,Capital Charges,"217,823.96",May-22
Slough Borough Council,805011,Osborne Property Services Limited,P419,Capital,Capital Charges,"49,961.84",May-22
Slough Borough Council,805011,Osborne Property Services Limited,J607,Place Management,Supplies and Services,"5,000.04",May-22
Slough Borough Council,3371,Our Lady Of Peace Catholic Primary and Nursery School,E340,Children & Families,Supplies and Services,742.47,May-22
Slough Borough Council,680,Oxford House Community Care,A07R,Adult Social Care Operations,Supplies and Services,"1,242.27",May-22
Slough Borough Council,680,Oxford House Community Care,A07R,Adult Social Care Operations,Supplies and Services,829.71,May-22
Slough Borough Council,680,Oxford House Community Care,A07R,Adult Social Care Operations,Supplies and Services,968.00,May-22
Slough Borough Council,680,Oxford House Community Care,M44C,Adult Social Care Operations,Supplies and Services,972.44,May-22
Slough Borough Council,680,Oxford House Community Care,M44C,Adult Social Care Operations,Supplies and Services,"1,263.69",May-22
Slough Borough Council,680,Oxford House Community Care,M44C,Adult Social Care Operations,Supplies and Services,"1,241.98",May-22
Slough Borough Council,680,Oxford House Community Care,M44C,Adult Social Care Operations,Supplies and Services,"1,249.60",May-22
Slough Borough Council,680,Oxford House Community Care,M44C,Adult Social Care Operations,Supplies and Services,"2,217.60",May-22
Slough Borough Council,680,Oxford House Community Care,M44C,Adult Social Care Operations,Supplies and Services,"2,464.00",May-22
Slough Borough Council,680,Oxford House Community Care,M44C,Adult Social Care Operations,Supplies and Services,872.35,May-22
Slough Borough Council,680,Oxford House Community Care,M44C,Adult Social Care Operations,Supplies and Services,758.25,May-22
Slough Borough Council,680,Oxford House Community Care,M44C,Adult Social Care Operations,Supplies and Services,"1,073.60",May-22
Slough Borough Council,680,Oxford House Community Care,M44C,Adult Social Care Operations,Supplies and Services,"1,049.04",May-22
Slough Borough Council,680,Oxford House Community Care,M44C,Adult Social Care Operations,Supplies and Services,545.80,May-22
Slough Borough Council,680,Oxford House Community Care,M44C,Adult Social Care Operations,Supplies and Services,"1,275.22",May-22
Slough Borough Council,680,Oxford House Community Care,M44C,Adult Social Care Operations,Supplies and Services,"1,232.00",May-22
Slough Borough Council,680,Oxford House Community Care,M44C,Adult Social Care Operations,Supplies and Services,553.00,May-22
Slough Borough Council,680,Oxford House Community Care,M44C,Adult Social Care Operations,Supplies and Services,862.40,May-22
Slough Borough Council,680,Oxford House Community Care,M44C,Adult Social Care Operations,Supplies and Services,"2,162.19",May-22
Slough Borough Council,680,Oxford House Community Care,M44C,Adult Social Care Operations,Supplies and Services,989.72,May-22
Slough Borough Council,680,Oxford House Community Care,M44D,Adult Social Care Operations,Supplies and Services,645.63,May-22
Slough Borough Council,680,Oxford House Community Care,M44D,Adult Social Care Operations,Supplies and Services,616.00,May-22
Slough Borough Council,680,Oxford House Community Care,M44D,Adult Social Care Operations,Supplies and Services,651.20,May-22
Slough Borough Council,680,Oxford House Community Care,M44D,Adult Social Care Operations,Supplies and Services,580.00,May-22
Slough Borough Council,680,Oxford House Community Care,M44D,Adult Social Care Operations,Supplies and Services,"1,126.40",May-22
Slough Borough Council,680,Oxford House Community Care,M44D,Adult Social Care Operations,Supplies and Services,739.20,May-22
Slough Borough Council,680,Oxford House Community Care,M45C,Adult Social Care Operations,Supplies and Services,642.41,May-22
Slough Borough Council,680,Oxford House Community Care,M47D,Adult Social Care Operations,Supplies and Services,638.29,May-22
Slough Borough Council,680,Oxford House Community Care,M47D,Adult Social Care Operations,Supplies and Services,633.60,May-22
Slough Borough Council,680,Oxford House Community Care,M48C,Adult Social Care Operations,Supplies and Services,531.60,May-22
Slough Borough Council,680,Oxford House Community Care,M48C,Adult Social Care Operations,Supplies and Services,945.60,May-22
Slough Borough Council,518,Oxford House Nursing Home,M15D,Adult Social Care Operations,Supplies and Services,"3,052.60",May-22
Slough Borough Council,518,Oxford House Nursing Home,M15D,Adult Social Care Operations,Supplies and Services,"3,052.60",May-22
Slough Borough Council,518,Oxford House Nursing Home,M15D,Adult Social Care Operations,Supplies and Services,"3,052.60",May-22
Slough Borough Council,518,Oxford House Nursing Home,M15D,Adult Social Care Operations,Supplies and Services,"3,052.60",May-22
Slough Borough Council,518,Oxford House Nursing Home,M18C,Adult Social Care Operations,Supplies and Services,"3,052.60",May-22
Slough Borough Council,518,Oxford House Nursing Home,M18C,Adult Social Care Operations,Supplies and Services,"3,052.60",May-22
Slough Borough Council,518,Oxford House Nursing Home,M18C,Adult Social Care Operations,Supplies and Services,"3,052.60",May-22
Slough Borough Council,518,Oxford House Nursing Home,M18C,Adult Social Care Operations,Supplies and Services,"3,052.60",May-22
Slough Borough Council,518,Oxford House Nursing Home,M18C,Adult Social Care Operations,Supplies and Services,"3,052.60",May-22
Slough Borough Council,518,Oxford House Nursing Home,M18C,Adult Social Care Operations,Supplies and Services,"3,052.60",May-22
Slough Borough Council,518,Oxford House Nursing Home,M18C,Adult Social Care Operations,Supplies and Services,"3,052.60",May-22
Slough Borough Council,518,Oxford House Nursing Home,M18C,Adult Social Care Operations,Supplies and Services,"3,052.60",May-22
Slough Borough Council,518,Oxford House Nursing Home,M18C,Adult Social Care Operations,Supplies and Services,"3,052.60",May-22
Slough Borough Council,518,Oxford House Nursing Home,M28C,Adult Social Care Operations,Supplies and Services,"3,052.60",May-22
Slough Borough Council,518,Oxford House Nursing Home,M28C,Adult Social Care Operations,Supplies and Services,"3,052.60",May-22
Slough Borough Council,807442,Pantheon Care Ltd,M44F,Adult Social Care Operations,Supplies and Services,"1,700.00",May-22
Slough Borough Council,807442,Pantheon Care Ltd,M44F,Adult Social Care Operations,Supplies and Services,"1,700.00",May-22
Slough Borough Council,2520,Paradigm Housing Group Ltd,H205,Housing (People) Services,Premises,"23,886.22",May-22
Slough Borough Council,2461,PARK NOW LIMITED,D123,Place Strategy & Infrastructure,Supplies and Services,"6,341.77",May-22
Slough Borough Council,2461,PARK NOW LIMITED,D123,Place Strategy & Infrastructure,Supplies and Services,"5,635.03",May-22
Slough Borough Council,2461,PARK NOW LIMITED,D123,Place Strategy & Infrastructure,Supplies and Services,"5,821.19",May-22
Slough Borough Council,2461,PARK NOW LIMITED,D123,Place Strategy & Infrastructure,Supplies and Services,"5,300.48",May-22
Slough Borough Council,3271,Partnership In Care Ltd,M27F,Adult Social Care Operations,Supplies and Services,"4,072.78",May-22
Slough Borough Council,806879,Pearce Recycling Ltd,D342,Place Operations,Supplies and Services,839.70,May-22
Slough Borough Council,824,Penn Wood Primary and Nursery School,E450,Children & Families,Supplies and Services,"311,880.25",May-22
Slough Borough Council,1504,Permanent Futures Limited,F640,Children & Families,Supplies and Services,"1,500.00",May-22
Slough Borough Council,803786,Phillipa Holliday,C322,Communities and Leisure,Supplies and Services,"1,890.50",May-22
Slough Borough Council,807727,Phoenix Infant Academy c/o Thames Learning Trust,E620,Children & Families,Supplies and Services,"9,375.01",May-22
Slough Borough Council,3359,Pippins School,E370,Children & Families,Supplies and Services,"21,137.84",May-22
Slough Borough Council,904,Pitney Bowes Finance Plc,K077,Business Services,Supplies and Services,504.00,May-22
Slough Borough Council,807120,PJ Care Limited,M15D,Adult Social Care Operations,Supplies and Services,"9,831.65",May-22
Slough Borough Council,806875,Portsmouth City Council,P093,Capital,Capital Charges,"1,523.30",May-22
Slough Borough Council,2537,Pre School Stars,F909,Children & Families,Supplies and Services,"6,682.55",May-22
Slough Borough Council,849,Priory Primary School,E380,Children & Families,Supplies and Services,"445,757.15",May-22
Slough Borough Council,805500,Privilege Care Ltd,B324,Finance,Government Grants,"1,041.23",May-22
Slough Borough Council,1138,Qed Slough Ltd,F868,Children & Families,Supplies and Services,"4,332.48",May-22
Slough Borough Council,2685,R.E.A.C.H,M26E,Adult Social Care Operations,Supplies and Services,"7,485.72",May-22
Slough Borough Council,2685,R.E.A.C.H,M26E,Adult Social Care Operations,Supplies and Services,"6,880.00",May-22
Slough Borough Council,2685,R.E.A.C.H,M26E,Adult Social Care Operations,Supplies and Services,"7,404.56",May-22
Slough Borough Council,2685,R.E.A.C.H,M26E,Adult Social Care Operations,Supplies and Services,"5,261.44",May-22
Slough Borough Council,2685,R.E.A.C.H,M26E,Adult Social Care Operations,Supplies and Services,"7,404.56",May-22
Slough Borough Council,2685,R.E.A.C.H,M26E,Adult Social Care Operations,Supplies and Services,"5,928.12",May-22
Slough Borough Council,2685,R.E.A.C.H,M26E,Adult Social Care Operations,Supplies and Services,"5,261.43",May-22
Slough Borough Council,2685,R.E.A.C.H,M26E,Adult Social Care Operations,Supplies and Services,"7,485.72",May-22
Slough Borough Council,2685,R.E.A.C.H,M26E,Adult Social Care Operations,Supplies and Services,"-5,928.12",May-22
Slough Borough Council,2685,R.E.A.C.H,M26E,Adult Social Care Operations,Supplies and Services,"5,928.12",May-22
Slough Borough Council,2685,R.E.A.C.H,M26E,Adult Social Care Operations,Supplies and Services,"5,928.12",May-22
Slough Borough Council,2685,R.E.A.C.H,M26E,Adult Social Care Operations,Supplies and Services,"10,328.44",May-22
Slough Borough Council,2685,R.E.A.C.H,M26E,Adult Social Care Operations,Supplies and Services,"7,404.56",May-22
Slough Borough Council,2685,R.E.A.C.H,M26E,Adult Social Care Operations,Supplies and Services,"5,928.12",May-22
Slough Borough Council,2685,R.E.A.C.H,M26E,Adult Social Care Operations,Supplies and Services,"5,292.68",May-22
Slough Borough Council,2685,R.E.A.C.H,M26E,Adult Social Care Operations,Supplies and Services,"7,485.72",May-22
Slough Borough Council,2685,R.E.A.C.H,M26E,Adult Social Care Operations,Supplies and Services,"7,034.78",May-22
Slough Borough Council,2685,R.E.A.C.H,M26E,Adult Social Care Operations,External Receipts,-608.80,May-22
Slough Borough Council,2685,R.E.A.C.H,M26E,Adult Social Care Operations,External Receipts,-608.79,May-22
Slough Borough Council,2685,R.E.A.C.H,M26E,Adult Social Care Operations,External Receipts,-640.04,May-22
Slough Borough Council,2685,R.E.A.C.H,M26E,Adult Social Care Operations,External Receipts,-568.98,May-22
Slough Borough Council,690,Reading Borough Council,F500,Education & Inclusion,Supplies and Services,"10,792.50",May-22
Slough Borough Council,806541,Redacted,F550,Children & Families,Supplies and Services,"8,499.75",May-22
Slough Borough Council,808145,Redacted,F123,Schools,Supplies and Services,715.50,May-22
Slough Borough Council,808246,Redacted,F123,Schools,Supplies and Services,800.00,May-22
Slough Borough Council,804506,Redacted,F123,Schools,Supplies and Services,538.20,May-22
Slough Borough Council,803884,Redacted,F909,Children & Families,Supplies and Services,"1,053.27",May-22
Slough Borough Council,806541,Redacted,F909,Children & Families,Supplies and Services,540.00,May-22
Slough Borough Council,806541,Redacted,F909,Children & Families,Supplies and Services,"20,229.02",May-22
Slough Borough Council,3553,Redacted,F909,Children & Families,Supplies and Services,736.35,May-22
Slough Borough Council,3903,Redacted,F909,Children & Families,Supplies and Services,"1,596.95",May-22
Slough Borough Council,805403,Redacted,F909,Children & Families,Supplies and Services,"1,101.75",May-22
Slough Borough Council,805307,Redacted,F909,Children & Families,Supplies and Services,739.64,May-22
Slough Borough Council,3209,Redacted,F909,Children & Families,Supplies and Services,918.12,May-22
Slough Borough Council,804932,Redacted,F909,Children & Families,Supplies and Services,830.36,May-22
Slough Borough Council,808143,Redacted,F909,Children & Families,Supplies and Services,546.92,May-22
Slough Borough Council,804705,Redacted,F909,Children & Families,Supplies and Services,"1,028.30",May-22
Slough Borough Council,808289,Redacted,F909,Children & Families,Supplies and Services,"1,092.33",May-22
Slough Borough Council,807233,Redacted,F909,Children & Families,Supplies and Services,550.87,May-22
Slough Borough Council,803824,Redacted,F909,Children & Families,Supplies and Services,"1,565.07",May-22
Slough Borough Council,807475,Redacted,F909,Children & Families,Supplies and Services,"4,983.50",May-22
Slough Borough Council,3251,Redacted,F909,Children & Families,Supplies and Services,536.75,May-22
Slough Borough Council,803853,Redacted,F909,Children & Families,Supplies and Services,536.75,May-22
Slough Borough Council,807836,Redacted,F909,Children & Families,Supplies and Services,"1,438.17",May-22
Slough Borough Council,3917,Redacted,F909,Children & Families,Supplies and Services,550.88,May-22
Slough Borough Council,803819,Redacted,F909,Children & Families,Supplies and Services,656.10,May-22
Slough Borough Council,805806,Redacted,F909,Children & Families,Supplies and Services,987.62,May-22
Slough Borough Council,804597,Redline Buses Ltd,D512,Major Infrastructure Projects,Supplies and Services,"3,389.70",May-22
Slough Borough Council,806854,Reed Specialist Recruitment,B033,People,Salaries and Wages,792.03,May-22
Slough Borough Council,806854,Reed Specialist Recruitment,B033,People,Salaries and Wages,778.13,May-22
Slough Borough Council,806854,Reed Specialist Recruitment,B033,People,Salaries and Wages,762.56,May-22
Slough Borough Council,807562,Renovo Farnborough Limited,M25D,Adult Social Care Operations,Supplies and Services,"8,502.24",May-22
Slough Borough Council,3486,Response Organisation,M42F,Adult Social Care Operations,Supplies and Services,"1,274.28",May-22
Slough Borough Council,3486,Response Organisation,M42F,Adult Social Care Operations,Supplies and Services,"1,274.28",May-22
Slough Borough Council,3486,Response Organisation,M42F,Adult Social Care Operations,Supplies and Services,539.22,May-22
Slough Borough Council,807437,"Roadworks Information Ltd, trading as Elgin",D501,Place Strategy & Infrastructure,Supplies and Services,"6,139.12",May-22
Slough Borough Council,805054,Rollapaluza Ltd,D509,Place Strategy & Infrastructure,Supplies and Services,"3,000.00",May-22
Slough Borough Council,806930,Roselight Healthcare Service Limited,M42F,Adult Social Care Operations,Supplies and Services,"3,340.00",May-22
Slough Borough Council,806930,Roselight Healthcare Service Limited,M42F,Adult Social Care Operations,Supplies and Services,"2,360.00",May-22
Slough Borough Council,806930,Roselight Healthcare Service Limited,M44F,Adult Social Care Operations,Supplies and Services,"2,600.00",May-22
Slough Borough Council,806930,Roselight Healthcare Service Limited,M44F,Adult Social Care Operations,Supplies and Services,"3,488.00",May-22
Slough Borough Council,806930,Roselight Healthcare Service Limited,M44F,Adult Social Care Operations,Supplies and Services,"1,506.00",May-22
Slough Borough Council,806930,Roselight Healthcare Service Limited,M44F,Adult Social Care Operations,Supplies and Services,"1,765.15",May-22
Slough Borough Council,806930,Roselight Healthcare Service Limited,M44F,Adult Social Care Operations,Supplies and Services,"1,930.00",May-22
Slough Borough Council,806930,Roselight Healthcare Service Limited,M44F,Adult Social Care Operations,Supplies and Services,"1,722.00",May-22
Slough Borough Council,805580,Rouge Media,A07M,Mental Health Services,Supplies and Services,"1,200.00",May-22
Slough Borough Council,356,Royal Mail Group Ltd,B240,Governance,Supplies and Services,"1,076.44",May-22
Slough Borough Council,356,Royal Mail Group Ltd,B240,Governance,Supplies and Services,"2,479.96",May-22
Slough Borough Council,804860,Royal Masonic Benevolent Institution,M18C,Adult Social Care Operations,Supplies and Services,"4,207.14",May-22
Slough Borough Council,2168,RSM UK Risk Assurance Services LLP,B132,Finance & Commercial,Supplies and Services,"25,572.75",May-22
Slough Borough Council,2168,RSM UK Risk Assurance Services LLP,B146,Finance & Commercial,Supplies and Services,"15,200.00",May-22
Slough Borough Council,842,Ryvers Primary School,E620,Children & Families,Supplies and Services,"22,718.68",May-22
Slough Borough Council,806398,Saba Park UK Services Limited,D122,Place Strategy & Infrastructure,Premises,"12,792.47",May-22
Slough Borough Council,806398,Saba Park UK Services Limited,D122,Place Strategy & Infrastructure,Premises,"12,792.47",May-22
Slough Borough Council,806398,Saba Park UK Services Limited,P210,Capital,Capital Charges,"33,248.00",May-22
Slough Borough Council,806398,Saba Park UK Services Limited,D123,Place Strategy & Infrastructure,Supplies and Services,"2,435.22",May-22
Slough Borough Council,806398,Saba Park UK Services Limited,D123,Place Strategy & Infrastructure,Supplies and Services,"2,132.28",May-22
Slough Borough Council,806398,Saba Park UK Services Limited,D123,Place Strategy & Infrastructure,Supplies and Services,902.39,May-22
Slough Borough Council,806398,Saba Park UK Services Limited,D123,Place Strategy & Infrastructure,Supplies and Services,"2,876.40",May-22
Slough Borough Council,806398,Saba Park UK Services Limited,D123,Place Strategy & Infrastructure,Supplies and Services,"2,406.60",May-22
Slough Borough Council,806398,Saba Park UK Services Limited,D123,Place Strategy & Infrastructure,Supplies and Services,"2,105.46",May-22
Slough Borough Council,806398,Saba Park UK Services Limited,D123,Place Strategy & Infrastructure,Supplies and Services,"2,649.40",May-22
Slough Borough Council,806398,Saba Park UK Services Limited,D123,Place Strategy & Infrastructure,Supplies and Services,"1,006.10",May-22
Slough Borough Council,806398,Saba Park UK Services Limited,D123,Place Strategy & Infrastructure,Supplies and Services,"33,248.00",May-22
Slough Borough Council,806398,Saba Park UK Services Limited,D123,Place Strategy & Infrastructure,Supplies and Services,"94,499.50",May-22
Slough Borough Council,806398,Saba Park UK Services Limited,D123,Place Strategy & Infrastructure,Supplies and Services,"92,258.47",May-22
Slough Borough Council,806398,Saba Park UK Services Limited,D122,Place Strategy & Infrastructure,Supplies and Services,"10,499.94",May-22
Slough Borough Council,806398,Saba Park UK Services Limited,D122,Place Strategy & Infrastructure,Supplies and Services,"10,250.94",May-22
Slough Borough Council,806398,Saba Park UK Services Limited,D123,Place Strategy & Infrastructure,Supplies and Services,"1,613.62",May-22
Slough Borough Council,806398,Saba Park UK Services Limited,D123,Place Strategy & Infrastructure,Supplies and Services,"1,613.62",May-22
Slough Borough Council,806398,Saba Park UK Services Limited,D010,Place Strategy & Infrastructure,Supplies and Services,"15,932.31",May-22
Slough Borough Council,806398,Saba Park UK Services Limited,D010,Place Strategy & Infrastructure,Supplies and Services,"17,860.31",May-22
Slough Borough Council,805875,Salutem LD Bidco IV Limited T/A Ambito Care,M25D,Adult Social Care Operations,Supplies and Services,"6,438.21",May-22
Slough Borough Council,805875,Salutem LD Bidco IV Limited T/A Ambito Care,M26E,Adult Social Care Operations,Supplies and Services,"4,355.92",May-22
Slough Borough Council,805875,Salutem LD Bidco IV Limited T/A Ambito Care,M26E,Adult Social Care Operations,External Receipts,-598.21,May-22
Slough Borough Council,804350,Sandra�s Childcare,F909,Children & Families,Supplies and Services,"1,475.79",May-22
Slough Borough Council,1580,Savills (UK) Ltd,J606,Place Management,Supplies and Services,"3,700.00",May-22
Slough Borough Council,1580,Savills (UK) Ltd,J606,Place Management,Supplies and Services,"9,000.00",May-22
Slough Borough Council,1580,Savills (UK) Ltd,J606,Place Management,Supplies and Services,"3,750.00",May-22
Slough Borough Council,1580,Savills (UK) Ltd,J606,Place Management,Supplies and Services,"5,850.00",May-22
Slough Borough Council,1580,Savills (UK) Ltd,J606,Place Management,Supplies and Services,"1,250.00",May-22
Slough Borough Council,1580,Savills (UK) Ltd,J606,Place Management,Supplies and Services,"2,950.50",May-22
Slough Borough Council,3169,Seeability,M26E,Adult Social Care Operations,Supplies and Services,"10,016.31",May-22
Slough Borough Council,3169,Seeability,M26E,Adult Social Care Operations,Supplies and Services,"11,010.00",May-22
Slough Borough Council,803999,Sequence Care Group,M26E,Adult Social Care Operations,Supplies and Services,"12,228.79",May-22
Slough Borough Council,803999,Sequence Care Group,M26E,Adult Social Care Operations,Supplies and Services,"11,834.26",May-22
Slough Borough Council,1680,Service Point,B252,Business Services,Supplies and Services,792.00,May-22
Slough Borough Council,808140,Service to the Aged Ltd,M15D,Adult Social Care Operations,Supplies and Services,"3,642.90",May-22
Slough Borough Council,2585,Seymour House,M26E,Adult Social Care Operations,Supplies and Services,"5,461.80",May-22
Slough Borough Council,2585,Seymour House,M26E,Adult Social Care Operations,Supplies and Services,"5,936.00",May-22
Slough Borough Council,2585,Seymour House,M26E,Adult Social Care Operations,Supplies and Services,"6,572.00",May-22
Slough Borough Council,2585,Seymour House,M26E,Adult Social Care Operations,Supplies and Services,"6,572.00",May-22
Slough Borough Council,2585,Seymour House,M26E,Adult Social Care Operations,Supplies and Services,"4,876.97",May-22
Slough Borough Council,2585,Seymour House,M26E,Adult Social Care Operations,Supplies and Services,"6,360.26",May-22
Slough Borough Council,2585,Seymour House,M26E,Adult Social Care Operations,Supplies and Services,"6,345.03",May-22
Slough Borough Council,2585,Seymour House,M26E,Adult Social Care Operations,Supplies and Services,"1,590.91",May-22
Slough Borough Council,2585,Seymour House,M26E,Adult Social Care Operations,Supplies and Services,"6,572.69",May-22
Slough Borough Council,2585,Seymour House,M26E,Adult Social Care Operations,Supplies and Services,"5,651.17",May-22
Slough Borough Council,2585,Seymour House,M26E,Adult Social Care Operations,Supplies and Services,"1,488.00",May-22
Slough Borough Council,2585,Seymour House,M26E,Adult Social Care Operations,Supplies and Services,"6,572.27",May-22
Slough Borough Council,2585,Seymour House,M42E,Adult Social Care Operations,Supplies and Services,"2,150.40",May-22
Slough Borough Council,2585,Seymour House,M42E,Adult Social Care Operations,Supplies and Services,"2,371.38",May-22
Slough Borough Council,2585,Seymour House,M26E,Adult Social Care Operations,External Receipts,-580.50,May-22
Slough Borough Council,2585,Seymour House,M26E,Adult Social Care Operations,External Receipts,-521.95,May-22
Slough Borough Council,2585,Seymour House,M26E,Adult Social Care Operations,External Receipts,-607.16,May-22
Slough Borough Council,808238,SFE Limited,B015,Finance,Salaries and Wages,"1,000.00",May-22
Slough Borough Council,805203,Shorts Agricultural Services Ltd,D342,Place Operations,Supplies and Services,"5,344.15",May-22
Slough Borough Council,805203,Shorts Agricultural Services Ltd,D342,Place Operations,Supplies and Services,"17,983.16",May-22
Slough Borough Council,805807,Siemens Mobility Limited,P209,Capital,Capital Charges,"2,044.00",May-22
Slough Borough Council,40,Singh Sabha Sports Centre,B240,Governance,Supplies and Services,850.00,May-22
Slough Borough Council,3333,Slk Services,F123,Schools,Supplies and Services,"5,137.00",May-22
Slough Borough Council,1459,Slough And Eton C E School,E610,Children & Families,Supplies and Services,"25,245.19",May-22
Slough Borough Council,807834,Slough Children First,M99C,"Children, Learning and Skills",Supplies and Services,"2,619,512.80",May-22
Slough Borough Council,807834,Slough Children First,M99C,"Children, Learning and Skills",Supplies and Services,"2,619,512.80",May-22
Slough Borough Council,276,Slough Community Transport & Shopmobility,F123,Schools,Supplies and Services,"26,654.32",May-22
Slough Borough Council,276,Slough Community Transport & Shopmobility,F123,Schools,Supplies and Services,"32,954.16",May-22
Slough Borough Council,1913,Slough Crossroads Caring For Carers,M44C,Adult Social Care Operations,Supplies and Services,"1,126.00",May-22
Slough Borough Council,1913,Slough Crossroads Caring For Carers,M44C,Adult Social Care Operations,Supplies and Services,678.00,May-22
Slough Borough Council,1913,Slough Crossroads Caring For Carers,M44E,Adult Social Care Operations,Supplies and Services,750.00,May-22
Slough Borough Council,1913,Slough Crossroads Caring For Carers,M44E,Adult Social Care Operations,Supplies and Services,"1,040.00",May-22
Slough Borough Council,1913,Slough Crossroads Caring For Carers,M44E,Adult Social Care Operations,Supplies and Services,"1,200.00",May-22
Slough Borough Council,1913,Slough Crossroads Caring For Carers,M81C,Adult Social Care Operations,Supplies and Services,560.00,May-22
Slough Borough Council,114,Solutions 4 Health Ltd,A03C,People Strategy & Commissioning,Supplies and Services,"29,250.00",May-22
Slough Borough Council,114,Solutions 4 Health Ltd,A01P,Public Health,Supplies and Services,"229,057.81",May-22
Slough Borough Council,114,Solutions 4 Health Ltd,A01P,Public Health,Supplies and Services,"60,000.00",May-22
Slough Borough Council,114,Solutions 4 Health Ltd,A01P,Public Health,Supplies and Services,"60,000.00",May-22
Slough Borough Council,805742,Southern Tyre Recycling Ltd,D342,Place Operations,Supplies and Services,627.00,May-22
Slough Borough Council,807995,Sport4Kids,F382,Children & Families,Supplies and Services,"2,200.00",May-22
Slough Borough Council,807995,Sport4Kids,F382,Children & Families,Supplies and Services,"2,160.00",May-22
Slough Borough Council,807995,Sport4Kids,F382,Children & Families,Supplies and Services,"5,500.00",May-22
Slough Borough Council,807995,Sport4Kids,F382,Children & Families,Supplies and Services,637.00,May-22
Slough Borough Council,808144,Sports Inc,F382,Children & Families,Supplies and Services,"7,213.60",May-22
Slough Borough Council,1875,Ss & Kk. Hothi,H205,Housing (People) Services,Premises,"1,975.00",May-22
Slough Borough Council,1875,Ss & Kk. Hothi,H205,Housing (People) Services,Premises,"11,771.25",May-22
Slough Borough Council,1875,Ss & Kk. Hothi,H205,Housing (People) Services,Premises,"15,816.66",May-22
Slough Borough Council,808060,SSE,H203,Community,Premises,510.70,May-22
Slough Borough Council,808060,SSE,H203,Community,Premises,"1,256.15",May-22
Slough Borough Council,803165,St Anthony�s Catholic Primary School & Nursery,E620,Children & Families,Supplies and Services,"17,737.10",May-22
Slough Borough Council,2918,St Bernard�S Rc Preparatory School,F909,Children & Families,Supplies and Services,"14,635.90",May-22
Slough Borough Council,3383,St Bernards Catholic Grammar School,E550,Children & Families,Supplies and Services,"519,900.44",May-22
Slough Borough Council,3547,St Ethelberts School,E620,Children & Families,Supplies and Services,"13,619.25",May-22
Slough Borough Council,1378,St Josephs Catholic High School,E610,Children & Families,Supplies and Services,"13,500.00",May-22
Slough Borough Council,806584,St Mattews Ltd,M15F,Adult Social Care Operations,Supplies and Services,"3,964.29",May-22
Slough Borough Council,806584,St Mattews Ltd,M15F,Adult Social Care Operations,Supplies and Services,"3,964.29",May-22
Slough Borough Council,806584,St Mattews Ltd,M15F,Adult Social Care Operations,Supplies and Services,"4,096.43",May-22
Slough Borough Council,804910,Stennetts Limited,D630,Place Operations,Supplies and Services,"5,070.00",May-22
Slough Borough Council,804910,Stennetts Limited,D750,Place Operations,Supplies and Services,"1,000.00",May-22
Slough Borough Council,804910,Stennetts Limited,D880,Place Operations,Supplies and Services,"1,365.00",May-22
Slough Borough Council,808142,Step Together Ltd,M28E,Adult Social Care Operations,Supplies and Services,720.00,May-22
Slough Borough Council,806115,Stepping Stones,F909,Children & Families,Supplies and Services,565.01,May-22
Slough Borough Council,2688,Sunnyside Nursing Home,M15D,Adult Social Care Operations,Supplies and Services,"2,991.76",May-22
Slough Borough Council,807889,Sunrise Transport Ltd,F123,Schools,Supplies and Services,"3,110.00",May-22
Slough Borough Council,807889,Sunrise Transport Ltd,F123,Schools,Supplies and Services,"1,260.60",May-22
Slough Borough Council,293,Surecare Slough,M44C,Adult Social Care Operations,Supplies and Services,636.06,May-22
Slough Borough Council,293,Surecare Slough,M44C,Adult Social Care Operations,Supplies and Services,802.48,May-22
Slough Borough Council,293,Surecare Slough,M44C,Adult Social Care Operations,Supplies and Services,"2,658.72",May-22
Slough Borough Council,293,Surecare Slough,M44C,Adult Social Care Operations,Supplies and Services,532.27,May-22
Slough Borough Council,293,Surecare Slough,M44C,Adult Social Care Operations,Supplies and Services,"1,337.84",May-22
Slough Borough Council,293,Surecare Slough,M44C,Adult Social Care Operations,Supplies and Services,"1,083.43",May-22
Slough Borough Council,293,Surecare Slough,M44C,Adult Social Care Operations,Supplies and Services,"1,407.06",May-22
Slough Borough Council,293,Surecare Slough,M44C,Adult Social Care Operations,Supplies and Services,799.98,May-22
Slough Borough Council,293,Surecare Slough,M44C,Adult Social Care Operations,Supplies and Services,"2,483.00",May-22
Slough Borough Council,293,Surecare Slough,M44C,Adult Social Care Operations,Supplies and Services,802.20,May-22
Slough Borough Council,293,Surecare Slough,M44C,Adult Social Care Operations,Supplies and Services,"2,674.00",May-22
Slough Borough Council,293,Surecare Slough,M44C,Adult Social Care Operations,Supplies and Services,935.90,May-22
Slough Borough Council,293,Surecare Slough,M44C,Adult Social Care Operations,Supplies and Services,534.80,May-22
Slough Borough Council,293,Surecare Slough,M44C,Adult Social Care Operations,Supplies and Services,"1,184.20",May-22
Slough Borough Council,293,Surecare Slough,M44C,Adult Social Care Operations,Supplies and Services,"2,406.60",May-22
Slough Borough Council,293,Surecare Slough,M44C,Adult Social Care Operations,Supplies and Services,"2,674.00",May-22
Slough Borough Council,293,Surecare Slough,M44C,Adult Social Care Operations,Supplies and Services,"2,673.72",May-22
Slough Borough Council,293,Surecare Slough,M44C,Adult Social Care Operations,Supplies and Services,"2,502.10",May-22
Slough Borough Council,293,Surecare Slough,M44C,Adult Social Care Operations,Supplies and Services,"1,203.30",May-22
Slough Borough Council,293,Surecare Slough,M44C,Adult Social Care Operations,Supplies and Services,"2,406.60",May-22
Slough Borough Council,293,Surecare Slough,M44C,Adult Social Care Operations,Supplies and Services,749.77,May-22
Slough Borough Council,293,Surecare Slough,M44C,Adult Social Care Operations,Supplies and Services,"2,406.60",May-22
Slough Borough Council,293,Surecare Slough,M44C,Adult Social Care Operations,Supplies and Services,"2,406.60",May-22
Slough Borough Council,293,Surecare Slough,M44C,Adult Social Care Operations,Supplies and Services,534.80,May-22
Slough Borough Council,293,Surecare Slough,M44C,Adult Social Care Operations,Supplies and Services,"2,941.40",May-22
Slough Borough Council,293,Surecare Slough,M44C,Adult Social Care Operations,Supplies and Services,"1,337.00",May-22
Slough Borough Council,293,Surecare Slough,M44D,Adult Social Care Operations,Supplies and Services,"1,184.88",May-22
Slough Borough Council,293,Surecare Slough,M44D,Adult Social Care Operations,Supplies and Services,668.64,May-22
Slough Borough Council,293,Surecare Slough,M44D,Adult Social Care Operations,Supplies and Services,"2,189.41",May-22
Slough Borough Council,293,Surecare Slough,M44D,Adult Social Care Operations,Supplies and Services,"2,406.60",May-22
Slough Borough Council,293,Surecare Slough,M44D,Adult Social Care Operations,Supplies and Services,"2,406.60",May-22
Slough Borough Council,293,Surecare Slough,M44D,Adult Social Care Operations,Supplies and Services,"1,337.00",May-22
Slough Borough Council,293,Surecare Slough,M44D,Adult Social Care Operations,Supplies and Services,"1,691.82",May-22
Slough Borough Council,293,Surecare Slough,M44D,Adult Social Care Operations,Supplies and Services,"3,629.00",May-22
Slough Borough Council,293,Surecare Slough,M44D,Adult Social Care Operations,Supplies and Services,"2,406.60",May-22
Slough Borough Council,293,Surecare Slough,M44D,Adult Social Care Operations,Supplies and Services,956.47,May-22
Slough Borough Council,293,Surecare Slough,M44E,Adult Social Care Operations,Supplies and Services,687.60,May-22
Slough Borough Council,293,Surecare Slough,M44E,Adult Social Care Operations,Supplies and Services,802.20,May-22
Slough Borough Council,293,Surecare Slough,M44F,Adult Social Care Operations,Supplies and Services,687.60,May-22
Slough Borough Council,293,Surecare Slough,M47D,Adult Social Care Operations,Supplies and Services,"2,406.60",May-22
Slough Borough Council,293,Surecare Slough,M48C,Adult Social Care Operations,Supplies and Services,"2,134.43",May-22
Slough Borough Council,293,Surecare Slough,M48C,Adult Social Care Operations,Supplies and Services,"2,406.60",May-22
Slough Borough Council,715,Surrey County Council,F123,Schools,Supplies and Services,"4,029.00",May-22
Slough Borough Council,715,Surrey County Council,F123,Schools,Supplies and Services,"3,318.00",May-22
Slough Borough Council,804906,T H White Limited,D750,Place Operations,Supplies and Services,505.09,May-22
Slough Borough Council,804906,T H White Limited,D750,Place Operations,Supplies and Services,552.98,May-22
Slough Borough Council,804906,T H White Limited,D750,Place Operations,Supplies and Services,552.98,May-22
Slough Borough Council,804906,T H White Limited,D750,Place Operations,Supplies and Services,730.78,May-22
Slough Borough Council,803200,Tameside Metropolitan Borough,H009,Business Services,Supplies and Services,"1,600.00",May-22
Slough Borough Council,805683,Team Carita DCS Limited,M44C,Adult Social Care Operations,Supplies and Services,"1,072.00",May-22
Slough Borough Council,805683,Team Carita DCS Limited,M44C,Adult Social Care Operations,Supplies and Services,"1,072.00",May-22
Slough Borough Council,805683,Team Carita DCS Limited,M44F,Adult Social Care Operations,Supplies and Services,736.00,May-22
Slough Borough Council,3369,Teeny Boppers Montessori School,F909,Children & Families,Supplies and Services,"8,354.28",May-22
Slough Borough Council,803153,Thames Valley Athletics Centre Management Trust,C025,Community,Supplies and Services,"52,500.00",May-22
Slough Borough Council,807878,Thames Valley Buses,D512,Major Infrastructure Projects,Supplies and Services,"1,667.08",May-22
Slough Borough Council,803712,Thames Valley Transport Services LTD,F123,Schools,Supplies and Services,"8,825.00",May-22
Slough Borough Council,803712,Thames Valley Transport Services LTD,F123,Schools,Supplies and Services,"50,932.70",May-22
Slough Borough Council,653,The Godolphin Junior Academy,E620,Children & Families,Supplies and Services,"4,667.00",May-22
Slough Borough Council,2206,The Housing Ombudsman,J200,Place Management,Supplies and Services,"28,589.00",May-22
Slough Borough Council,1385,The Langley Academy,E610,Children & Families,Supplies and Services,"9,000.01",May-22
Slough Borough Council,803300,The Langley Academy Primary,E610,Children & Families,Supplies and Services,"14,145.42",May-22
Slough Borough Council,806847,The Langley Heritage Primary Academy,E620,Children & Families,Supplies and Services,"23,280.00",May-22
Slough Borough Council,805400,The Leading Care Company,M44C,Adult Social Care Operations,Supplies and Services,"1,028.49",May-22
Slough Borough Council,805400,The Leading Care Company,M44C,Adult Social Care Operations,Supplies and Services,"2,548.14",May-22
Slough Borough Council,805400,The Leading Care Company,M44C,Adult Social Care Operations,Supplies and Services,663.03,May-22
Slough Borough Council,805400,The Leading Care Company,M44D,Adult Social Care Operations,Supplies and Services,"5,404.22",May-22
Slough Borough Council,805400,The Leading Care Company,M48C,Adult Social Care Operations,Supplies and Services,"3,800.16",May-22
Slough Borough Council,1955,The National Flood Forum,D015,Major Infrastructure Projects,Supplies and Services,"5,848.00",May-22
Slough Borough Council,3116,The Oratory Montessori Day Nursery,F909,Children & Families,Supplies and Services,"13,699.58",May-22
Slough Borough Council,803338,The Owl Centre,F417,Education & Inclusion,Supplies and Services,705.00,May-22
Slough Borough Council,807439,The Pines,M26E,Adult Social Care Operations,Supplies and Services,"3,934.20",May-22
Slough Borough Council,807439,The Pines,M26E,Adult Social Care Operations,Supplies and Services,"4,417.06",May-22
Slough Borough Council,96,The Play Inspection Company Ltd,J015,Place Management,Premises,"1,810.70",May-22
Slough Borough Council,96,The Play Inspection Company Ltd,C001,Place Operations,Premises,"2,859.00",May-22
Slough Borough Council,2898,The Regard Partnership Ltd,M26E,Adult Social Care Operations,Supplies and Services,"7,231.77",May-22
Slough Borough Council,2898,The Regard Partnership Ltd,M26E,Adult Social Care Operations,Supplies and Services,"6,107.75",May-22
Slough Borough Council,2898,The Regard Partnership Ltd,M42E,Adult Social Care Operations,Supplies and Services,"-4,871.36",May-22
Slough Borough Council,2898,The Regard Partnership Ltd,M42E,Adult Social Care Operations,Supplies and Services,"5,353.17",May-22
Slough Borough Council,2898,The Regard Partnership Ltd,M42E,Adult Social Care Operations,Supplies and Services,"5,129.35",May-22
Slough Borough Council,2898,The Regard Partnership Ltd,M42E,Adult Social Care Operations,Supplies and Services,"6,520.63",May-22
Slough Borough Council,2898,The Regard Partnership Ltd,M42E,Adult Social Care Operations,Supplies and Services,"6,559.16",May-22
Slough Borough Council,2898,The Regard Partnership Ltd,M42E,Adult Social Care Operations,Supplies and Services,"6,743.47",May-22
Slough Borough Council,2898,The Regard Partnership Ltd,M42E,Adult Social Care Operations,Supplies and Services,"5,007.74",May-22
Slough Borough Council,2898,The Regard Partnership Ltd,M42E,Adult Social Care Operations,Supplies and Services,"4,591.71",May-22
Slough Borough Council,2898,The Regard Partnership Ltd,M44D,Adult Social Care Operations,Supplies and Services,"4,519.14",May-22
Slough Borough Council,2898,The Regard Partnership Ltd,M44E,Adult Social Care Operations,Supplies and Services,"5,594.70",May-22
Slough Borough Council,821,The Westgate School,E610,Children & Families,Supplies and Services,"26,921.81",May-22
Slough Borough Council,806360,Tiny Turtles Daycare Nursery Ltd,F909,Children & Families,Supplies and Services,"14,977.65",May-22
Slough Borough Council,803194,TMP Worldwide,B348,People,Indirect Employee Expenses,"7,259.75",May-22
Slough Borough Council,803194,TMP Worldwide,B348,People,Indirect Employee Expenses,"8,115.40",May-22
Slough Borough Council,803194,TMP Worldwide,B348,People,Indirect Employee Expenses,585.00,May-22
Slough Borough Council,171,Toad Hall Nursery,F909,Children & Families,Supplies and Services,"23,509.31",May-22
Slough Borough Council,1782,Top Mill Ltd,H205,Housing (People) Services,Supplies and Services,840.00,May-22
Slough Borough Council,1782,Top Mill Ltd,H205,Housing (People) Services,Supplies and Services,"1,120.00",May-22
Slough Borough Council,1782,Top Mill Ltd,H205,Housing (People) Services,Supplies and Services,840.00,May-22
Slough Borough Council,1782,Top Mill Ltd,H205,Housing (People) Services,Supplies and Services,930.00,May-22
Slough Borough Council,1782,Top Mill Ltd,H223,Community,Supplies and Services,840.00,May-22
Slough Borough Council,1782,Top Mill Ltd,H223,Community,Supplies and Services,"6,300.00",May-22
Slough Borough Council,2432,Tracsis Traffic Data Limited,P238,Capital,Capital Charges,"4,100.00",May-22
Slough Borough Council,2432,Tracsis Traffic Data Limited,P192,Capital,Capital Charges,"6,757.00",May-22
Slough Borough Council,806348,Trinity Homelesss Projects,H216,Community,Supplies and Services,"6,000.00",May-22
Slough Borough Council,803437,Trinova Systems Ltd,D750,Place Operations,Supplies and Services,"2,500.00",May-22
Slough Borough Council,2889,Tudor (UK) Ltd t/a Tudor Environmental,D750,Place Operations,Supplies and Services,"1,159.87",May-22
Slough Borough Council,2889,Tudor (UK) Ltd t/a Tudor Environmental,D750,Place Operations,Supplies and Services,941.25,May-22
Slough Borough Council,807414,Uniq Health Care,M42E,Adult Social Care Operations,Supplies and Services,"1,228.00",May-22
Slough Borough Council,807414,Uniq Health Care,M42E,Adult Social Care Operations,Supplies and Services,"1,228.00",May-22
Slough Borough Council,807414,Uniq Health Care,M42E,Adult Social Care Operations,Supplies and Services,"1,228.00",May-22
Slough Borough Council,807414,Uniq Health Care,M42E,Adult Social Care Operations,Supplies and Services,"1,228.00",May-22
Slough Borough Council,807414,Uniq Health Care,M42E,Adult Social Care Operations,Supplies and Services,"1,228.00",May-22
Slough Borough Council,807414,Uniq Health Care,M42E,Adult Social Care Operations,Supplies and Services,"1,228.00",May-22
Slough Borough Council,807414,Uniq Health Care,M42E,Adult Social Care Operations,Supplies and Services,"1,228.00",May-22
Slough Borough Council,807414,Uniq Health Care,M42E,Adult Social Care Operations,Supplies and Services,"1,228.00",May-22
Slough Borough Council,807414,Uniq Health Care,M42E,Adult Social Care Operations,Supplies and Services,"1,228.00",May-22
Slough Borough Council,3953,Upton Court Grammar School,E610,Children & Families,Supplies and Services,"2,000.00",May-22
Slough Borough Council,577,Upton Park Hotel,H205,Housing (People) Services,Supplies and Services,"2,520.00",May-22
Slough Borough Council,577,Upton Park Hotel,H205,Housing (People) Services,Supplies and Services,"2,520.00",May-22
Slough Borough Council,577,Upton Park Hotel,H205,Housing (People) Services,Supplies and Services,"2,160.00",May-22
Slough Borough Council,577,Upton Park Hotel,H205,Housing (People) Services,Supplies and Services,"2,520.00",May-22
Slough Borough Council,577,Upton Park Hotel,H205,Housing (People) Services,Supplies and Services,"2,520.00",May-22
Slough Borough Council,577,Upton Park Hotel,H205,Housing (People) Services,Supplies and Services,"2,520.00",May-22
Slough Borough Council,577,Upton Park Hotel,H205,Housing (People) Services,Supplies and Services,"2,520.00",May-22
Slough Borough Council,577,Upton Park Hotel,H205,Housing (People) Services,Supplies and Services,"2,107.00",May-22
Slough Borough Council,577,Upton Park Hotel,H205,Housing (People) Services,Supplies and Services,"2,520.00",May-22
Slough Borough Council,577,Upton Park Hotel,H205,Housing (People) Services,Supplies and Services,"2,520.00",May-22
Slough Borough Council,577,Upton Park Hotel,H205,Housing (People) Services,Supplies and Services,"2,520.00",May-22
Slough Borough Council,577,Upton Park Hotel,H205,Housing (People) Services,Supplies and Services,"2,520.00",May-22
Slough Borough Council,577,Upton Park Hotel,H205,Housing (People) Services,Supplies and Services,"2,520.00",May-22
Slough Borough Council,577,Upton Park Hotel,H205,Housing (People) Services,Supplies and Services,"2,520.00",May-22
Slough Borough Council,577,Upton Park Hotel,H205,Housing (People) Services,Supplies and Services,"2,520.00",May-22
Slough Borough Council,577,Upton Park Hotel,H205,Housing (People) Services,Supplies and Services,"2,304.00",May-22
Slough Borough Council,577,Upton Park Hotel,H205,Housing (People) Services,Supplies and Services,"3,696.00",May-22
Slough Borough Council,577,Upton Park Hotel,H205,Housing (People) Services,Supplies and Services,"2,520.00",May-22
Slough Borough Council,577,Upton Park Hotel,H205,Housing (People) Services,Supplies and Services,"2,520.00",May-22
Slough Borough Council,577,Upton Park Hotel,H205,Housing (People) Services,Supplies and Services,675.00,May-22
Slough Borough Council,577,Upton Park Hotel,H205,Housing (People) Services,Supplies and Services,"2,520.00",May-22
Slough Borough Council,577,Upton Park Hotel,H205,Housing (People) Services,Supplies and Services,"2,520.00",May-22
Slough Borough Council,577,Upton Park Hotel,H205,Housing (People) Services,Supplies and Services,"2,520.00",May-22
Slough Borough Council,577,Upton Park Hotel,H205,Housing (People) Services,Supplies and Services,"2,304.00",May-22
Slough Borough Council,577,Upton Park Hotel,H205,Housing (People) Services,Supplies and Services,"2,520.00",May-22
Slough Borough Council,577,Upton Park Hotel,H205,Housing (People) Services,Supplies and Services,"2,520.00",May-22
Slough Borough Council,577,Upton Park Hotel,H205,Housing (People) Services,Supplies and Services,"2,520.00",May-22
Slough Borough Council,577,Upton Park Hotel,H205,Housing (People) Services,Supplies and Services,"3,024.00",May-22
Slough Borough Council,577,Upton Park Hotel,H205,Housing (People) Services,Supplies and Services,"3,024.00",May-22
Slough Borough Council,577,Upton Park Hotel,H205,Housing (People) Services,Supplies and Services,"2,520.00",May-22
Slough Borough Council,577,Upton Park Hotel,H205,Housing (People) Services,Supplies and Services,"4,368.00",May-22
Slough Borough Council,577,Upton Park Hotel,H205,Housing (People) Services,Supplies and Services,"2,520.00",May-22
Slough Borough Council,577,Upton Park Hotel,H205,Housing (People) Services,Supplies and Services,"2,520.00",May-22
Slough Borough Council,577,Upton Park Hotel,H205,Housing (People) Services,Supplies and Services,"2,304.00",May-22
Slough Borough Council,577,Upton Park Hotel,H205,Housing (People) Services,Supplies and Services,"2,520.00",May-22
Slough Borough Council,577,Upton Park Hotel,H205,Housing (People) Services,Supplies and Services,"2,520.00",May-22
Slough Borough Council,577,Upton Park Hotel,H205,Housing (People) Services,Supplies and Services,"4,368.00",May-22
Slough Borough Council,577,Upton Park Hotel,H205,Housing (People) Services,Supplies and Services,"2,520.00",May-22
Slough Borough Council,577,Upton Park Hotel,H205,Housing (People) Services,Supplies and Services,"2,520.00",May-22
Slough Borough Council,577,Upton Park Hotel,H205,Housing (People) Services,Supplies and Services,"2,352.00",May-22
Slough Borough Council,577,Upton Park Hotel,H205,Housing (People) Services,Supplies and Services,"2,520.00",May-22
Slough Borough Council,577,Upton Park Hotel,H205,Housing (People) Services,Supplies and Services,"2,688.00",May-22
Slough Borough Council,577,Upton Park Hotel,H205,Housing (People) Services,Supplies and Services,"2,688.00",May-22
Slough Borough Council,577,Upton Park Hotel,H205,Housing (People) Services,Supplies and Services,"2,520.00",May-22
Slough Borough Council,577,Upton Park Hotel,H205,Housing (People) Services,Supplies and Services,"2,016.00",May-22
Slough Borough Council,577,Upton Park Hotel,H205,Housing (People) Services,Supplies and Services,"2,352.00",May-22
Slough Borough Council,577,Upton Park Hotel,H205,Housing (People) Services,Supplies and Services,"2,016.00",May-22
Slough Borough Council,577,Upton Park Hotel,H205,Housing (People) Services,Supplies and Services,"2,520.00",May-22
Slough Borough Council,577,Upton Park Hotel,H205,Housing (People) Services,Supplies and Services,"5,712.00",May-22
Slough Borough Council,577,Upton Park Hotel,H205,Housing (People) Services,Supplies and Services,"6,048.00",May-22
Slough Borough Council,577,Upton Park Hotel,H205,Housing (People) Services,Supplies and Services,"5,640.00",May-22
Slough Borough Council,577,Upton Park Hotel,H205,Housing (People) Services,Supplies and Services,630.00,May-22
Slough Borough Council,577,Upton Park Hotel,H205,Housing (People) Services,Supplies and Services,"2,040.00",May-22
Slough Borough Council,808215,Vanguard Learning Trust - Vyners School,F552,Children & Families,Supplies and Services,"7,500.00",May-22
Slough Borough Council,1070,Vip System Limited,D316,Place Regulation,Supplies and Services,"2,197.31",May-22
Slough Borough Council,1212,Virgin Media Ltd,B282,Digital and Strategic IT,Supplies and Services,"75,526.70",May-22
Slough Borough Council,1212,Virgin Media Ltd,B023,Finance & Commercial,Supplies and Services,"2,402.19",May-22
Slough Borough Council,1212,Virgin Media Ltd,B023,Finance & Commercial,Supplies and Services,"21,536.71",May-22
Slough Borough Council,1212,Virgin Media Ltd,B023,Finance & Commercial,Supplies and Services,"3,889.56",May-22
Slough Borough Council,1212,Virgin Media Ltd,B023,Finance & Commercial,Supplies and Services,"3,128.65",May-22
Slough Borough Council,1212,Virgin Media Ltd,B023,Finance & Commercial,Supplies and Services,"23,672.20",May-22
Slough Borough Council,1213,Virgin Media Payments Ltd,K089,Place Regulation,Supplies and Services,"33,314.00",May-22
Slough Borough Council,803163,Volker Highways,P235,Capital,Capital Charges,"21,221.04",May-22
Slough Borough Council,2682,Voyage 1 Limited,M26E,Adult Social Care Operations,Supplies and Services,"7,798.14",May-22
Slough Borough Council,2682,Voyage 1 Limited,M26E,Adult Social Care Operations,Supplies and Services,"5,477.92",May-22
Slough Borough Council,2682,Voyage 1 Limited,M26E,Adult Social Care Operations,Supplies and Services,"5,064.69",May-22
Slough Borough Council,2682,Voyage 1 Limited,M26E,Adult Social Care Operations,Supplies and Services,"6,483.30",May-22
Slough Borough Council,2682,Voyage 1 Limited,M27F,Adult Social Care Operations,Supplies and Services,"5,016.97",May-22
Slough Borough Council,2682,Voyage 1 Limited,M26E,Adult Social Care Operations,Supplies and Services,"7,573.23",May-22
Slough Borough Council,2682,Voyage 1 Limited,M26E,Adult Social Care Operations,External Receipts,-651.82,May-22
Slough Borough Council,2682,Voyage 1 Limited,M26E,Adult Social Care Operations,External Receipts,-725.05,May-22
Slough Borough Council,3436,Voyage Ltd,M26E,Adult Social Care Operations,Supplies and Services,"3,575.98",May-22
Slough Borough Council,1762,Wellingtons For Langley Hall,F909,Children & Families,Supplies and Services,"72,824.09",May-22
Slough Borough Council,1762,Wellingtons For Langley Hall,F909,Children & Families,Supplies and Services,600.00,May-22
Slough Borough Council,2891,West Berkshire Council,A08R,Adult Social Care Operations,Supplies and Services,"244,918.63",May-22
Slough Borough Council,1649,Western House Primary School,E610,Children & Families,Supplies and Services,"27,437.17",May-22
Slough Borough Council,2095,White Horse Contractors Ltd,P083,Capital,Capital Charges,"10,054.69",May-22
Slough Borough Council,3628,White Leaf Care Ltd,M26E,Adult Social Care Operations,Supplies and Services,"4,198.29",May-22
Slough Borough Council,3628,White Leaf Care Ltd,M27C,Adult Social Care Operations,Supplies and Services,"7,985.60",May-22
Slough Borough Council,808062,Whitefriars Nursing & Residential Home,M26E,Adult Social Care Operations,Supplies and Services,"3,365.60",May-22
Slough Borough Council,804908,Whitestone Care,B298,Finance,Supplies and Services,767.02,May-22
Slough Borough Council,804908,Whitestone Care,B298,Finance,Supplies and Services,"2,094.02",May-22
Slough Borough Council,804908,Whitestone Care,B298,Finance,Supplies and Services,"3,227.09",May-22
Slough Borough Council,804908,Whitestone Care,B324,Finance,Supplies and Services,"12,594.95",May-22
Slough Borough Council,1753,Willow Primary School,E620,Children & Families,Supplies and Services,"16,457.18",May-22
Slough Borough Council,805208,Wilson & Scott (Highways) Ltd,D880,Place Operations,Supplies and Services,"2,252.17",May-22
Slough Borough Council,805209,Wilsons Horticultural Maintenance Ltd,D750,Place Operations,Supplies and Services,"2,193.63",May-22
Slough Borough Council,805209,Wilsons Horticultural Maintenance Ltd,D750,Place Operations,Supplies and Services,772.54,May-22
Slough Borough Council,805209,Wilsons Horticultural Maintenance Ltd,D750,Place Operations,Supplies and Services,"4,954.70",May-22
Slough Borough Council,805209,Wilsons Horticultural Maintenance Ltd,D750,Place Operations,Supplies and Services,"4,529.83",May-22
Slough Borough Council,805209,Wilsons Horticultural Maintenance Ltd,D750,Place Operations,Supplies and Services,"2,259.41",May-22
Slough Borough Council,807549,Windsar Care (UK) LLP,A06C,Adult Social Care Commissioning,Supplies and Services,"-15,085.71",May-22
Slough Borough Council,807549,Windsar Care (UK) LLP,A06C,Adult Social Care Commissioning,Supplies and Services,"47,828.58",May-22
Slough Borough Council,807549,Windsar Care (UK) LLP,A06E,Adult Social Care Operations,Supplies and Services,"15,942.86",May-22
Slough Borough Council,807549,Windsar Care (UK) LLP,A06E,Adult Social Care Operations,Supplies and Services,"-1,714.29",May-22
Slough Borough Council,807549,Windsar Care (UK) LLP,M15F,Adult Social Care Operations,Supplies and Services,"4,071.43",May-22
Slough Borough Council,807549,Windsar Care (UK) LLP,M15F,Adult Social Care Operations,Supplies and Services,"4,071.43",May-22
Slough Borough Council,807549,Windsar Care (UK) LLP,M18C,Adult Social Care Operations,Supplies and Services,"4,178.57",May-22
Slough Borough Council,807549,Windsar Care (UK) LLP,M18C,Adult Social Care Operations,Supplies and Services,"4,178.57",May-22
Slough Borough Council,807549,Windsar Care (UK) LLP,M18C,Adult Social Care Operations,Supplies and Services,"4,071.43",May-22
Slough Borough Council,807549,Windsar Care (UK) LLP,M18C,Adult Social Care Operations,Supplies and Services,"4,317.86",May-22
Slough Borough Council,807549,Windsar Care (UK) LLP,M18C,Adult Social Care Operations,Supplies and Services,557.14,May-22
Slough Borough Council,807549,Windsar Care (UK) LLP,M27F,Adult Social Care Operations,Supplies and Services,"1,114.29",May-22
Slough Borough Council,807549,Windsar Care (UK) LLP,M27F,Adult Social Care Operations,Supplies and Services,"2,158.93",May-22
Slough Borough Council,807549,Windsar Care (UK) LLP,M27F,Adult Social Care Operations,Supplies and Services,"2,089.29",May-22
Slough Borough Council,807549,Windsar Care (UK) LLP,M27F,Adult Social Care Operations,Supplies and Services,"2,057.14",May-22
Slough Borough Council,807549,Windsar Care (UK) LLP,M28C,Adult Social Care Operations,Supplies and Services,"4,800.00",May-22
Slough Borough Council,807549,Windsar Care (UK) LLP,M28C,Adult Social Care Operations,Supplies and Services,"4,800.00",May-22
Slough Borough Council,807549,Windsar Care (UK) LLP,M28C,Adult Social Care Operations,Supplies and Services,"5,314.29",May-22
Slough Borough Council,807549,Windsar Care (UK) LLP,M28C,Adult Social Care Operations,Supplies and Services,"4,114.29",May-22
Slough Borough Council,807549,Windsar Care (UK) LLP,M28C,Adult Social Care Operations,Supplies and Services,"4,800.00",May-22
Slough Borough Council,804807,Windsar Care Centre Ltd,M15D,Adult Social Care Operations,Supplies and Services,"3,214.29",May-22
Slough Borough Council,804807,Windsar Care Centre Ltd,M15D,Adult Social Care Operations,Supplies and Services,"6,428.57",May-22
Slough Borough Council,804807,Windsar Care Centre Ltd,M15F,Adult Social Care Operations,Supplies and Services,"3,171.43",May-22
Slough Borough Council,804807,Windsar Care Centre Ltd,M17C,Adult Social Care Operations,Supplies and Services,"4,071.43",May-22
Slough Borough Council,804807,Windsar Care Centre Ltd,M17C,Adult Social Care Operations,Supplies and Services,"4,178.57",May-22
Slough Borough Council,804807,Windsar Care Centre Ltd,M18C,Adult Social Care Operations,Supplies and Services,"3,900.00",May-22
Slough Borough Council,804807,Windsar Care Centre Ltd,M18C,Adult Social Care Operations,Supplies and Services,"4,178.57",May-22
Slough Borough Council,804807,Windsar Care Centre Ltd,M18C,Adult Social Care Operations,Supplies and Services,"4,178.57",May-22
Slough Borough Council,804807,Windsar Care Centre Ltd,M18C,Adult Social Care Operations,Supplies and Services,664.29,May-22
Slough Borough Council,804807,Windsar Care Centre Ltd,M18C,Adult Social Care Operations,Supplies and Services,"3,214.29",May-22
Slough Borough Council,804807,Windsar Care Centre Ltd,M18C,Adult Social Care Operations,Supplies and Services,"4,178.57",May-22
Slough Borough Council,804807,Windsar Care Centre Ltd,M18C,Adult Social Care Operations,Supplies and Services,"3,857.14",May-22
Slough Borough Council,804807,Windsar Care Centre Ltd,M18C,Adult Social Care Operations,Supplies and Services,"4,071.43",May-22
Slough Borough Council,804807,Windsar Care Centre Ltd,M18C,Adult Social Care Operations,Supplies and Services,"4,178.57",May-22
Slough Borough Council,804807,Windsar Care Centre Ltd,M18C,Adult Social Care Operations,Supplies and Services,"4,178.57",May-22
Slough Borough Council,804807,Windsar Care Centre Ltd,M18C,Adult Social Care Operations,Supplies and Services,"3,857.14",May-22
Slough Borough Council,804807,Windsar Care Centre Ltd,M18C,Adult Social Care Operations,Supplies and Services,"4,178.57",May-22
Slough Borough Council,804807,Windsar Care Centre Ltd,M18C,Adult Social Care Operations,Supplies and Services,"5,142.86",May-22
Slough Borough Council,804807,Windsar Care Centre Ltd,M27C,Adult Social Care Operations,Supplies and Services,"3,642.86",May-22
Slough Borough Council,804807,Windsar Care Centre Ltd,B324,Finance,Government Grants,"6,216.54",May-22
Slough Borough Council,3604,Windsar Care Ltd,M15F,Adult Social Care Operations,Supplies and Services,"3,321.43",May-22
Slough Borough Council,3604,Windsar Care Ltd,M15F,Adult Social Care Operations,Supplies and Services,"3,857.14",May-22
Slough Borough Council,3604,Windsar Care Ltd,M15F,Adult Social Care Operations,Supplies and Services,"4,071.43",May-22
Slough Borough Council,3604,Windsar Care Ltd,M15F,Adult Social Care Operations,Supplies and Services,"2,571.43",May-22
Slough Borough Council,3604,Windsar Care Ltd,M17C,Adult Social Care Operations,Supplies and Services,"3,214.29",May-22
Slough Borough Council,3604,Windsar Care Ltd,M18C,Adult Social Care Operations,Supplies and Services,"3,321.43",May-22
Slough Borough Council,3604,Windsar Care Ltd,M18C,Adult Social Care Operations,Supplies and Services,"3,428.57",May-22
Slough Borough Council,3604,Windsar Care Ltd,M18C,Adult Social Care Operations,Supplies and Services,"3,750.00",May-22
Slough Borough Council,3604,Windsar Care Ltd,M25C,Adult Social Care Operations,Supplies and Services,"3,214.29",May-22
Slough Borough Council,3604,Windsar Care Ltd,M25C,Adult Social Care Operations,Supplies and Services,"3,857.14",May-22
Slough Borough Council,3604,Windsar Care Ltd,M25D,Adult Social Care Operations,Supplies and Services,"4,178.57",May-22
Slough Borough Council,3604,Windsar Care Ltd,M26E,Adult Social Care Operations,Supplies and Services,"3,214.29",May-22
Slough Borough Council,3604,Windsar Care Ltd,M27C,Adult Social Care Operations,Supplies and Services,"3,857.14",May-22
Slough Borough Council,806641,Windsor Care Limited,M17C,Adult Social Care Operations,Supplies and Services,"3,614.07",May-22
Slough Borough Council,804667,Windsor Clinical & Home Care Services Grp Ltd,M17C,Adult Social Care Operations,Supplies and Services,"2,889.64",May-22
Slough Borough Council,804667,Windsor Clinical & Home Care Services Grp Ltd,M17C,Adult Social Care Operations,Supplies and Services,"2,796.43",May-22
Slough Borough Council,804667,Windsor Clinical & Home Care Services Grp Ltd,M17C,Adult Social Care Operations,Supplies and Services,"2,889.64",May-22
Slough Borough Council,51,Worldwide Education Recruitment,F210,Community,TP-Other Bodies,"5,400.00",May-22
Slough Borough Council,748,YMCA St Paul�s Group,H211,Adult Social Care Operations,Supplies and Services,"8,532.00",May-22
Slough Borough Council,748,YMCA St Paul�s Group,H211,Adult Social Care Operations,Supplies and Services,"8,532.00",May-22
Slough Borough Council,805715,Zhoib Kayani- Boxing Club,C406,Communities and Leisure,Supplies and Services,"1,450.00",May-22
